Department family,Entity,Date,Expense Type,Expense Area,Supplier,Transaction number, AP Amount (�) ,VAT registration number,Purchase invoice number
Department of Health,NHS Arden CSU,30/09/2014,Establishment,CSUs,EGTON MEDICAL INFORMATION SYSTEMS LTD,5101187," 63,377.50 ",482122369,IN7922021
Department of Health,NHS Arden CSU,30/09/2014,Establishment,CSUs,EGTON MEDICAL INFORMATION SYSTEMS LTD,5101191," 43,230.26 ",482122369,IN7921921
Department of Health,NHS Central Eastern CSU,30/09/2014,Establishment,CSUs,COMPUTACENTER (UK) LTD,4838689,"-25,680.00 ",GB490334648,3880209734
Department of Health,NHS Central Eastern CSU,30/09/2014,Establishment,CSUs,COMPUTACENTER (UK) LTD,4999878," 52,051.20 ",GB490334648,3880251976
Department of Health,NHS Central Eastern CSU,30/09/2014,Establishment,CSUs,VIRGIN MEDIA BUSINESS LTD,4940822," 31,515.89 ", -   ,930459006
Department of Health,NHS Central Eastern CSU,30/09/2014,Inventories,Capital,CISILION LTD,4901951," 40,427.48 ",765633407,INV024030
Department of Health,NHS Central Eastern CSU,30/09/2014,Other professional fees,CSUs,DELOITTE LLP,5152686," 88,575.60 ",819473600,1111101278
Department of Health,NHS Central Eastern CSU,30/09/2014,Other professional fees,CSUs,GARTNER UK LTD,5040088," 28,980.00 ", -   ,20078694
Department of Health,NHS Central Eastern CSU,30/09/2014,Premises,CSUs,NHS PROPERTY SERVICES LTD,4940855," 27,489.40 ", -   ,48339604
Department of Health,NHS Central Eastern CSU,30/09/2014,Premises,CSUs,NHS PROPERTY SERVICES LTD,4959372," 27,489.40 ", -   ,48340306
Department of Health,NHS Central Eastern CSU,30/09/2014,Premises,CSUs,NHS MID ESSEX CCG,4834765," 328,468.87 ", -   ,7021400414
Department of Health,NHS Central Eastern CSU,30/09/2014,Supplies and services � general,NHS England Running Costs,ATTAIN COMMISIONING SERVICES LTD,5068617," 78,915.00 ", -   ,800
Department of Health,NHS Central Midlands CSU,30/09/2014,Consultancy services,CSUs,A TO Z INTERPRETING & TRANSLATION,5101009," 57,152.04 ", -   ,INV025
Department of Health,NHS Central Midlands CSU,30/09/2014,Consultancy services,CSUs,EXPRESS INTERPRETING & TRANSLATION,5101177," 34,020.00 ", -   ,EX147
Department of Health,NHS Central Midlands CSU,30/09/2014,Consultancy services,CSUs,GLOBAL TRANSLATION SERVICES,4834625," 35,254.50 ", -   ,100371
Department of Health,NHS Central Midlands CSU,30/09/2014,Consultancy services,CSUs,PROFESSIONAL LINGUISTS LTD,5068161," 34,826.40 ", -   ,INV193
Department of Health,NHS Central Midlands CSU,30/09/2014,Establishment,CSUs,BIRMINGHAM COMMUNITY HEALTHCARE NHS TRUST,4831871," 164,097.00 ", -   ,N3CCGCOSTASPERAGREEDWITHAYAZAD
Department of Health,NHS Central Midlands CSU,30/09/2014,Establishment,CSUs,DUDLEY GROUP HOSPITALS NHS FOUNDATION TRUST,4939111," 61,496.11 ", -   ,1000019216
Department of Health,NHS Central Midlands CSU,30/09/2014,Establishment,CSUs,EGTON MEDICAL INFORMATION SYSTEMS LTD,5149039,"-104,333.56 ",482122369,CR790221
Department of Health,NHS Central Midlands CSU,30/09/2014,Supplies and services � general,CSUs,PINNACLE HEALTH PARTNERSHIP LLP,4996603," 29,054.00 ", -   ,120186
Department of Health,NHS Central Southern CSU,30/09/2014,Consultancy services,CSUs,ERNST & YOUNG LLP,5083613," 30,121.20 ",773831408,GB10300014776
Department of Health,NHS Central Southern CSU,30/09/2014,Establishment,CSUs,BT GLOBAL SERVICES,5137620," 35,886.16 ",245719348,790126939
Department of Health,NHS Central Southern CSU,30/09/2014,Establishment,CSUs,EGTON MEDICAL INFORMATION SYSTEMS LTD,5137587," 37,681.22 ",482122369,IN8332511
Department of Health,NHS Central Southern CSU,30/09/2014,Establishment,CSUs,GLOUCESTERSHIRE HOSPITALS NHS FOUNDATION TRUST,5138028," 165,374.00 ", -   ,9005528
Department of Health,NHS Central Southern CSU,30/09/2014,Establishment,CSUs,GLOUCESTERSHIRE HOSPITALS NHS FOUNDATION TRUST,5138033," 139,674.00 ", -   ,9005527
Department of Health,NHS Central Southern CSU,30/09/2014,Establishment,CSUs,OXFORD UNIVERSITY HOSPITALS NHS TRUST,4898495," 41,975.00 ", -   ,8190492
Department of Health,NHS Central Southern CSU,30/09/2014,Establishment,CSUs,UNIVERSITY HOSPITAL BIRMINGHAM NHS FOUNDATION TRUST,5121107," 28,460.00 ", -   ,OPQ024992
Department of Health,NHS Central Southern CSU,30/09/2014,Establishment,CSUs,TCR (NOTTINGHAM) LTD,4868343," 43,717.50 ",852513633,5975
Department of Health,NHS Central Southern CSU,30/09/2014,Establishment,CSUs,INTUITIVE SYSTEMS & NETWORKS LTD SWINDON,5120818," 42,660.00 ", -   ,ISN00011362
Department of Health,NHS Central Southern CSU,30/09/2014,Establishment,Establishment,OXFORD UNIVERSITY HOSPITALS NHS TRUST,4898461," 62,975.83 ", -   ,8190497
Department of Health,NHS Central Southern CSU,30/09/2014,Premises,CSUs,NHS PROPERTY SERVICES LTD,4915949," 349,216.00 ", -   ,48340598
Department of Health,NHS Central Southern CSU,30/09/2014,Supplies and services � general,CSUs,ERNST & YOUNG LLP,5038853," 163,623.60 ",773831408,GB10300014069
Department of Health,NHS Central Southern CSU,30/09/2014,Supplies and services � general,CSUs,SOLLIS PARTNERSHIP LTD,5137658," 69,600.00 ",644186137,3340
Department of Health,NHS Central Southern CSU,30/09/2014,Supplies and services � general,Supplies and services � general,ERNST & YOUNG LLP,5038821," 491,906.40 ",773831408,GB10300014068
Department of Health,NHS Cheshire And Merseyside CSU,30/09/2014,Consultancy services,CSUs,BENCHMARK MANAGEMENT CONSULTING LTD,4940798," 113,547.98 ",748739771,BMC530
Department of Health,NHS Cheshire And Merseyside CSU,30/09/2014,Consultancy services,London,BENCHMARK MANAGEMENT CONSULTING LTD,4940799," 29,423.28 ",748739771,BMC531
Department of Health,NHS Cheshire And Merseyside CSU,30/09/2014,Establishment,Establishment,BT PLC,4978909," 43,685.34 ", -   ,25724974S010
Department of Health,NHS Cheshire And Merseyside CSU,30/09/2014,Premises,CSUs,NHS PROPERTY SERVICES LTD,4940724," 127,437.75 ", -   ,48337856
Department of Health,NHS Cheshire And Merseyside CSU,30/09/2014,Premises,CSUs,NHS PROPERTY SERVICES LTD,4940763,"-127,437.75 ", -   ,48340323
Department of Health,NHS Cheshire And Merseyside CSU,30/09/2014,Supplies and services � general,CSUs,SUNQUEST INFORMATION SYSTEMS (EUROPE) LTD,4940710," 34,681.20 ",945755875,16634
Department of Health,NHS England,30/09/2014,Capital,Capital,NHS SOUTH WARWICKSHIRE CCG,5168501," 342,256.81 ", -   ,7019900203
Department of Health,NHS England,30/09/2014,Capital,Capital,NHS COVENTRY AND RUGBY CCG,4837469," 381,380.16 ", -   ,7018700195
Department of Health,NHS England,30/09/2014,Capital,Capital,NHS SOUTH WORCESTERSHIRE CCG,4837646," 299,090.59 ", -   ,7020000210
Department of Health,NHS England,30/09/2014,Capital,Capital,NHS HEREFORDSHIRE CCG,5167722," 363,813.42 ", -   ,7019100014
Department of Health,NHS England,30/09/2014,Capital,Capital,OFFICESCAPE CONTRACTS LTD,4888089," 45,649.33 ", -   ,6554
Department of Health,NHS England,30/09/2014,Capital,Capital,NHS SOUTH DEVON AND TORBAY CCG,4943235," 28,972.90 ", -   ,7031100077
Department of Health,NHS England,30/09/2014,Capital,Capital,NHS BRENT CCG,4981432," 152,534.88 ", -   ,7022600061
Department of Health,NHS England,30/09/2014,Capital,Capital,NHS REDDITCH AND BROMSGROVE CCG,5012431," 153,353.45 ", -   ,7019400121
Department of Health,NHS England,30/09/2014,Capital,Capital,NHS WYRE FOREST CCG,5012432," 103,451.13 ", -   ,7020600042
Department of Health,NHS England,30/09/2014,Supplies and services � general,Capital,ANGLIAN COMMUNITY ENTERPRISE CIC,4981672," 153,813.30 ",587172605,AC7000008233
Department of Health,NHS England,30/09/2014,Consultancy services,Capital,KPMG LLP,5104303," 552,068.62 ",791788859,5500896622
Department of Health,NHS England,30/09/2014,Consultancy services,Capital,MCKINSEY & CO,5054920," 241,077.60 ",239157155,16696
Department of Health,NHS England,30/09/2014,Consultancy services,Capital,DELOITTE MCS LTD,5054898," 149,515.20 ", -   ,2410081761
Department of Health,NHS England,30/09/2014,Consultancy services,Capital,DELOITTE MCS LTD,5054899," 201,514.80 ", -   ,2410081764
Department of Health,NHS England,30/09/2014,Supplies and services � general,Capital,CARING SOLUTIONS (UK) LTD,4904977," 96,157.20 ", -   ,82014
Department of Health,NHS England,30/09/2014,Consultancy services,Capital,PRICEWATERHOUSECOOPERS LLP,4900899," 40,800.00 ",714775323,1354200165
Department of Health,NHS England,30/09/2014,Consultancy services,Capital,PRICEWATERHOUSECOOPERS LLP,5055241," 50,000.00 ",714775323,1354228496
Department of Health,NHS England,30/09/2014,Consultancy services,Capital,PRICEWATERHOUSECOOPERS LLP,5104315,"-40,800.00 ",714775323,1361360903
Department of Health,NHS England,30/09/2014,Supplies and services � general,Capital,NATIONAL INSTITUTE FOR HEALTH AND CLINICAL EXCELLENCE,4901987," 125,000.00 ", -   ,5582390
Department of Health,NHS England,30/09/2014,Supplies and services � general,Capital,CENTRE FOR PUBLIC SCRUTINY,4982340," 35,220.00 ",848489562,41001916
Department of Health,NHS England,30/09/2014,Consultancy services,Capital,LIBRE ADVISORY LLP,4998583," 35,400.00 ", -   ,2036
Department of Health,NHS England,30/09/2014,Consultancy services,Capital,DEBIGNO LTD T/A PATHWAY ANALYTICS,5025795," 25,000.00 ", -   ,795
Department of Health,NHS England,30/09/2014,Supplies and services � general,Capital,UNIVERSITY OF BIRMINGHAM,5141605," 117,480.00 ",729856187,AEBH20006922
Department of Health,NHS England,30/09/2014,Supplies and services � general,Other (Including Central Programme),CARING SOLUTIONS (UK) LTD,4757214," 74,437.20 ", -   ,62014
Department of Health,NHS England,30/09/2014,Education and training,Capital,CAPITA BUSINESS SERVICES LTD,4999921," 26,557.25 ",618184140,X40466
Department of Health,NHS England,30/09/2014,Education and training,Capital,NEWCASTLE UPON TYNE HOSPITALS NHS FOUNDATION TRUST,5054603," 27,432.00 ", -   ,R0226663
Department of Health,NHS England,30/09/2014,Education and training,Capital,PEOPLEHUB NETWORK COMMUNITY INTEREST CO,4839187," 25,700.00 ", -   ,PH140802
Department of Health,NHS England,30/09/2014,Education and training,Capital,PEOPLEHUB NETWORK COMMUNITY INTEREST CO,5025785,"-25,700.00 ", -   ,PH140802C
Department of Health,NHS England,30/09/2014,Education and training,Capital,NHS LEEDS SOUTH AND EAST CCG,5104906," 68,180.00 ", -   ,7015600255
Department of Health,NHS England,30/09/2014,Establishment,Capital,3M SECURITY SYSTEMS DIVISION,4838958," 29,131.50 ", -   ,134275
Department of Health,NHS England,30/09/2014,Establishment,Capital,3M SECURITY SYSTEMS DIVISION,4838960," 28,378.92 ", -   ,134265
Department of Health,NHS England,30/09/2014,Establishment,Capital,3M SECURITY SYSTEMS DIVISION,4838963," 25,098.10 ", -   ,134269
Department of Health,NHS England,30/09/2014,Establishment,Capital,BLACKPOOL TEACHING HOSPITALS NHS FOUNDATION TRUST,5105533," 64,000.00 ", -   ,1110010075
Department of Health,NHS England,30/09/2014,Establishment,Capital,BT CONFERENCING,5012031," 56,735.54 ", -   ,BT011784933
Department of Health,NHS England,30/09/2014,Establishment,Capital,BT CONFERENCING,5012511," 37,020.82 ", -   ,BT011794333
Department of Health,NHS England,30/09/2014,Establishment,Capital,BT GLOBAL SERVICES,5025033," 493,131.77 ",245719348,790126724
Department of Health,NHS England,30/09/2014,Establishment,Capital,BT PLC,5104966," 50,123.12 ", -   ,790126562
Department of Health,NHS England,30/09/2014,Establishment,Capital,DEPARTMENT OF HEALTH,4871105," 423,312.81 ",888815064,211220
Department of Health,NHS England,30/09/2014,Establishment,Capital,DEPARTMENT OF HEALTH,4871108," 408,504.45 ",888815064,211222
Department of Health,NHS England,30/09/2014,Establishment,Capital,DEPARTMENT OF HEALTH,4871112," 277,553.77 ",888815064,211224
Department of Health,NHS England,30/09/2014,Establishment,Capital,DEPARTMENT OF HEALTH,4871114," 305,235.65 ",888815064,211228
Department of Health,NHS England,30/09/2014,Establishment,Capital,DEPARTMENT OF HEALTH,4871119," 311,286.05 ",888815064,211229
Department of Health,NHS England,30/09/2014,Establishment,Capital,GENERAL DYNAMICS IT LTD,5055150," 209,320.00 ", -   ,SIN004345
Department of Health,NHS England,30/09/2014,Establishment,Capital,NHS SHARED BUSINESS SERVICES LTD,4888135," 53,981.07 ",848137212,100026478
Department of Health,NHS England,30/09/2014,Establishment,Capital,NORTH BRISTOL NHS TRUST,5086266," 141,287.00 ", -   ,297447
Department of Health,NHS England,30/09/2014,Establishment,Capital,HEALTH & SOCIAL CARE INFORMATION CENTRE,5139867," 181,346.00 ",654434435,12667657
Department of Health,NHS England,30/09/2014,Establishment,Capital,NHS LITIGATION AUTHORITY,4943078," 1,592,688.20 ", -   ,SICX00091291
Department of Health,NHS England,30/09/2014,Establishment,Capital,NHS LITIGATION AUTHORITY,4943087," 259,423.00 ", -   ,SICX00091292
Department of Health,NHS England,30/09/2014,Establishment,Capital,NHS LITIGATION AUTHORITY,4943291," 796,344.10 ", -   ,SICX00091862
Department of Health,NHS England,30/09/2014,Establishment,Capital,NHS LITIGATION AUTHORITY,4943293," 129,711.50 ", -   ,SICX00091863
Department of Health,NHS England,30/09/2014,Establishment,Capital,PRECISE MEDIA MONITORING LTD,5168135," 29,904.00 ",849092202,286544
Department of Health,NHS England,30/09/2014,Establishment,Capital,PRECISE MEDIA MONITORING LTD,5168435," 29,904.00 ",849092202,293029
Department of Health,NHS England,30/09/2014,Establishment,Capital,PRECISE MEDIA MONITORING LTD,5168470," 29,904.00 ",849092202,289598
Department of Health,NHS England,30/09/2014,Establishment,Capital,M4C,4857831," 27,886.99 ",868111714,A08048CRCORR1INV
Department of Health,NHS England,30/09/2014,Establishment,Capital,M4C,4857832,"-27,886.99 ",868111714,A08048CRCORR2
Department of Health,NHS England,30/09/2014,Establishment,Capital,ATOS IT SERVICES UK LTD,4855750," 148,561.06 ", -   ,5584165216
Department of Health,NHS England,30/09/2014,Establishment,Capital,HARLOW PRINTING LTD,4904048," 29,400.00 ",175829620,544653
Department of Health,NHS England,30/09/2014,Establishment,Capital,NHS CAMBRIDGESHIRE AND PETERBOROUGH CCG,5025342," 141,231.00 ", -   ,7020800386
Department of Health,NHS England,30/09/2014,Establishment,Capital,VODAFONE CORPORATE LTD,4918759," 210,623.60 ",569953277,727060711
Department of Health,NHS England,30/09/2014,Establishment,Capital,VODAFONE CORPORATE LTD,5012197," 210,623.61 ",569953277,727060711
Department of Health,NHS England,30/09/2014,Establishment,Capital,VODAFONE CORPORATE LTD,5043682,"-210,623.61 ",569953277,727060711CR
Department of Health,NHS England,30/09/2014,Establishment,Capital,CSC COMPUTER SCIENCES LTD,4919542," 121,569.23 ",584686581,5201378794
Department of Health,NHS England,30/09/2014,Establishment,Capital,NHS HIGH WEALD LEWES HAVENS CCG,4981548," 75,750.00 ", -   ,7030700433
Department of Health,NHS England,30/09/2014,Establishment,Capital,NHS BRIGHTON & HOVE CCG,4981977," 191,636.50 ", -   ,7025600105
Department of Health,NHS England,30/09/2014,Establishment,Capital,NHS BRIGHTON & HOVE CCG,4981979,"-191,636.50 ", -   ,7025600133
Department of Health,NHS England,30/09/2014,Establishment,Capital,EDARA CONSULTING LTD,5042986," 74,551.00 ", -   ,201404NHSE
Department of Health,NHS England,30/09/2014,Establishment,NHS England Running Costs,HEALTH & SOCIAL CARE INFORMATION CENTRE,4803144," 29,523.00 ",654434435,12667994
Department of Health,NHS England,30/09/2014,Establishment,Other (Including Central Programme),VODAFONE LTD,5179977," 63,092.14 ",569953277,13102929
Department of Health,NHS England,30/09/2014,Establishment,Other (Including Central Programme),HEALTH & SOCIAL CARE INFORMATION CENTRE,4819149," 270,347.00 ",654434435,12668013
Department of Health,NHS England,30/09/2014,Establishment,Other (Including Central Programme),M4C,4571497," 116,365.15 ",868111714,A37243
Department of Health,NHS England,30/09/2014,General Dental services and personal dental services,Capital,543 DENTAL CENTRE LTD,4943525," 25,777.00 ", -   ,151
Department of Health,NHS England,30/09/2014,General Dental services and personal dental services,Capital,AINTREE UNIVERSITY HOSPITALS NHS FOUNDATION TRUST,4839102," 199,150.59 ", -   ,8410010684
Department of Health,NHS England,30/09/2014,General Dental services and personal dental services,Capital,AINTREE UNIVERSITY HOSPITALS NHS FOUNDATION TRUST,4900976," 44,581.47 ", -   ,8410010100
Department of Health,NHS England,30/09/2014,General Dental services and personal dental services,Capital,ANGLIAN COMMUNITY ENTERPRISE CIC,5054479," 80,851.75 ",587172605,AC7000008241
Department of Health,NHS England,30/09/2014,General Dental services and personal dental services,Capital,BARKING HAVERING AND REDBRIDGE HOSPITALS NHS TRUST,4981457," 28,665.00 ", -   ,8410456
Department of Health,NHS England,30/09/2014,General Dental services and personal dental services,Capital,BARTS HEALTH NHS TRUST,4871831,"-462,501.64 ", -   ,196659
Department of Health,NHS England,30/09/2014,General Dental services and personal dental services,Capital,BARTS HEALTH NHS TRUST,5054625,"-364,632.63 ", -   ,198960
Department of Health,NHS England,30/09/2014,General Dental services and personal dental services,Capital,BARTS HEALTH NHS TRUST,5054848,"-121,544.21 ", -   ,196657
Department of Health,NHS England,30/09/2014,General Dental services and personal dental services,Capital,BARTS HEALTH NHS TRUST,5069316," 462,501.64 ", -   ,187967
Department of Health,NHS England,30/09/2014,General Dental services and personal dental services,Capital,BARTS HEALTH NHS TRUST,5123720," 80,364.99 ", -   ,201101
Department of Health,NHS England,30/09/2014,General Dental services and personal dental services,Capital,BARTS HEALTH NHS TRUST,5151469," 364,632.63 ", -   ,187941
Department of Health,NHS England,30/09/2014,General Dental services and personal dental services,Capital,BASILDON & THURROCK UNIVERSITY HOSPITALS NHS FOUNDATION TRUST,5012190," 132,389.00 ", -   ,67031
Department of Health,NHS England,30/09/2014,General Dental services and personal dental services,Capital,BEDFORD HOSPITAL NHS TRUST,4961418," 169,966.84 ", -   ,I0136506
Department of Health,NHS England,30/09/2014,General Dental services and personal dental services,Capital,BERKSHIRE HEALTHCARE NHS FOUNDATION TRUST,4998682," 201,985.00 ", -   ,901736
Department of Health,NHS England,30/09/2014,General Dental services and personal dental services,Capital,BERKSHIRE HEALTHCARE NHS FOUNDATION TRUST,5086251," 201,985.00 ", -   ,902350
Department of Health,NHS England,30/09/2014,General Dental services and personal dental services,Capital,BIRMINGHAM CHILDRENS HOSPITAL NHS FOUNDATION TRUST,4872671," 42,161.25 ", -   ,15669227
Department of Health,NHS England,30/09/2014,General Dental services and personal dental services,Capital,BIRMINGHAM COMMUNITY HEALTHCARE NHS TRUST,4872667," 833,551.00 ", -   ,45000601
Department of Health,NHS England,30/09/2014,General Dental services and personal dental services,Capital,BIRMINGHAM COMMUNITY HEALTHCARE NHS TRUST,4872668," 760,162.00 ", -   ,45000606
Department of Health,NHS England,30/09/2014,General Dental services and personal dental services,Capital,BIRMINGHAM COMMUNITY HEALTHCARE NHS TRUST,4919511," 86,527.00 ", -   ,45000607
Department of Health,NHS England,30/09/2014,General Dental services and personal dental services,Capital,BIRMINGHAM COMMUNITY HEALTHCARE NHS TRUST,5054087," 67,606.00 ", -   ,44999892
Department of Health,NHS England,30/09/2014,General Dental services and personal dental services,Capital,BRIDGEWATER COMMUNITY HEALTHCARE NHS TRUST,5085893," 70,175.00 ", -   ,26283292
Department of Health,NHS England,30/09/2014,General Dental services and personal dental services,Capital,BRIDGEWATER COMMUNITY HEALTHCARE NHS TRUST,5152099," 242,672.00 ", -   ,26284143
Department of Health,NHS England,30/09/2014,General Dental services and personal dental services,Capital,BURTON HOSPITALS NHS FOUNDATION TRUST,4962131," 123,376.00 ", -   ,IN0013778031
Department of Health,NHS England,30/09/2014,General Dental services and personal dental services,Capital,CENTRAL & NORTH WEST LONDON NHS FOUNDATION TRUST,4998837," 147,010.42 ",654970895,S0513480
Department of Health,NHS England,30/09/2014,General Dental services and personal dental services,Capital,CENTRAL MANCHESTER UNIVERSITY HOSPITALS NHS FOUNDATION TRUST,4855746," 64,976.00 ", -   ,6210008754
Department of Health,NHS England,30/09/2014,General Dental services and personal dental services,Capital,CENTRAL MANCHESTER UNIVERSITY HOSPITALS NHS FOUNDATION TRUST,5042982," 83,979.00 ", -   ,6210010828
Department of Health,NHS England,30/09/2014,General Dental services and personal dental services,Capital,CHESTERFIELD ROYAL HOSPITAL NHS FOUNDATION TRUST,4981795," 197,250.00 ", -   ,4521049
Department of Health,NHS England,30/09/2014,General Dental services and personal dental services,Capital,CITY HEALTH CARE PARTNERSHIP CIC,5070604,"-25,510.00 ", -   ,617
Department of Health,NHS England,30/09/2014,General Dental services and personal dental services,Capital,CITY HOSPITALS SUNDERLAND FOUNDATION NHS TRUST,4888595," 125,948.00 ", -   ,7910011303
Department of Health,NHS England,30/09/2014,General Dental services and personal dental services,Capital,COLCHESTER HOSPITAL UNIVERSITY NHS FOUNDATION TRUST,4980629,"-65,369.00 ",654921325,2000003705
Department of Health,NHS England,30/09/2014,General Dental services and personal dental services,Capital,COLCHESTER HOSPITAL UNIVERSITY NHS FOUNDATION TRUST,5012182," 131,479.12 ",654921325,2000031634
Department of Health,NHS England,30/09/2014,General Dental services and personal dental services,Capital,COUNTESS OF CHESTER HOSPITAL NHS FOUNDATION TRUST,4944384," 181,781.00 ", -   ,I0071427
Department of Health,NHS England,30/09/2014,General Dental services and personal dental services,Capital,COUNTY DURHAM AND DARLINGTON NHS FOUNDATION TRUST,4871868,"-100,779.00 ", -   ,3919000473
Department of Health,NHS England,30/09/2014,General Dental services and personal dental services,Capital,COUNTY DURHAM AND DARLINGTON NHS FOUNDATION TRUST,4919530," 65,792.45 ", -   ,3910004943
Department of Health,NHS England,30/09/2014,General Dental services and personal dental services,Capital,COUNTY DURHAM AND DARLINGTON NHS FOUNDATION TRUST,5105343," 65,792.45 ", -   ,3910004938
Department of Health,NHS England,30/09/2014,General Dental services and personal dental services,Capital,CUMBRIA PARTNERSHIP NHS FOUNDATION TRUST,5054416," 54,907.92 ", -   ,2510022037
Department of Health,NHS England,30/09/2014,General Dental services and personal dental services,Capital,DERBY HOSPITALS NHS FOUNDATION TRUST,4998854," 445,885.00 ", -   ,323447
Department of Health,NHS England,30/09/2014,General Dental services and personal dental services,Capital,DERBY HOSPITALS NHS FOUNDATION TRUST,5025009," 76,223.00 ", -   ,323449
Department of Health,NHS England,30/09/2014,General Dental services and personal dental services,Capital,DERBYSHIRE COMMUNITY HEALTH SERVICES NHS TRUST,4998747," 498,887.00 ", -   ,11872595
Department of Health,NHS England,30/09/2014,General Dental services and personal dental services,Capital,DORSET COUNTY HOSPITAL NHS FOUNDATION TRUST,5054613," 261,821.00 ", -   ,D051710
Department of Health,NHS England,30/09/2014,General Dental services and personal dental services,Capital,EAST AND NORTH HERTFORDSHIRE NHS TRUST,4961468," 161,826.50 ", -   ,4108396
Department of Health,NHS England,30/09/2014,General Dental services and personal dental services,Capital,EAST CHESHIRE NHS TRUST,5042936," 56,648.10 ", -   ,17476418
Department of Health,NHS England,30/09/2014,General Dental services and personal dental services,Capital,EAST FINCHLEY SMILES,4962232," 37,223.03 ", -   ,21DUR
Department of Health,NHS England,30/09/2014,General Dental services and personal dental services,Capital,EAST SUSSEX HEALTHCARE NHS TRUST,5085973," 205,309.00 ", -   ,74485
Department of Health,NHS England,30/09/2014,General Dental services and personal dental services,Capital,EAST SUSSEX HEALTHCARE NHS TRUST,5086206,"-85,320.00 ", -   ,2000004606
Department of Health,NHS England,30/09/2014,General Dental services and personal dental services,Capital,EAST SUSSEX HEALTHCARE NHS TRUST,5086313,"-205,050.00 ", -   ,2000004820
Department of Health,NHS England,30/09/2014,General Dental services and personal dental services,Capital,EAST SUSSEX HEALTHCARE NHS TRUST,5123914," 85,714.00 ", -   ,75730
Department of Health,NHS England,30/09/2014,General Dental services and personal dental services,Capital,FDS CONSULTANTS,5151657," 55,872.00 ", -   ,INV000584
Department of Health,NHS England,30/09/2014,General Dental services and personal dental services,Capital,GLOUCESTERSHIRE HOSPITALS NHS FOUNDATION TRUST,4962128," 468,092.53 ", -   ,9005480
Department of Health,NHS England,30/09/2014,General Dental services and personal dental services,Capital,GREAT WESTERN HOSPITALS NHS FOUNDATION TRUST,4838758," 262,933.05 ", -   ,16949466
Department of Health,NHS England,30/09/2014,General Dental services and personal dental services,Capital,GUYS & ST THOMAS HOSPITAL NHS FOUNDATION TRUST,4838031," 46,893.00 ", -   ,3147229
Department of Health,NHS England,30/09/2014,General Dental services and personal dental services,Capital,GUYS & ST THOMAS HOSPITAL NHS FOUNDATION TRUST,4838032," 162,481.00 ", -   ,3147221
Department of Health,NHS England,30/09/2014,General Dental services and personal dental services,Capital,GUYS & ST THOMAS HOSPITAL NHS FOUNDATION TRUST,4838033," 38,925.00 ", -   ,3147228
Department of Health,NHS England,30/09/2014,General Dental services and personal dental services,Capital,GUYS & ST THOMAS HOSPITAL NHS FOUNDATION TRUST,4943397," 48,506.00 ", -   ,3147224
Department of Health,NHS England,30/09/2014,General Dental services and personal dental services,Capital,GUYS & ST THOMAS HOSPITAL NHS FOUNDATION TRUST,5140895,"-67,888.00 ", -   ,9007609
Department of Health,NHS England,30/09/2014,General Dental services and personal dental services,Capital,HARROGATE & DISTRICT NHS FOUNDATION NHS TRUST,5069973," 29,369.57 ", -   ,H172720
Department of Health,NHS England,30/09/2014,General Dental services and personal dental services,Capital,HARROGATE & DISTRICT NHS FOUNDATION NHS TRUST,5125259," 89,346.51 ", -   ,H173453
Department of Health,NHS England,30/09/2014,General Dental services and personal dental services,Capital,HEART OF ENGLAND NHS FOUNDATION TRUST,4962141," 52,754.00 ", -   ,921547
Department of Health,NHS England,30/09/2014,General Dental services and personal dental services,Capital,HEART OF ENGLAND NHS FOUNDATION TRUST,4962143," 126,867.00 ", -   ,921545
Department of Health,NHS England,30/09/2014,General Dental services and personal dental services,Capital,HERTFORDSHIRE COMMUNITY NHS TRUST,4961497," 151,118.43 ", -   ,28009147
Department of Health,NHS England,30/09/2014,General Dental services and personal dental services,Capital,HERTS URGENT DENTAL CARE LTD,5012527," 35,827.21 ", -   ,HUDC141506
Department of Health,NHS England,30/09/2014,General Dental services and personal dental services,Capital,HULL AND EAST YORKSHIRE HOSPITALS NHS TRUST,5125271," 505,292.90 ", -   ,1210011895
Department of Health,NHS England,30/09/2014,General Dental services and personal dental services,Capital,ISLE OF WIGHT NHS TRUST,4961471," 118,430.00 ", -   ,44304011
Department of Health,NHS England,30/09/2014,General Dental services and personal dental services,Capital,KENT COMMUNITY HEALTH NHS TRUST,4918768," 380,500.00 ", -   ,24025608
Department of Health,NHS England,30/09/2014,General Dental services and personal dental services,Capital,KETTERING GENERAL HOSPITAL NHS FOUNDATION TRUST,4961425," 213,240.25 ", -   ,A0025802
Department of Health,NHS England,30/09/2014,General Dental services and personal dental services,Capital,KING`S COLLEGE HOSPITAL NHS FOUNDATION TRUST,4871823," 25,000.00 ", -   ,199085
Department of Health,NHS England,30/09/2014,General Dental services and personal dental services,Capital,KING`S COLLEGE HOSPITAL NHS FOUNDATION TRUST,4943786," 38,214.78 ", -   ,210421
Department of Health,NHS England,30/09/2014,General Dental services and personal dental services,Capital,KING`S COLLEGE HOSPITAL NHS FOUNDATION TRUST,5085708," 25,339.00 ", -   ,200212
Department of Health,NHS England,30/09/2014,General Dental services and personal dental services,Capital,KING`S COLLEGE HOSPITAL NHS FOUNDATION TRUST,5151662," 51,619.00 ", -   ,210585
Department of Health,NHS England,30/09/2014,General Dental services and personal dental services,Capital,LANCASHIRE CARE NHS FOUNDATION TRUST,4918175," 588,648.00 ", -   ,I0035454
Department of Health,NHS England,30/09/2014,General Dental services and personal dental services,Capital,LANCASHIRE CARE NHS FOUNDATION TRUST,4918350," 555,478.00 ", -   ,I0036220
Department of Health,NHS England,30/09/2014,General Dental services and personal dental services,Capital,LANCASHIRE CARE NHS FOUNDATION TRUST,5086033," 555,478.00 ", -   ,I0036770
Department of Health,NHS England,30/09/2014,General Dental services and personal dental services,Capital,LEEDS TEACHING HOSPITALS NHS TRUST,4887779," 61,726.00 ", -   ,442839
Department of Health,NHS England,30/09/2014,General Dental services and personal dental services,Capital,LEEDS TEACHING HOSPITALS NHS TRUST,5070268," 61,726.00 ", -   ,444965
Department of Health,NHS England,30/09/2014,General Dental services and personal dental services,Capital,LEEDS TEACHING HOSPITALS NHS TRUST,5151549," 34,047.77 ", -   ,443285
Department of Health,NHS England,30/09/2014,General Dental services and personal dental services,Capital,LOCAL CARE DIRECT,4837560," 93,289.00 ", -   ,18604
Department of Health,NHS England,30/09/2014,General Dental services and personal dental services,Capital,LOCAL CARE DIRECT,4918958,"-136,009.50 ", -   ,18732
Department of Health,NHS England,30/09/2014,General Dental services and personal dental services,Capital,LOCAL CARE DIRECT,4918959,"-45,917.00 ", -   ,18841
Department of Health,NHS England,30/09/2014,General Dental services and personal dental services,Capital,LOCAL CARE DIRECT,5025052," 93,289.00 ", -   ,18862
Department of Health,NHS England,30/09/2014,General Dental services and personal dental services,Capital,LUTON & DUNSTABLE HOSPITAL NHS FOUNDATION TRUST,4961430," 421,626.67 ", -   ,52956451
Department of Health,NHS England,30/09/2014,General Dental services and personal dental services,Capital,MID ESSEX HOSPITALS SERVICES NHS TRUST,5012216," 275,004.00 ", -   ,ME2000084848
Department of Health,NHS England,30/09/2014,General Dental services and personal dental services,Capital,MID STAFFORDSHIRE NHS FOUNDATION TRUST,5105351," 81,020.67 ", -   ,I0083183
Department of Health,NHS England,30/09/2014,General Dental services and personal dental services,Capital,MILTON KEYNES HOSPITAL NHS FOUNDATION TRUST,4961469," 127,522.00 ", -   ,42910724
Department of Health,NHS England,30/09/2014,General Dental services and personal dental services,Capital,NEWCASTLE UPON TYNE HOSPITALS NHS FOUNDATION TRUST,4904039," 90,129.08 ", -   ,R0226510
Department of Health,NHS England,30/09/2014,General Dental services and personal dental services,Capital,NEWCASTLE UPON TYNE HOSPITALS NHS FOUNDATION TRUST,4981930,"-156,541.00 ", -   ,D0004138
Department of Health,NHS England,30/09/2014,General Dental services and personal dental services,Capital,NORTH EAST LONDON NHS FOUNDATION TRUST,4998909," 73,770.00 ", -   ,NL0000023922
Department of Health,NHS England,30/09/2014,General Dental services and personal dental services,Capital,NORTH WEST LONDON HOSPITALS NHS TRUST,4943282," 105,785.00 ", -   ,I0161360
Department of Health,NHS England,30/09/2014,General Dental services and personal dental services,Capital,NORTH WEST LONDON HOSPITALS NHS TRUST,5123759," 26,270.00 ", -   ,I0161841
Department of Health,NHS England,30/09/2014,General Dental services and personal dental services,Capital,NORTHAMPTON GENERAL HOSPITAL NHS TRUST,4961436," 464,890.10 ", -   ,198283
Department of Health,NHS England,30/09/2014,General Dental services and personal dental services,Capital,NORTHAMPTONSHIRE HEALTHCARE NHS FOUNDATION TRUST,4998753," 174,767.00 ",654403940,5127186
Department of Health,NHS England,30/09/2014,General Dental services and personal dental services,Capital,NORTHERN LINCOLNSHIRE AND GOOLE HOSPITALS NHS FOUNDATION TRUST,4998871," 521,813.00 ",654977580,2400006254
Department of Health,NHS England,30/09/2014,General Dental services and personal dental services,Capital,NORTHERN LINCOLNSHIRE AND GOOLE HOSPITALS NHS FOUNDATION TRUST,5070198," 48,493.00 ",654977580,2400006242
Department of Health,NHS England,30/09/2014,General Dental services and personal dental services,Capital,NORTHUMBRIA HEALTHCARE NHS FOUNDATION TRUST,5012788," 107,634.00 ", -   ,7510046527
Department of Health,NHS England,30/09/2014,General Dental services and personal dental services,Capital,NOTTINGHAM UNIVERSITY HOSPITALS NHS TRUST,4998864," 413,279.00 ", -   ,2000057996
Department of Health,NHS England,30/09/2014,General Dental services and personal dental services,Capital,OXFORD HEALTH NHS FOUNDATION TRUST,4943411," 364,007.83 ", -   ,A0087683
Department of Health,NHS England,30/09/2014,General Dental services and personal dental services,Capital,POOLE HOSPITAL NHS FOUNDATION TRUST,4981364,"-83,194.72 ",654 9463 02,C0001094
Department of Health,NHS England,30/09/2014,General Dental services and personal dental services,Capital,POOLE HOSPITAL NHS FOUNDATION TRUST,4998355," 597,710.87 ",654 9463 02,P0140520
Department of Health,NHS England,30/09/2014,General Dental services and personal dental services,Capital,PORTSMOUTH HOSPITALS NHS TRUST,4837607," 482,661.83 ", -   ,9271639
Department of Health,NHS England,30/09/2014,General Dental services and personal dental services,Capital,PRINCESS ALEXANDRA HOSPITAL NHS TRUST,4943361," 52,606.74 ",654964985,BL140613
Department of Health,NHS England,30/09/2014,General Dental services and personal dental services,Capital,PRINCESS ALEXANDRA HOSPITAL NHS TRUST,5011804," 121,563.08 ",654964985,BL140512
Department of Health,NHS England,30/09/2014,General Dental services and personal dental services,Capital,QUEEN VICTORIA HOSPITAL NHS FOUNDATION TRUST,4855738," 513,809.64 ", -   ,2010003085
Department of Health,NHS England,30/09/2014,General Dental services and personal dental services,Capital,QUEEN VICTORIA HOSPITAL NHS FOUNDATION TRUST,4962127," 498,745.10 ", -   ,2010004027
Department of Health,NHS England,30/09/2014,General Dental services and personal dental services,Capital,QUEENSWAY DENTAL PRACTICE,4902011," 36,029.69 ", -   ,151
Department of Health,NHS England,30/09/2014,General Dental services and personal dental services,Capital,QUEENSWAY DENTAL PRACTICE,4902012," 30,368.88 ", -   ,152
Department of Health,NHS England,30/09/2014,General Dental services and personal dental services,Capital,ROYAL LIVERPOOL AND BROADGREEN UNIVERSITY HOSPITALS NHS TRUST,5141670," 87,596.00 ",654966000,8610022120
Department of Health,NHS England,30/09/2014,General Dental services and personal dental services,Capital,ROYAL WOLVERHAMPTON HOSPITALS NHS TRUST (THE),4919584," 267,349.00 ", -   ,173457
Department of Health,NHS England,30/09/2014,General Dental services and personal dental services,Capital,ROYAL WOLVERHAMPTON HOSPITALS NHS TRUST (THE),4962132," 56,813.00 ", -   ,173458
Department of Health,NHS England,30/09/2014,General Dental services and personal dental services,Capital,SALFORD ROYAL NHS FOUNDATION TRUST,5054486," 103,780.00 ", -   ,1000154645
Department of Health,NHS England,30/09/2014,General Dental services and personal dental services,Capital,SALISBURY NHS FOUNDATION TRUST,4855817," 107,455.00 ", -   ,B008887
Department of Health,NHS England,30/09/2014,General Dental services and personal dental services,Capital,SALISBURY NHS FOUNDATION TRUST,4855818," 171,913.00 ", -   ,B008888
Department of Health,NHS England,30/09/2014,General Dental services and personal dental services,Capital,SALISBURY NHS FOUNDATION TRUST,5054389," 84,346.00 ", -   ,B008886
Department of Health,NHS England,30/09/2014,General Dental services and personal dental services,Capital,SANDWELL AND WEST BIRMINGHAM HOSPITALS NHS TRUST,4982221," 169,247.00 ", -   ,75316
Department of Health,NHS England,30/09/2014,General Dental services and personal dental services,Capital,SHEFFIELD TEACHING HOSPITALS NHS FOUNDATION TRUST,4918778,"-35,355.00 ",654400165,5000032529
Department of Health,NHS England,30/09/2014,General Dental services and personal dental services,Capital,SHEFFIELD TEACHING HOSPITALS NHS FOUNDATION TRUST,4981578," 272,177.00 ",654400165,4000399759
Department of Health,NHS England,30/09/2014,General Dental services and personal dental services,Capital,SHERWOOD FOREST HOSPITALS NHS FOUNDATION TRUST,5086207," 134,752.33 ", -   ,131906
Department of Health,NHS England,30/09/2014,General Dental services and personal dental services,Capital,SHREWSBURY&TELFORD HOSPITAL NHS TRUST,4919540," 270,665.83 ", -   ,10092155
Department of Health,NHS England,30/09/2014,General Dental services and personal dental services,Capital,SOUTH ESSEX PARTNERSHIP NHS FOUNDATION TRUST,5012209," 40,186.67 ",654974100,I0040903
Department of Health,NHS England,30/09/2014,General Dental services and personal dental services,Capital,SOUTH ESSEX PARTNERSHIP NHS FOUNDATION TRUST,5012212," 35,284.29 ",654974100,I0040956
Department of Health,NHS England,30/09/2014,General Dental services and personal dental services,Capital,SOUTH TEES HOSPITALS NHS FOUNDATION TRUST,4887977,"-447,946.00 ", -   ,824
Department of Health,NHS England,30/09/2014,General Dental services and personal dental services,Capital,SOUTH TEES HOSPITALS NHS FOUNDATION TRUST,4887978,"-447,947.00 ", -   ,957
Department of Health,NHS England,30/09/2014,General Dental services and personal dental services,Capital,SOUTH TEES HOSPITALS NHS FOUNDATION TRUST,4917959," 447,946.00 ", -   ,3510010211
Department of Health,NHS England,30/09/2014,General Dental services and personal dental services,Capital,SOUTH TEES HOSPITALS NHS FOUNDATION TRUST,4918136," 447,947.00 ", -   ,3510011709
Department of Health,NHS England,30/09/2014,General Dental services and personal dental services,Capital,SOUTH TEES HOSPITALS NHS FOUNDATION TRUST,5141496," 29,456.95 ", -   ,3510014196
Department of Health,NHS England,30/09/2014,General Dental services and personal dental services,Capital,SOUTH TEES HOSPITALS NHS FOUNDATION TRUST,5141497," 74,327.86 ", -   ,3510014197
Department of Health,NHS England,30/09/2014,General Dental services and personal dental services,Capital,SOUTH TEES HOSPITALS NHS FOUNDATION TRUST,5141604," 392,606.72 ", -   ,3510014199
Department of Health,NHS England,30/09/2014,General Dental services and personal dental services,Capital,SOUTHEND UNIVERSITY HOSPITAL NHS FOUNDATION TRUST,4855070," 187,718.00 ", -   ,11002
Department of Health,NHS England,30/09/2014,General Dental services and personal dental services,Capital,SOUTHEND UNIVERSITY HOSPITAL NHS FOUNDATION TRUST,5012038," 197,260.00 ", -   ,411957
Department of Health,NHS England,30/09/2014,General Dental services and personal dental services,Capital,SOUTHERN HEALTH NHS FOUNDATION TRUST,5042224," 27,375.00 ", -   ,43613623
Department of Health,NHS England,30/09/2014,General Dental services and personal dental services,Capital,SOUTHPORT AND ORMSKIRK HOSPITAL NHS TRUST,4855783," 54,738.00 ", -   ,7504581
Department of Health,NHS England,30/09/2014,General Dental services and personal dental services,Capital,SPECTRUM ASSOCIATES (MK) LTD,4981491," 49,612.00 ", -   ,541
Department of Health,NHS England,30/09/2014,General Dental services and personal dental services,Capital,SPECTRUM ASSOCIATES (MK) LTD,5140929," 45,583.00 ", -   ,540
Department of Health,NHS England,30/09/2014,General Dental services and personal dental services,Capital,STAFFORDSHIRE AND STOKE ON TRENT PARTNERSHIP NHS TRUST,5152709," 210,663.00 ", -   ,51345731
Department of Health,NHS England,30/09/2014,General Dental services and personal dental services,Capital,SURREY AND SUSSEX HEALTHCARE NHS TRUST,4944228," 64,601.13 ", -   ,11940835
Department of Health,NHS England,30/09/2014,General Dental services and personal dental services,Capital,UNIVERSITY COLLEGE LONDON HOSPITALS NHS FOUNDATION TRUST,4838077," 68,267.00 ",654948687,5010026725
Department of Health,NHS England,30/09/2014,General Dental services and personal dental services,Capital,UNIVERSITY COLLEGE LONDON HOSPITALS NHS FOUNDATION TRUST,4918537," 31,158.00 ",654948687,5010024570
Department of Health,NHS England,30/09/2014,General Dental services and personal dental services,Capital,UNIVERSITY COLLEGE LONDON HOSPITALS NHS FOUNDATION TRUST,4918737," 31,158.00 ",654948687,5010026724
Department of Health,NHS England,30/09/2014,General Dental services and personal dental services,Capital,UNIVERSITY COLLEGE LONDON HOSPITALS NHS FOUNDATION TRUST,4943398," 192,661.25 ",654948687,5010026726
Department of Health,NHS England,30/09/2014,General Dental services and personal dental services,Capital,UNIVERSITY HOSPITAL BIRMINGHAM NHS FOUNDATION TRUST,4888605," 296,795.00 ", -   ,OPQ022660
Department of Health,NHS England,30/09/2014,General Dental services and personal dental services,Capital,UNIVERSITY HOSPITAL OF NORTH STAFFORDSHIRE NHS TRUST,5011472," 37,124.00 ", -   ,454264
Department of Health,NHS England,30/09/2014,General Dental services and personal dental services,Capital,UNIVERSITY HOSPITAL OF NORTH STAFFORDSHIRE NHS TRUST,5012206,"-37,124.00 ", -   ,9494
Department of Health,NHS England,30/09/2014,General Dental services and personal dental services,Capital,UNIVERSITY HOSPITALS BRISTOL NHS FOUNDATION TRUST,4981927,"-2,083,842.06 ", -   ,V0001871
Department of Health,NHS England,30/09/2014,General Dental services and personal dental services,Capital,UNIVERSITY HOSPITALS BRISTOL NHS FOUNDATION TRUST,5053951," 84,008.67 ", -   ,A0005082
Department of Health,NHS England,30/09/2014,General Dental services and personal dental services,Capital,UNIVERSITY HOSPITALS BRISTOL NHS FOUNDATION TRUST,5085900," 1,834,733.37 ", -   ,20021009
Department of Health,NHS England,30/09/2014,General Dental services and personal dental services,Capital,UNIVERSITY HOSPITALS OF MORECAMBE BAY NHS FOUNDATION TRUST,4982241," 109,543.00 ", -   ,236764
Department of Health,NHS England,30/09/2014,General Dental services and personal dental services,Capital,WARRINGTON & HALTON HOSPITALS NHS FOUNDATION TRUST,4888590," 58,285.36 ", -   ,15348654
Department of Health,NHS England,30/09/2014,General Dental services and personal dental services,Capital,WEST HERTFORDSHIRE HOSPITALS NHS TRUST,4961351," 129,918.00 ", -   ,222934
Department of Health,NHS England,30/09/2014,General Dental services and personal dental services,Capital,WIRRAL UNIVERSITY TEACHING HOSPITAL NHS FOUNDATION TRUST,4944393," 231,250.00 ", -   ,8510011018
Department of Health,NHS England,30/09/2014,General Dental services and personal dental services,Capital,WORCESTERSHIRE ACUTE HOSPITALS NHS TRUST,5139523," 628,390.00 ", -   ,4425538
Department of Health,NHS England,30/09/2014,General Dental services and personal dental services,Capital,YEOVIL DISTRICT HOSPITAL NHS FOUNDATION TRUST,5041970," 49,536.26 ", -   ,131051
Department of Health,NHS England,30/09/2014,General Dental services and personal dental services,Capital,YORK TEACHING HOSPITAL NHS FOUNDATION TRUST,5012777," 589,108.11 ", -   ,1010019441
Department of Health,NHS England,30/09/2014,General Dental services and personal dental services,Capital,SHROPSHIRE COMMUNITY HEALTH NHS TRUST,4919587," 39,118.00 ", -   ,50008412
Department of Health,NHS England,30/09/2014,General Dental services and personal dental services,Capital,SHROPSHIRE COMMUNITY HEALTH NHS TRUST,4919589," 102,605.58 ", -   ,50008411
Department of Health,NHS England,30/09/2014,General Dental services and personal dental services,Capital,SHROPSHIRE COMMUNITY HEALTH NHS TRUST,4919631," 30,811.33 ", -   ,50008408
Department of Health,NHS England,30/09/2014,General Dental services and personal dental services,Capital,WINFIELD HOSPITAL,4888139," 54,742.35 ", -   ,X24201403
Department of Health,NHS England,30/09/2014,General Dental services and personal dental services,Capital,NHS GLOUCESTERSHIRE CCG,5011955," 73,890.00 ", -   ,7029200392
Department of Health,NHS England,30/09/2014,General Dental services and personal dental services,Capital,MASTERCALL HEALTHCARE,5012074," 30,152.17 ", -   ,2525
Department of Health,NHS England,30/09/2014,General Dental services and personal dental services,Capital,SMILE DENTAL TRIAGE LTD,5012449," 40,138.62 ", -   ,378
Department of Health,NHS England,30/09/2014,General Dental services and personal dental services,Capital,SMILE DENTAL TRIAGE LTD,5025226," 59,223.20 ", -   ,379
Department of Health,NHS England,30/09/2014,General Dental services and personal dental services,Capital,NHS BATH AND NORTH EAST SOMERSET CCG,5104792," 48,893.50 ", -   ,7028901079
Department of Health,NHS England,30/09/2014,General Dental services and personal dental services,Primary Care & Secondary Dental,AINTREE UNIVERSITY HOSPITALS NHS FOUNDATION TRUST,5169538," 199,150.59 ", -   ,8410011453
Department of Health,NHS England,30/09/2014,General Dental services and personal dental services,Primary Care & Secondary Dental,BLACKPOOL TEACHING HOSPITALS NHS FOUNDATION TRUST,4738025," 399,122.00 ", -   ,1110009400
Department of Health,NHS England,30/09/2014,General Dental services and personal dental services,Primary Care & Secondary Dental,COLCHESTER HOSPITAL UNIVERSITY NHS FOUNDATION TRUST,5168679," 219,825.57 ",654921325,2000031670
Department of Health,NHS England,30/09/2014,General Dental services and personal dental services,Primary Care & Secondary Dental,DERBYSHIRE COMMUNITY HEALTH SERVICES NHS TRUST,4837096," 29,875.00 ", -   ,11870624
Department of Health,NHS England,30/09/2014,General Dental services and personal dental services,Primary Care & Secondary Dental,DUDLEY GROUP HOSPITALS NHS FOUNDATION TRUST,4803163," 228,742.00 ", -   ,1000019101
Department of Health,NHS England,30/09/2014,General Dental services and personal dental services,Primary Care & Secondary Dental,EAST LANCASHIRE HOSPITALS NHS TRUST,4803177," 395,245.00 ", -   ,E0068397
Department of Health,NHS England,30/09/2014,General Dental services and personal dental services,Primary Care & Secondary Dental,GUYS & ST THOMAS HOSPITAL NHS FOUNDATION TRUST,5169075," 38,925.00 ", -   ,3149154
Department of Health,NHS England,30/09/2014,General Dental services and personal dental services,Primary Care & Secondary Dental,HAMPSHIRE HOSPITALS NHS FOUNDATION TRUST,5169054,"-179,352.00 ", -   ,40037976
Department of Health,NHS England,30/09/2014,General Dental services and personal dental services,Primary Care & Secondary Dental,HAMPSHIRE HOSPITALS NHS FOUNDATION TRUST,5179116," 174,977.00 ", -   ,40037103
Department of Health,NHS England,30/09/2014,General Dental services and personal dental services,Primary Care & Secondary Dental,HAMPSHIRE HOSPITALS NHS FOUNDATION TRUST,5179308," 174,977.00 ", -   ,40037919
Department of Health,NHS England,30/09/2014,General Dental services and personal dental services,Primary Care & Secondary Dental,HARROGATE & DISTRICT NHS FOUNDATION NHS TRUST,4803244," 89,346.51 ", -   ,H172676
Department of Health,NHS England,30/09/2014,General Dental services and personal dental services,Primary Care & Secondary Dental,HULL AND EAST YORKSHIRE HOSPITALS NHS TRUST,4803142," 505,292.90 ", -   ,1210011285
Department of Health,NHS England,30/09/2014,General Dental services and personal dental services,Primary Care & Secondary Dental,KING`S COLLEGE HOSPITAL NHS FOUNDATION TRUST,5178775," 39,251.00 ", -   ,197480
Department of Health,NHS England,30/09/2014,General Dental services and personal dental services,Primary Care & Secondary Dental,KING`S COLLEGE HOSPITAL NHS FOUNDATION TRUST,5178842," 31,117.00 ", -   ,200197
Department of Health,NHS England,30/09/2014,General Dental services and personal dental services,Primary Care & Secondary Dental,MEDWAY NHS FOUNDATION TRUST,4803154," 71,720.00 ", -   ,1801
Department of Health,NHS England,30/09/2014,General Dental services and personal dental services,Primary Care & Secondary Dental,MEDWAY NHS FOUNDATION TRUST,5169434," 71,720.00 ", -   ,1835
Department of Health,NHS England,30/09/2014,General Dental services and personal dental services,Primary Care & Secondary Dental,NOTTINGHAM UNIVERSITY HOSPITALS NHS TRUST,5179075," 47,280.00 ", -   ,2000057683
Department of Health,NHS England,30/09/2014,General Dental services and personal dental services,Primary Care & Secondary Dental,OXFORD UNIVERSITY HOSPITALS NHS TRUST,5178982," 26,650.45 ", -   ,8189669
Department of Health,NHS England,30/09/2014,General Dental services and personal dental services,Primary Care & Secondary Dental,OXFORD UNIVERSITY HOSPITALS NHS TRUST,5179341," 31,127.52 ", -   ,8193152
Department of Health,NHS England,30/09/2014,General Dental services and personal dental services,Primary Care & Secondary Dental,POOLE HOSPITAL NHS FOUNDATION TRUST,5179222," 383,497.00 ",654 9463 02,P0142955
Department of Health,NHS England,30/09/2014,General Dental services and personal dental services,Primary Care & Secondary Dental,PORTSMOUTH HOSPITALS NHS TRUST,4837376," 453,321.67 ", -   ,9269975
Department of Health,NHS England,30/09/2014,General Dental services and personal dental services,Primary Care & Secondary Dental,PORTSMOUTH HOSPITALS NHS TRUST,5179208," 482,663.92 ", -   ,9273295
Department of Health,NHS England,30/09/2014,General Dental services and personal dental services,Primary Care & Secondary Dental,ROYAL BOURNEMOUTH AND CHRISTCHURCH HOSPITALS NHS FOUNDATION TRUST,5179105," 312,792.00 ", -   ,M0148529
Department of Health,NHS England,30/09/2014,General Dental services and personal dental services,Primary Care & Secondary Dental,ROYAL UNITED HOSPITAL BATH NHS TRUST,4788889," 190,301.54 ", -   ,10322122
Department of Health,NHS England,30/09/2014,General Dental services and personal dental services,Primary Care & Secondary Dental,SOUTH TEES HOSPITALS NHS FOUNDATION TRUST,4803185," 74,327.86 ", -   ,3510013500
Department of Health,NHS England,30/09/2014,General Dental services and personal dental services,Primary Care & Secondary Dental,SOUTH TEES HOSPITALS NHS FOUNDATION TRUST,5179342,"-447,947.00 ", -   ,919
Department of Health,NHS England,30/09/2014,General Dental services and personal dental services,Primary Care & Secondary Dental,SOUTHAMPTON UNIVERSITY HOSPITALS NHS FOUNDATION TRUST,5179207," 298,917.00 ", -   ,7248491
Department of Health,NHS England,30/09/2014,General Dental services and personal dental services,Primary Care & Secondary Dental,STAFFORDSHIRE AND STOKE ON TRENT PARTNERSHIP NHS TRUST,4777118," 382,903.00 ", -   ,51345086
Department of Health,NHS England,30/09/2014,General Dental services and personal dental services,Primary Care & Secondary Dental,WALSALL HEALTHCARE NHS TRUST,4803190," 105,032.33 ", -   ,C036693
Department of Health,NHS England,30/09/2014,General Dental services and personal dental services,Primary Care & Secondary Dental,YORKSHIRE AMBULANCE SERVICE NHS TRUST,5179121," 63,441.00 ", -   ,2810005909
Department of Health,NHS England,30/09/2014,General Opthalmic services,Capital,BOLTON VISIONPLUS LTD,4964187," 71,676.11 ", -   ,4364067_S
Department of Health,NHS England,30/09/2014,General Opthalmic services,Capital,JSR OPTICIANS,4986700," 25,404.11 ", -   ,4350272_S
Department of Health,NHS England,30/09/2014,General Opthalmic services,Capital,SPECSAVERS OPTICIANS,4856080," 26,537.84 ",771629900,4343322_S
Department of Health,NHS England,30/09/2014,General Opthalmic services,Capital,SPECSAVERS OPTICIANS,4877105," 33,464.60 ",771629900,4344549_S
Department of Health,NHS England,30/09/2014,General Opthalmic services,Capital,SPECSAVERS OPTICIANS,4877905," 27,915.30 ",771629900,4347005_S
Department of Health,NHS England,30/09/2014,General Opthalmic services,Capital,SPECSAVERS OPTICIANS,4889463," 25,168.25 ",771629900,4348044_S
Department of Health,NHS England,30/09/2014,General Opthalmic services,Capital,SPECSAVERS OPTICIANS,4906026," 29,602.34 ",771629900,4338726_S
Department of Health,NHS England,30/09/2014,General Opthalmic services,Capital,SPECSAVERS OPTICIANS,4906701," 64,113.01 ",771629900,4329783_S
Department of Health,NHS England,30/09/2014,General Opthalmic services,Capital,SPECSAVERS OPTICIANS,4907033," 69,232.96 ",771629900,4333308_S
Department of Health,NHS England,30/09/2014,General Opthalmic services,Capital,SPECSAVERS OPTICIANS,4907118," 25,720.90 ",771629900,4333331_S
Department of Health,NHS England,30/09/2014,General Opthalmic services,Capital,SPECSAVERS OPTICIANS,4907120," 74,382.25 ",771629900,4333262_S
Department of Health,NHS England,30/09/2014,General Opthalmic services,Capital,SPECSAVERS OPTICIANS,4907617," 25,172.30 ",771629900,4343633_S
Department of Health,NHS England,30/09/2014,General Opthalmic services,Capital,SPECSAVERS OPTICIANS,4908871," 29,265.70 ",771629900,4326741_S
Department of Health,NHS England,30/09/2014,General Opthalmic services,Capital,SPECSAVERS OPTICIANS,4908878," 25,996.30 ",771629900,4326761_S
Department of Health,NHS England,30/09/2014,General Opthalmic services,Capital,SPECSAVERS OPTICIANS,4909038," 26,986.90 ",771629900,4326772_S
Department of Health,NHS England,30/09/2014,General Opthalmic services,Capital,SPECSAVERS OPTICIANS,4919747," 34,301.62 ",771629900,4333268_S
Department of Health,NHS England,30/09/2014,General Opthalmic services,Capital,SPECSAVERS OPTICIANS,4919782," 58,342.95 ",771629900,4326739_S
Department of Health,NHS England,30/09/2014,General Opthalmic services,Capital,SPECSAVERS OPTICIANS,4922109," 59,757.48 ",771629900,4314134_S
Department of Health,NHS England,30/09/2014,General Opthalmic services,Capital,SPECSAVERS OPTICIANS,4922220," 66,088.15 ",771629900,4350187_S
Department of Health,NHS England,30/09/2014,General Opthalmic services,Capital,SPECSAVERS OPTICIANS,4922296," 56,040.04 ",771629900,4350204_S
Department of Health,NHS England,30/09/2014,General Opthalmic services,Capital,SPECSAVERS OPTICIANS,4923968," 64,470.37 ",771629900,4348512_S
Department of Health,NHS England,30/09/2014,General Opthalmic services,Capital,SPECSAVERS OPTICIANS,4926211," 62,735.96 ",771629900,4347770_S
Department of Health,NHS England,30/09/2014,General Opthalmic services,Capital,SPECSAVERS OPTICIANS,4926541," 91,402.32 ",771629900,4345396_S
Department of Health,NHS England,30/09/2014,General Opthalmic services,Capital,SPECSAVERS OPTICIANS,4927228," 33,042.60 ",771629900,4358645_S
Department of Health,NHS England,30/09/2014,General Opthalmic services,Capital,SPECSAVERS OPTICIANS,4927387," 84,843.95 ",771629900,4358618_S
Department of Health,NHS England,30/09/2014,General Opthalmic services,Capital,SPECSAVERS OPTICIANS,4928349," 25,953.00 ",771629900,4358454_S
Department of Health,NHS England,30/09/2014,General Opthalmic services,Capital,SPECSAVERS OPTICIANS,4928353," 25,446.60 ",771629900,4358529_S
Department of Health,NHS England,30/09/2014,General Opthalmic services,Capital,SPECSAVERS OPTICIANS,4962830," 79,151.24 ",771629900,4361272_S
Department of Health,NHS England,30/09/2014,General Opthalmic services,Capital,SPECSAVERS OPTICIANS,4963341," 75,544.60 ",771629900,4359137_S
Department of Health,NHS England,30/09/2014,General Opthalmic services,Capital,SPECSAVERS OPTICIANS,4963445," 97,224.75 ",771629900,4355983_S
Department of Health,NHS England,30/09/2014,General Opthalmic services,Capital,SPECSAVERS OPTICIANS,4963446,"-35,704.00 ",771629900,4355983_C
Department of Health,NHS England,30/09/2014,General Opthalmic services,Capital,SPECSAVERS OPTICIANS,4963629," 59,388.05 ",771629900,4353974_S
Department of Health,NHS England,30/09/2014,General Opthalmic services,Capital,SPECSAVERS OPTICIANS,4965651," 26,079.60 ",771629900,4357671_S
Department of Health,NHS England,30/09/2014,General Opthalmic services,Capital,SPECSAVERS OPTICIANS,4965720," 102,614.43 ",771629900,4329749_S
Department of Health,NHS England,30/09/2014,General Opthalmic services,Capital,SPECSAVERS OPTICIANS,4974755," 65,420.95 ",771629900,4364064_S
Department of Health,NHS England,30/09/2014,General Opthalmic services,Capital,SPECSAVERS OPTICIANS,4984731," 25,256.70 ",771629900,4365347_S
Department of Health,NHS England,30/09/2014,General Opthalmic services,Capital,SPECSAVERS OPTICIANS,4985744," 25,446.60 ",771629900,4352387_S
Department of Health,NHS England,30/09/2014,General Opthalmic services,Capital,SPECSAVERS OPTICIANS,4985935," 26,564.90 ",771629900,4365684_S
Department of Health,NHS England,30/09/2014,General Opthalmic services,Capital,SPECSAVERS OPTICIANS,4986284," 25,066.80 ",771629900,4359096_S
Department of Health,NHS England,30/09/2014,General Opthalmic services,Capital,SPECSAVERS OPTICIANS,4986751," 30,134.83 ",771629900,4350262_S
Department of Health,NHS England,30/09/2014,General Opthalmic services,Capital,SPECSAVERS OPTICIANS,5001409," 51,805.03 ",771629900,4346881_S
Department of Health,NHS England,30/09/2014,General Opthalmic services,Capital,SPECSAVERS OPTICIANS,5001453," 63,831.38 ",771629900,4346892_S
Department of Health,NHS England,30/09/2014,General Opthalmic services,Capital,SPECSAVERS OPTICIANS,5001652," 25,385.70 ",771629900,4366873_S
Department of Health,NHS England,30/09/2014,General Opthalmic services,Capital,SPECSAVERS OPTICIANS,5001786," 34,876.10 ",771629900,4366901_S
Department of Health,NHS England,30/09/2014,General Opthalmic services,Capital,SPECSAVERS OPTICIANS,5002675," 61,221.25 ",771629900,4333710_S
Department of Health,NHS England,30/09/2014,General Opthalmic services,Capital,SPECSAVERS OPTICIANS,5002740," 58,758.53 ",771629900,4333677_S
Department of Health,NHS England,30/09/2014,General Opthalmic services,Capital,SPECSAVERS OPTICIANS,5002748," 56,646.65 ",771629900,4333702_S
Department of Health,NHS England,30/09/2014,General Opthalmic services,Capital,SPECSAVERS OPTICIANS,5014908," 60,017.72 ",771629900,4362040_S
Department of Health,NHS England,30/09/2014,General Opthalmic services,Capital,SPECSAVERS OPTICIANS,5014969," 55,497.83 ",771629900,4362041_S
Department of Health,NHS England,30/09/2014,General Opthalmic services,Capital,SPECSAVERS OPTICIANS,5028809," 27,365.28 ",771629900,4365982_S
Department of Health,NHS England,30/09/2014,General Opthalmic services,Capital,SPECSAVERS OPTICIANS,5028864," 25,045.70 ",771629900,4368928_S
Department of Health,NHS England,30/09/2014,General Opthalmic services,Capital,SPECSAVERS OPTICIANS,5029016," 26,945.54 ",771629900,4368959_S
Department of Health,NHS England,30/09/2014,General Opthalmic services,Capital,SPECSAVERS OPTICIANS,5044271," 74,031.64 ",771629900,4370432_S
Department of Health,NHS England,30/09/2014,General Opthalmic services,Capital,SPECSAVERS OPTICIANS,5045384," 29,286.60 ",771629900,4372065_S
Department of Health,NHS England,30/09/2014,General Opthalmic services,Capital,SPECSAVERS OPTICIANS,5056775," 25,531.77 ",771629900,4367782_S
Department of Health,NHS England,30/09/2014,General Opthalmic services,Capital,SPECSAVERS OPTICIANS,5057075," 57,540.61 ",771629900,4367875_S
Department of Health,NHS England,30/09/2014,General Opthalmic services,Capital,SPECSAVERS OPTICIANS,5077178," 27,001.30 ",771629900,4373028_S
Department of Health,NHS England,30/09/2014,General Opthalmic services,Capital,SPECSAVERS OPTICIANS,5087151," 25,319.00 ",771629900,4372878_S
Department of Health,NHS England,30/09/2014,General Opthalmic services,Capital,SPECSAVERS OPTICIANS,5088679," 64,676.85 ",771629900,4367809_S
Department of Health,NHS England,30/09/2014,General Opthalmic services,Capital,SPECSAVERS OPTICIANS,5109401," 91,119.91 ",771629900,4365938_S
Department of Health,NHS England,30/09/2014,General Opthalmic services,Capital,SPECSAVERS OPTICIANS,5109477," 59,272.36 ",771629900,4368660_S
Department of Health,NHS England,30/09/2014,General Opthalmic services,Capital,SPECSAVERS OPTICIANS,5109500," 25,277.80 ",771629900,4368622_S
Department of Health,NHS England,30/09/2014,General Opthalmic services,Capital,SPECSAVERS OPTICIANS,5111410," 32,299.90 ",771629900,4374921_S
Department of Health,NHS England,30/09/2014,General Opthalmic services,Capital,SPECSAVERS OPTICIANS,5114007," 61,905.39 ",771629900,4375050_S
Department of Health,NHS England,30/09/2014,General Opthalmic services,Capital,SPECSAVERS OPTICIANS,5114627," 30,837.70 ",771629900,4375208_S
Department of Health,NHS England,30/09/2014,General Opthalmic services,Capital,SPECSAVERS OPTICIANS,5126050," 65,735.30 ",771629900,4375239_S
Department of Health,NHS England,30/09/2014,General Opthalmic services,Capital,VIRGIN CARE SERVICES LTD,4944226," 29,179.00 ", -   ,47176674
Department of Health,NHS England,30/09/2014,General Opthalmic services,Primary Care & Secondary Dental,SPECSAVERS OPTICIANS,4821647," 31,744.87 ",771629900,4333351_S
Department of Health,NHS England,30/09/2014,General Opthalmic services,Primary Care & Secondary Dental,SPECSAVERS OPTICIANS,4821703," 26,264.97 ",771629900,4333972_S
Department of Health,NHS England,30/09/2014,General Opthalmic services,Primary Care & Secondary Dental,SPECSAVERS OPTICIANS,4821737," 34,392.26 ",771629900,4333745_S
Department of Health,NHS England,30/09/2014,GPMS/APMS and PCTMS,Capital,A F FROLEY,5087150," 30,726.48 ", -   ,LNP000010141
Department of Health,NHS England,30/09/2014,GPMS/APMS and PCTMS,Capital,A HAFEEZ,4925484," 31,856.32 ", -   ,LNP000009803
Department of Health,NHS England,30/09/2014,GPMS/APMS and PCTMS,Capital,A MOGHAL,4944780," 46,318.33 ", -   ,LNC000006052
Department of Health,NHS England,30/09/2014,GPMS/APMS and PCTMS,Capital,ABBEY DALE MEDICAL CENTRE,5112385," 28,103.67 ", -   ,LA000013245
Department of Health,NHS England,30/09/2014,GPMS/APMS and PCTMS,Capital,ABBEY HOUSE MEDICAL PRACTICE,4922795," 155,889.11 ", -   ,NO000007278
Department of Health,NHS England,30/09/2014,GPMS/APMS and PCTMS,Capital,ABBEY LANE SURGERY,4923520,"-25,057.91 ", -   ,SHE000005469
Department of Health,NHS England,30/09/2014,GPMS/APMS and PCTMS,Capital,ABBEY LANE SURGERY,4923524," 48,317.93 ", -   ,SHE000005470
Department of Health,NHS England,30/09/2014,GPMS/APMS and PCTMS,Capital,ABBEY MEAD SURGERY,5062737," 101,805.25 ", -   ,SO000019669
Department of Health,NHS England,30/09/2014,GPMS/APMS and PCTMS,Capital,ABBEY MEDICAL CENTER KENILWORTH,5060391," 74,318.63 ", -   ,WA000006720
Department of Health,NHS England,30/09/2014,GPMS/APMS and PCTMS,Capital,ABBEY MEDICAL CENTER LONDON,5111304," 62,866.06 ", -   ,LND000006517
Department of Health,NHS England,30/09/2014,GPMS/APMS and PCTMS,Capital,ABBEY MEDICAL PRACTICE EVESHAM,5056527," 90,582.04 ", -   ,WR000008191
Department of Health,NHS England,30/09/2014,GPMS/APMS and PCTMS,Capital,ABBEY MEDICAL PRACTICE WELLINGBOROUGH,4922801," 106,423.50 ", -   ,NO000007280
Department of Health,NHS England,30/09/2014,GPMS/APMS and PCTMS,Capital,ABBEY PRACTICE GROUP,5057402," 37,660.16 ", -   ,DUD000002608
Department of Health,NHS England,30/09/2014,GPMS/APMS and PCTMS,Capital,ABBEY ROAD HEALTH CENTRE,5059657," 45,931.13 ", -   ,LNA000008970
Department of Health,NHS England,30/09/2014,GPMS/APMS and PCTMS,Capital,ABBEY SURGERY TAVISTOCK,5076545," 87,219.56 ", -   ,DN000015355
Department of Health,NHS England,30/09/2014,GPMS/APMS and PCTMS,Capital,ABBEY VIEW MEDICAL CENTRE,4944874," 96,341.60 ", -   ,DO000008936
Department of Health,NHS England,30/09/2014,GPMS/APMS and PCTMS,Capital,ABBEY WOOD SURGERY,4928463," 61,239.53 ", -   ,LNW000004438
Department of Health,NHS England,30/09/2014,GPMS/APMS and PCTMS,Capital,ABBOTSBURY ROAD SURGERY,5087125," 54,688.34 ", -   ,DO000009148
Department of Health,NHS England,30/09/2014,GPMS/APMS and PCTMS,Capital,ABBOTT & PATEL,5089466," 38,031.06 ", -   ,DR000006907
Department of Health,NHS England,30/09/2014,GPMS/APMS and PCTMS,Capital,ABBOTTSWOOD MEDICAL CENTRE,5056529," 64,036.94 ", -   ,WR000008193
Department of Health,NHS England,30/09/2014,GPMS/APMS and PCTMS,Capital,ABBOTTSWOOD MEDICAL CENTRE,5129773," 30,848.68 ", -   ,WR000008404
Department of Health,NHS England,30/09/2014,GPMS/APMS and PCTMS,Capital,ABDI SHS,5059319," 28,852.88 ", -   ,LIP000008318
Department of Health,NHS England,30/09/2014,GPMS/APMS and PCTMS,Capital,ABERFELDY STREET PRACTICE,5059659," 36,458.77 ", -   ,LNA000008972
Department of Health,NHS England,30/09/2014,GPMS/APMS and PCTMS,Capital,ABERNETHY HOUSE,4927929," 99,356.49 ", -   ,LNE000007067
Department of Health,NHS England,30/09/2014,GPMS/APMS and PCTMS,Capital,ABINGDON HEALTH CENTRE,4930617," 72,708.72 ", -   ,LNJ000005598
Department of Health,NHS England,30/09/2014,GPMS/APMS and PCTMS,Capital,ABINGDON SURGERY,5110950," 67,356.02 ", -   ,OX000007473
Department of Health,NHS England,30/09/2014,GPMS/APMS and PCTMS,Capital,ABINGTON MEDICAL CENTRE,4922806," 99,898.67 ", -   ,NO000007282
Department of Health,NHS England,30/09/2014,GPMS/APMS and PCTMS,Capital,ABINGTON PARK SURGERY,4922808," 73,848.83 ", -   ,NO000007284
Department of Health,NHS England,30/09/2014,GPMS/APMS and PCTMS,Capital,ABRAHAM K K & PARTNER,5109603," 33,415.95 ", -   ,EX000022470
Department of Health,NHS England,30/09/2014,GPMS/APMS and PCTMS,Capital,ACCRINGTON VIC HAC,5112389," 165,000.00 ", -   ,LA000013249
Department of Health,NHS England,30/09/2014,GPMS/APMS and PCTMS,Capital,ACORN GROUP PRACTICE,5075617," 45,408.95 ", -   ,LNN000005834
Department of Health,NHS England,30/09/2014,GPMS/APMS and PCTMS,Capital,ACORN MEDICAL CENTRE,5044315," 32,428.74 ", -   ,LNK000002655
Department of Health,NHS England,30/09/2014,GPMS/APMS and PCTMS,Capital,ACORNS SURGERY,4925707," 97,083.31 ", -   ,LNS000011966
Department of Health,NHS England,30/09/2014,GPMS/APMS and PCTMS,Capital,ACORNS SURGERY,5029582," 29,953.16 ", -   ,CH000009096
Department of Health,NHS England,30/09/2014,GPMS/APMS and PCTMS,Capital,ACRE SURGERY NORTHWOOD HEALTH CENTRE,4908637,"-31,344.20 ", -   ,LNK000002575
Department of Health,NHS England,30/09/2014,GPMS/APMS and PCTMS,Capital,ACRE SURGERY NORTHWOOD HEALTH CENTRE,4908638," 62,892.32 ", -   ,LNK000002576
Department of Health,NHS England,30/09/2014,GPMS/APMS and PCTMS,Capital,ACRESWOOD SURGERY,5112391," 48,022.77 ", -   ,LA000013251
Department of Health,NHS England,30/09/2014,GPMS/APMS and PCTMS,Capital,ADAM HOUSE MEDICAL CENTRE,4922930," 39,200.42 ", -   ,DE000011882
Department of Health,NHS England,30/09/2014,GPMS/APMS and PCTMS,Capital,ADAM PRACTICE,4924497,"-42,395.80 ", -   ,DO000008939
Department of Health,NHS England,30/09/2014,GPMS/APMS and PCTMS,Capital,ADAM PRACTICE,4924498," 269,838.13 ", -   ,DO000008940
Department of Health,NHS England,30/09/2014,GPMS/APMS and PCTMS,Capital,ADAMS P & PARTNERS,5077290," 32,172.23 ", -   ,SY000010011
Department of Health,NHS England,30/09/2014,GPMS/APMS and PCTMS,Capital,ADDINGTON ROAD SURGERY,5001805," 66,696.69 ", -   ,LNT000004244
Department of Health,NHS England,30/09/2014,GPMS/APMS and PCTMS,Capital,ADELAIDE GP SURGERY,4906379,"-50,000.00 ", -   ,SO000019541
Department of Health,NHS England,30/09/2014,GPMS/APMS and PCTMS,Capital,ADELAIDE GP SURGERY,4906380," 102,848.66 ", -   ,SO000019542
Department of Health,NHS England,30/09/2014,GPMS/APMS and PCTMS,Capital,ADELAIDE MEDICAL CENTRE,5056250,"-35,312.50 ", -   ,SO000019676
Department of Health,NHS England,30/09/2014,GPMS/APMS and PCTMS,Capital,ADELAIDE MEDICAL CENTRE,5056251," 158,273.85 ", -   ,SO000019677
Department of Health,NHS England,30/09/2014,GPMS/APMS and PCTMS,Capital,ADELAIDE MEDICAL CENTRE BLAYDON,5110733," 71,653.23 ", -   ,GAT000004272
Department of Health,NHS England,30/09/2014,GPMS/APMS and PCTMS,Capital,ADELAIDE MEDICAL CENTRE LONDON,5125886," 66,947.89 ", -   ,LND000006519
Department of Health,NHS England,30/09/2014,GPMS/APMS and PCTMS,Capital,ADELAIDE STREET SURGERY,5112397," 83,605.75 ", -   ,LA000013257
Department of Health,NHS England,30/09/2014,GPMS/APMS and PCTMS,Capital,ADSHALL ROAD MEDICAL PRACTICE,5056116," 27,523.17 ", -   ,SPT000003110
Department of Health,NHS England,30/09/2014,GPMS/APMS and PCTMS,Capital,ADSWOOD ROAD SURGERY,4905791," 25,293.04 ", -   ,SPT000003032
Department of Health,NHS England,30/09/2014,GPMS/APMS and PCTMS,Capital,ADUR & PARTNERS,4921619," 34,810.63 ", -   ,LNC000006054
Department of Health,NHS England,30/09/2014,GPMS/APMS and PCTMS,Capital,ADUR MEDICAL GROUP,5058827," 43,606.77 ", -   ,TW000012273
Department of Health,NHS England,30/09/2014,GPMS/APMS and PCTMS,Capital,AELFGAR SURGERY,4927627," 37,763.17 ", -   ,ST000016506
Department of Health,NHS England,30/09/2014,GPMS/APMS and PCTMS,Capital,AGARWAL & PARTNERS,4889159," 38,441.71 ", -   ,LIP000008047
Department of Health,NHS England,30/09/2014,GPMS/APMS and PCTMS,Capital,AGARWAL & PARTNERS,5059329,"-38,441.71 ", -   ,LIP000008329
Department of Health,NHS England,30/09/2014,GPMS/APMS and PCTMS,Capital,AGARWAL & PARTNERS,5059330," 61,409.52 ", -   ,LIP000008330
Department of Health,NHS England,30/09/2014,GPMS/APMS and PCTMS,Capital,AGHA B & PARTNERS,5125787," 37,688.67 ", -   ,EX000022480
Department of Health,NHS England,30/09/2014,GPMS/APMS and PCTMS,Capital,AGRAWAL,5059873," 40,141.49 ", -   ,WOM000003544
Department of Health,NHS England,30/09/2014,GPMS/APMS and PCTMS,Capital,AGRAWAL & PARTNER,5060471," 32,115.15 ", -   ,WBH000003204
Department of Health,NHS England,30/09/2014,GPMS/APMS and PCTMS,Capital,AHMAD & MONTEIRO,5056000," 33,525.23 ", -   ,LNC000006130
Department of Health,NHS England,30/09/2014,GPMS/APMS and PCTMS,Capital,AHMAD M & PARTNERS,4928589," 41,035.80 ", -   ,SY000009889
Department of Health,NHS England,30/09/2014,GPMS/APMS and PCTMS,Capital,AHMED & BUTT,4986024,"-41,439.38 ", -   ,YW000007714
Department of Health,NHS England,30/09/2014,GPMS/APMS and PCTMS,Capital,AHMED & BUTT,4986025," 79,278.08 ", -   ,YW000007715
Department of Health,NHS England,30/09/2014,GPMS/APMS and PCTMS,Capital,AHMED & PARTNERS,5063011," 33,927.73 ", -   ,WBH000003206
Department of Health,NHS England,30/09/2014,GPMS/APMS and PCTMS,Capital,AHMED I & PTS,5055821," 49,241.87 ", -   ,DE000012054
Department of Health,NHS England,30/09/2014,GPMS/APMS and PCTMS,Capital,AINSWORTH D & PARTNERS,5109614," 33,537.26 ", -   ,EX000022484
Department of Health,NHS England,30/09/2014,GPMS/APMS and PCTMS,Capital,AIR BALLOON SURGERY,4924678," 84,038.69 ", -   ,BRS000010785
Department of Health,NHS England,30/09/2014,GPMS/APMS and PCTMS,Capital,AIREBOROUGH FAMILY PRACTICE,4923784,"-29,930.23 ", -   ,LDS000009487
Department of Health,NHS England,30/09/2014,GPMS/APMS and PCTMS,Capital,AIREBOROUGH FAMILY PRACTICE,4944838," 54,943.43 ", -   ,LDS000009488
Department of Health,NHS England,30/09/2014,GPMS/APMS and PCTMS,Capital,AKERMAN MEDICAL PRACTICE,4925710," 38,067.83 ", -   ,LNS000011970
Department of Health,NHS England,30/09/2014,GPMS/APMS and PCTMS,Capital,ALBANY HOUSE MEDICAL CENTRE,4922810," 96,147.50 ", -   ,NO000007286
Department of Health,NHS England,30/09/2014,GPMS/APMS and PCTMS,Capital,ALBERT HOUSE CLINIC,5001917," 28,872.22 ", -   ,MID000006085
Department of Health,NHS England,30/09/2014,GPMS/APMS and PCTMS,Capital,ALBERT STREET SURGERY,4928013," 41,132.24 ", -   ,WA000006694
Department of Health,NHS England,30/09/2014,GPMS/APMS and PCTMS,Capital,ALBION HEALTH CENTRE,5059667," 49,938.76 ", -   ,LNA000008980
Department of Health,NHS England,30/09/2014,GPMS/APMS and PCTMS,Capital,ALBION MEDICAL PRACTICE,4905617," 67,205.07 ", -   ,GMK000004597
Department of Health,NHS England,30/09/2014,GPMS/APMS and PCTMS,Capital,ALBION MOUNT MEDICAL PRACTICE,4986026,"-48,205.51 ", -   ,YW000007716
Department of Health,NHS England,30/09/2014,GPMS/APMS and PCTMS,Capital,ALBION MOUNT MEDICAL PRACTICE,4986027," 89,683.62 ", -   ,YW000007717
Department of Health,NHS England,30/09/2014,GPMS/APMS and PCTMS,Capital,ALBION STREET HEALTH CENTRE,4925712," 95,379.94 ", -   ,LNS000011972
Department of Health,NHS England,30/09/2014,GPMS/APMS and PCTMS,Capital,ALBION SURGERY,4928469," 93,825.53 ", -   ,LNW000004444
Department of Health,NHS England,30/09/2014,GPMS/APMS and PCTMS,Capital,ALBRIGHTON MEDICAL PRACTICE,5029072," 59,704.79 ", -   ,SA000006999
Department of Health,NHS England,30/09/2014,GPMS/APMS and PCTMS,Capital,ALCESTER HEALTH CENTRE,5060546," 35,013.11 ", -   ,WA000006838
Department of Health,NHS England,30/09/2014,GPMS/APMS and PCTMS,Capital,ALDERMOOR SURGERY,5056232," 45,209.39 ", -   ,SO000019655
Department of Health,NHS England,30/09/2014,GPMS/APMS and PCTMS,Capital,ALDERSBROOK MEDICAL CENTRE,4944905," 29,168.08 ", -   ,LNB000005420
Department of Health,NHS England,30/09/2014,GPMS/APMS and PCTMS,Capital,ALEXANDER & PARTNER,5059074,"-59,650.42 ", -   ,STL000007002
Department of Health,NHS England,30/09/2014,GPMS/APMS and PCTMS,Capital,ALEXANDER & PARTNER,5059075," 74,565.69 ", -   ,STL000007003
Department of Health,NHS England,30/09/2014,GPMS/APMS and PCTMS,Capital,ALEXANDER GS,5111832," 37,160.30 ", -   ,MAN000005104
Department of Health,NHS England,30/09/2014,GPMS/APMS and PCTMS,Capital,ALEXANDER HOUSE SURGERY,4906373,"-48,724.83 ", -   ,SO000019535
Department of Health,NHS England,30/09/2014,GPMS/APMS and PCTMS,Capital,ALEXANDER HOUSE SURGERY,4906374," 109,587.33 ", -   ,SO000019536
Department of Health,NHS England,30/09/2014,GPMS/APMS and PCTMS,Capital,ALEXANDRA PRACTICE,5125927," 37,101.31 ", -   ,MAN000005106
Department of Health,NHS England,30/09/2014,GPMS/APMS and PCTMS,Capital,ALI A & PARTNER,5058527,"-42,922.43 ", -   ,BIK000004084
Department of Health,NHS England,30/09/2014,GPMS/APMS and PCTMS,Capital,ALI A & PARTNER,5058528," 52,584.07 ", -   ,BIK000004085
Department of Health,NHS England,30/09/2014,GPMS/APMS and PCTMS,Capital,ALL SAINTS MEDICAL CENTRE,4928458," 38,790.68 ", -   ,LNW000004432
Department of Health,NHS England,30/09/2014,GPMS/APMS and PCTMS,Capital,ALL SAINTS MEDICAL PRACTICE,4921786," 57,631.47 ", -   ,LNA000008934
Department of Health,NHS England,30/09/2014,GPMS/APMS and PCTMS,Capital,ALLEN & PARTNERS,4889143," 35,211.18 ", -   ,LIP000008031
Department of Health,NHS England,30/09/2014,GPMS/APMS and PCTMS,Capital,ALLEN & PARTNERS,5059314,"-87,631.37 ", -   ,LIP000008313
Department of Health,NHS England,30/09/2014,GPMS/APMS and PCTMS,Capital,ALLEN & PARTNERS,5059315," 108,237.18 ", -   ,LIP000008314
Department of Health,NHS England,30/09/2014,GPMS/APMS and PCTMS,Capital,ALLERTON ROAD MEDICAL CENTRE,4944788," 41,185.89 ", -   ,LNA000008932
Department of Health,NHS England,30/09/2014,GPMS/APMS and PCTMS,Capital,ALLUM MEDICAL CENTRE,4925210," 107,921.78 ", -   ,LNB000005422
Department of Health,NHS England,30/09/2014,GPMS/APMS and PCTMS,Capital,ALMA MEDICAL CENTRE,5001906,"-81,516.58 ", -   ,MID000006074
Department of Health,NHS England,30/09/2014,GPMS/APMS and PCTMS,Capital,ALMA MEDICAL CENTRE,5001907," 148,200.34 ", -   ,MID000006075
Department of Health,NHS England,30/09/2014,GPMS/APMS and PCTMS,Capital,ALMA PARTNERSHIP,4924483," 58,128.49 ", -   ,DO000008932
Department of Health,NHS England,30/09/2014,GPMS/APMS and PCTMS,Capital,ALMA ROAD SURGERY,5056236," 71,065.27 ", -   ,SO000019659
Department of Health,NHS England,30/09/2014,GPMS/APMS and PCTMS,Capital,ALMAN R & PARTNERS,4888927," 27,164.33 ", -   ,BIK000003976
Department of Health,NHS England,30/09/2014,GPMS/APMS and PCTMS,Capital,ALMAN R & PARTNERS,5058529,"-73,302.33 ", -   ,BIK000004086
Department of Health,NHS England,30/09/2014,GPMS/APMS and PCTMS,Capital,ALMAN R & PARTNERS,5058530," 90,729.25 ", -   ,BIK000004087
Department of Health,NHS England,30/09/2014,GPMS/APMS and PCTMS,Capital,ALMONDSBURY SURGERY,4924670," 30,339.30 ", -   ,BRS000010777
Department of Health,NHS England,30/09/2014,GPMS/APMS and PCTMS,Capital,ALRESFORD SURGERY,5056238," 56,141.29 ", -   ,SO000019661
Department of Health,NHS England,30/09/2014,GPMS/APMS and PCTMS,Capital,ALTON STREET SURGERY,5056525," 59,488.57 ", -   ,WR000008189
Department of Health,NHS England,30/09/2014,GPMS/APMS and PCTMS,Capital,ALTY & PARTNERS,5059317," 30,928.94 ", -   ,LIP000008316
Department of Health,NHS England,30/09/2014,GPMS/APMS and PCTMS,Capital,ALVANLEY FAMILY PRACTICE,4905787," 85,446.49 ", -   ,SPT000003028
Department of Health,NHS England,30/09/2014,GPMS/APMS and PCTMS,Capital,ALYMER LODGE COOKLEY PARTNERSHIP,4928110," 158,437.53 ", -   ,WR000008098
Department of Health,NHS England,30/09/2014,GPMS/APMS and PCTMS,Capital,AMERSHAM HEALTH CENTRE,5013580," 67,025.43 ", -   ,BU000006644
Department of Health,NHS England,30/09/2014,GPMS/APMS and PCTMS,Capital,AMERSHAM VALE TRAINING PRACTICE,4925703," 58,469.35 ", -   ,LNS000011960
Department of Health,NHS England,30/09/2014,GPMS/APMS and PCTMS,Capital,AMHERST MEDICAL,5002203," 73,454.80 ", -   ,KC000022664
Department of Health,NHS England,30/09/2014,GPMS/APMS and PCTMS,Capital,AMPTHILL PRACTICE,5125885," 60,000.61 ", -   ,LND000006511
Department of Health,NHS England,30/09/2014,GPMS/APMS and PCTMS,Capital,AMWELL PRACTICE,5111300," 55,231.38 ", -   ,LND000006513
Department of Health,NHS England,30/09/2014,GPMS/APMS and PCTMS,Capital,AMWELL STREET SURGERY,5112956," 61,969.63 ", -   ,HT000011539
Department of Health,NHS England,30/09/2014,GPMS/APMS and PCTMS,Capital,ANDOVER HEALTH CENTRE MEDICAL PRACTICE,5056244," 80,592.11 ", -   ,SO000019667
Department of Health,NHS England,30/09/2014,GPMS/APMS and PCTMS,Capital,ANDOVER MEDICAL CENTRE,5111302," 35,579.55 ", -   ,LND000006515
Department of Health,NHS England,30/09/2014,GPMS/APMS and PCTMS,Capital,ANDREOU & PARTNERS,5060466," 106,857.78 ", -   ,WBH000003202
Department of Health,NHS England,30/09/2014,GPMS/APMS and PCTMS,Capital,ANGEL SURGERY,4945070," 29,251.86 ", -   ,LNE000007065
Department of Health,NHS England,30/09/2014,GPMS/APMS and PCTMS,Capital,ANNANDALE MEDICAL CENTRE,4857681," 25,100.00 ", -   ,CH000008857
Department of Health,NHS England,30/09/2014,GPMS/APMS and PCTMS,Capital,ANNANDALE MEDICAL CENTRE,5029579,"-25,109.00 ", -   ,CH000009093
Department of Health,NHS England,30/09/2014,GPMS/APMS and PCTMS,Capital,ANNANDALE MEDICAL CENTRE,5029580," 36,505.37 ", -   ,CH000009094
Department of Health,NHS England,30/09/2014,GPMS/APMS and PCTMS,Capital,ANNANDALE SURGERY,5126005," 43,956.63 ", -   ,HT000011541
Department of Health,NHS England,30/09/2014,GPMS/APMS and PCTMS,Capital,ANSDELL MEDICAL CENTRE,5112387," 58,552.09 ", -   ,LA000013247
Department of Health,NHS England,30/09/2014,GPMS/APMS and PCTMS,Capital,APEX MEDICAL PRACTICE,5002207," 35,133.02 ", -   ,KC000022668
Department of Health,NHS England,30/09/2014,GPMS/APMS and PCTMS,Capital,APMS HARDEN,5057407," 33,040.00 ", -   ,WAL000003846
Department of Health,NHS England,30/09/2014,GPMS/APMS and PCTMS,Capital,APPLEBY HEALTH CENTRE,5013216," 75,559.36 ", -   ,CU000006473
Department of Health,NHS England,30/09/2014,GPMS/APMS and PCTMS,Capital,APPLES MEDICAL CENTRE,4924494," 35,701.43 ", -   ,DO000008938
Department of Health,NHS England,30/09/2014,GPMS/APMS and PCTMS,Capital,APSLEY SURGERY,4927625," 60,118.06 ", -   ,ST000016504
Department of Health,NHS England,30/09/2014,GPMS/APMS and PCTMS,Capital,ARBURY MEDICAL PRACTICE,5060393," 58,896.87 ", -   ,WA000006722
Department of Health,NHS England,30/09/2014,GPMS/APMS and PCTMS,Capital,ARCHWAY PRIMARY CARE TEAM,4927899," 52,638.90 ", -   ,LND000006329
Department of Health,NHS England,30/09/2014,GPMS/APMS and PCTMS,Capital,ARCHWOOD MEDICAL PRACTICE,4905789," 102,521.04 ", -   ,SPT000003030
Department of Health,NHS England,30/09/2014,GPMS/APMS and PCTMS,Capital,ARGYLE SURGERY,5057839," 42,678.17 ", -   ,LNM000008874
Department of Health,NHS England,30/09/2014,GPMS/APMS and PCTMS,Capital,ARGYLL HOUSE SURGERY,5056248," 25,936.15 ", -   ,SO000019673
Department of Health,NHS England,30/09/2014,GPMS/APMS and PCTMS,Capital,ARLESEY MEDICAL CENTRE - SUNNY HILL CIC,4924107," 28,333.33 ", -   ,BD000007291
Department of Health,NHS England,30/09/2014,GPMS/APMS and PCTMS,Capital,ARMADA FAMILY PRACTICE,4924676," 88,717.41 ", -   ,BRS000010783
Department of Health,NHS England,30/09/2014,GPMS/APMS and PCTMS,Capital,ARNEWOOD PRACTICE,5062738," 82,206.13 ", -   ,SO000019675
Department of Health,NHS England,30/09/2014,GPMS/APMS and PCTMS,Capital,ARNOLD MEDICAL CENTRE,5112393," 34,999.17 ", -   ,LA000013253
Department of Health,NHS England,30/09/2014,GPMS/APMS and PCTMS,Capital,ARORA SC,4908613," 56,543.08 ", -   ,MAN000004990
Department of Health,NHS England,30/09/2014,GPMS/APMS and PCTMS,Capital,ARRIVAL PRACTICE,5001913," 45,928.04 ", -   ,MID000006081
Department of Health,NHS England,30/09/2014,GPMS/APMS and PCTMS,Capital,ARROW LODGE MEDICAL CENTRE,5060395," 32,420.90 ", -   ,WA000006724
Department of Health,NHS England,30/09/2014,GPMS/APMS and PCTMS,Capital,ARUN MEDICAL CENTRE,4929617," 57,753.28 ", -   ,TW000011954
Department of Health,NHS England,30/09/2014,GPMS/APMS and PCTMS,Capital,ARUNDEL SURGERY,4844621," 34,525.00 ", -   ,TW000011831
Department of Health,NHS England,30/09/2014,GPMS/APMS and PCTMS,Capital,ARUNDEL SURGERY,5058820," 42,009.02 ", -   ,TW000012271
Department of Health,NHS England,30/09/2014,GPMS/APMS and PCTMS,Capital,AS GILL & P CHEEMA,5057409," 25,625.27 ", -   ,WAL000003848
Department of Health,NHS England,30/09/2014,GPMS/APMS and PCTMS,Capital,AS JAWAD,5062699," 29,939.25 ", -   ,LNC000006128
Department of Health,NHS England,30/09/2014,GPMS/APMS and PCTMS,Capital,ASH TREE HOUSE SURGERY,5112405," 65,967.52 ", -   ,LA000013265
Department of Health,NHS England,30/09/2014,GPMS/APMS and PCTMS,Capital,ASHBY TURN PRIMARY CARE PARTNERS,5107388," 73,150.16 ", -   ,KHU000008586
Department of Health,NHS England,30/09/2014,GPMS/APMS and PCTMS,Capital,ASHDOWN FOREST HEALTH CENTRE,5043723," 55,498.71 ", -   ,TE000010322
Department of Health,NHS England,30/09/2014,GPMS/APMS and PCTMS,Capital,ASHFIELD MEDICAL CENTRE BLACKPOOL,5125952," 109,904.22 ", -   ,LA000013267
Department of Health,NHS England,30/09/2014,GPMS/APMS and PCTMS,Capital,ASHFIELD MEDICAL CENTRE MILTON KEYNES,4925136," 76,642.58 ", -   ,BU000006562
Department of Health,NHS England,30/09/2014,GPMS/APMS and PCTMS,Capital,ASHFIELDS PRIMARY CARE CENTRE,4857683," 94,800.00 ", -   ,CH000008859
Department of Health,NHS England,30/09/2014,GPMS/APMS and PCTMS,Capital,ASHFIELDS PRIMARY CARE CENTRE,5032016,"-95,278.50 ", -   ,CH000009097
Department of Health,NHS England,30/09/2014,GPMS/APMS and PCTMS,Capital,ASHFIELDS PRIMARY CARE CENTRE,5032017," 137,269.30 ", -   ,CH000009098
Department of Health,NHS England,30/09/2014,GPMS/APMS and PCTMS,Capital,ASHFORD A L & PARTNERS,5125788," 112,859.03 ", -   ,EX000022488
Department of Health,NHS England,30/09/2014,GPMS/APMS and PCTMS,Capital,ASHTON GP SERVICE,4905615," 147,924.26 ", -   ,GMK000004595
Department of Health,NHS England,30/09/2014,GPMS/APMS and PCTMS,Capital,ASHURST PRIMARY CARE,5125948," 27,776.29 ", -   ,LA000013229
Department of Health,NHS England,30/09/2014,GPMS/APMS and PCTMS,Capital,ASHWELL SURGERY,5112950," 46,991.21 ", -   ,HT000011533
Department of Health,NHS England,30/09/2014,GPMS/APMS and PCTMS,Capital,ASHWOOD SURGERY,4905661," 39,639.72 ", -   ,KHU000008300
Department of Health,NHS England,30/09/2014,GPMS/APMS and PCTMS,Capital,ASHWORTH HM,5111830," 29,275.88 ", -   ,MAN000005102
Department of Health,NHS England,30/09/2014,GPMS/APMS and PCTMS,Capital,ASHWORTH STREET SURGERY,5060649," 68,044.06 ", -   ,ROC000004333
Department of Health,NHS England,30/09/2014,GPMS/APMS and PCTMS,Capital,ASKARI & PARTNER,5059312,"-37,123.13 ", -   ,LIP000008311
Department of Health,NHS England,30/09/2014,GPMS/APMS and PCTMS,Capital,ASKARI & PARTNER,5059313," 46,731.08 ", -   ,LIP000008312
Department of Health,NHS England,30/09/2014,GPMS/APMS and PCTMS,Capital,ASKEY & PARTNERS,5057404," 105,292.44 ", -   ,WAL000003842
Department of Health,NHS England,30/09/2014,GPMS/APMS and PCTMS,Capital,ASPATRIA MEDICAL GROUP,5013213," 76,803.14 ", -   ,CU000006467
Department of Health,NHS England,30/09/2014,GPMS/APMS and PCTMS,Capital,ASPLANDS MEDICAL CENTRE,4924105," 65,519.75 ", -   ,BD000007289
Department of Health,NHS England,30/09/2014,GPMS/APMS and PCTMS,Capital,ASPLEY MEDICAL CENTRE,4922540," 49,543.46 ", -   ,NN000012885
Department of Health,NHS England,30/09/2014,GPMS/APMS and PCTMS,Capital,ASPULL SURGERY,4905924," 33,590.75 ", -   ,WIG000007969
Department of Health,NHS England,30/09/2014,GPMS/APMS and PCTMS,Capital,ASQUITH SURGERY,4876614," 27,229.00 ", -   ,LD000011140
Department of Health,NHS England,30/09/2014,GPMS/APMS and PCTMS,Capital,ASSURA MEDICAL CENTRES LTD,4837589," 55,612.94 ", -   ,LINV008018
Department of Health,NHS England,30/09/2014,GPMS/APMS and PCTMS,Capital,ASSURA MEDICAL CENTRES LTD,4837593," 59,791.44 ", -   ,LINV008017
Department of Health,NHS England,30/09/2014,GPMS/APMS and PCTMS,Capital,ASTLEY & LEVICK,4926079,"-44,467.08 ", -   ,DR000006641
Department of Health,NHS England,30/09/2014,GPMS/APMS and PCTMS,Capital,ASTLEY & LEVICK,4926080," 85,217.66 ", -   ,DR000006642
Department of Health,NHS England,30/09/2014,GPMS/APMS and PCTMS,Capital,ASTON HEALTHCARE LTD,4888985," 149,728.78 ", -   ,STL000006773
Department of Health,NHS England,30/09/2014,GPMS/APMS and PCTMS,Capital,ASTON HEALTHCARE LTD,5029552," 30,252.02 ", -   ,BFS41
Department of Health,NHS England,30/09/2014,GPMS/APMS and PCTMS,Capital,ASTON HEALTHCARE LTD,5059078,"-378,602.79 ", -   ,STL000007006
Department of Health,NHS England,30/09/2014,GPMS/APMS and PCTMS,Capital,ASTON HEALTHCARE LTD,5059079," 459,415.60 ", -   ,STL000007007
Department of Health,NHS England,30/09/2014,GPMS/APMS and PCTMS,Capital,AT ACE AT APMS PRACTICE,4927434," 225,295.25 ", -   ,EX000022066
Department of Health,NHS England,30/09/2014,GPMS/APMS and PCTMS,Capital,AT MEDICS LTD BARLBY ROAD,4930615," 79,505.94 ", -   ,LNJ000005596
Department of Health,NHS England,30/09/2014,GPMS/APMS and PCTMS,Capital,AT MEDICS LTD MERRIAM AVENUE,4921676," 39,199.40 ", -   ,LNA000008818
Department of Health,NHS England,30/09/2014,GPMS/APMS and PCTMS,Capital,ATHENA MEDICAL CENTRE,5059655," 30,270.19 ", -   ,LNA000008968
Department of Health,NHS England,30/09/2014,GPMS/APMS and PCTMS,Capital,ATHERLEY HOUSE SURGERY,5056242," 25,449.90 ", -   ,SO000019665
Department of Health,NHS England,30/09/2014,GPMS/APMS and PCTMS,Capital,ATRIUM HEALTH CENTRE,4924487," 52,556.04 ", -   ,DO000008934
Department of Health,NHS England,30/09/2014,GPMS/APMS and PCTMS,Capital,ATTENBOROUGH SURGERY,5112954," 79,512.40 ", -   ,HT000011537
Department of Health,NHS England,30/09/2014,GPMS/APMS and PCTMS,Capital,AUCKLAND MEDICAL GROUP,5089462," 90,708.80 ", -   ,DR000006903
Department of Health,NHS England,30/09/2014,GPMS/APMS and PCTMS,Capital,AUCKLAND SURGERY,4926356," 47,796.35 ", -   ,LNR000005835
Department of Health,NHS England,30/09/2014,GPMS/APMS and PCTMS,Capital,AUDLEM MEDICAL PRACTICE,5029578," 32,852.96 ", -   ,CH000009092
Department of Health,NHS England,30/09/2014,GPMS/APMS and PCTMS,Capital,AUGHTON SURGERY,5112382," 33,603.79 ", -   ,LA000013241
Department of Health,NHS England,30/09/2014,GPMS/APMS and PCTMS,Capital,AVENUE HOUSE SURGERY,4922990," 78,187.92 ", -   ,DE000011945
Department of Health,NHS England,30/09/2014,GPMS/APMS and PCTMS,Capital,AVENUE MEDICAL CENTRE DENESIDE SEAHAM,5089464," 33,112.04 ", -   ,DR000006905
Department of Health,NHS England,30/09/2014,GPMS/APMS and PCTMS,Capital,AVENUE MEDICAL CENTRE SHEFFIELD,4923513,"-54,547.39 ", -   ,SHE000005467
Department of Health,NHS England,30/09/2014,GPMS/APMS and PCTMS,Capital,AVENUE MEDICAL CENTRE SHEFFIELD,4923517," 102,202.74 ", -   ,SHE000005468
Department of Health,NHS England,30/09/2014,GPMS/APMS and PCTMS,Capital,AVENUE MEDICAL CENTRE SLOUGH,4925055," 46,350.74 ", -   ,BE000008532
Department of Health,NHS England,30/09/2014,GPMS/APMS and PCTMS,Capital,AVENUES MEDICAL CENTRE,5107386," 34,475.61 ", -   ,KHU000008584
Department of Health,NHS England,30/09/2014,GPMS/APMS and PCTMS,Capital,AVICENNA HEALTH CENTRE,4925704,"-27,686.25 ", -   ,LNS000011961
Department of Health,NHS England,30/09/2014,GPMS/APMS and PCTMS,Capital,AVICENNA HEALTH CENTRE,4925705," 61,758.05 ", -   ,LNS000011962
Department of Health,NHS England,30/09/2014,GPMS/APMS and PCTMS,Capital,AVISFORD MEDICAL GROUP,4929615," 77,514.14 ", -   ,TW000011952
Department of Health,NHS England,30/09/2014,GPMS/APMS and PCTMS,Capital,AVONSIDE HEALTH CENTRE,5060389," 97,645.02 ", -   ,WA000006718
Department of Health,NHS England,30/09/2014,GPMS/APMS and PCTMS,Capital,AW SURGERIES,5057296," 119,812.75 ", -   ,DUD000002522
Department of Health,NHS England,30/09/2014,GPMS/APMS and PCTMS,Capital,AWBURN HOUSE MEDICAL PRACTICE,5055483," 46,736.89 ", -   ,GMK000004724
Department of Health,NHS England,30/09/2014,GPMS/APMS and PCTMS,Capital,AYLESBURY MEDICAL CENTRE,4944934," 214,758.16 ", -   ,LNS000011964
Department of Health,NHS England,30/09/2014,GPMS/APMS and PCTMS,Capital,AYLESFORD MEDICAL CENTRE,5002205," 38,125.54 ", -   ,KC000022666
Department of Health,NHS England,30/09/2014,GPMS/APMS and PCTMS,Capital,AYLESHAM MEDICAL PRACTICE,5002633," 41,799.08 ", -   ,KC000023116
Department of Health,NHS England,30/09/2014,GPMS/APMS and PCTMS,Capital,B HUDSON,4925487," 66,403.81 ", -   ,LNP000009807
Department of Health,NHS England,30/09/2014,GPMS/APMS and PCTMS,Capital,BA PATTOO,5111837," 27,629.24 ", -   ,MAN000005110
Department of Health,NHS England,30/09/2014,GPMS/APMS and PCTMS,Capital,BACKWELL&NAILSEA MEDICAL GROUP,4924674," 85,073.55 ", -   ,BRS000010781
Department of Health,NHS England,30/09/2014,GPMS/APMS and PCTMS,Capital,BACON ROAD MEDICAL CENTRE,5091701," 26,796.78 ", -   ,NF000011306
Department of Health,NHS England,30/09/2014,GPMS/APMS and PCTMS,Capital,BADGERSWOOD SURGERY,5056246," 68,808.88 ", -   ,SO000019671
Department of Health,NHS England,30/09/2014,GPMS/APMS and PCTMS,Capital,BAFFINS SURGERY,4906377,"-85,977.97 ", -   ,SO000019539
Department of Health,NHS England,30/09/2014,GPMS/APMS and PCTMS,Capital,BAFFINS SURGERY,4906378," 196,099.04 ", -   ,SO000019540
Department of Health,NHS England,30/09/2014,GPMS/APMS and PCTMS,Capital,BAGARY & BAGARY,5062990," 28,535.64 ", -   ,WOM000003542
Department of Health,NHS England,30/09/2014,GPMS/APMS and PCTMS,Capital,BAILEY M C & PARTNERS,5109601," 45,339.96 ", -   ,EX000022468
Department of Health,NHS England,30/09/2014,GPMS/APMS and PCTMS,Capital,BAINBRIDGE & PARTNERS,5059322," 29,781.08 ", -   ,LIP000008322
Department of Health,NHS England,30/09/2014,GPMS/APMS and PCTMS,Capital,BAIRD & PARTNERS,4889153," 37,330.90 ", -   ,LIP000008041
Department of Health,NHS England,30/09/2014,GPMS/APMS and PCTMS,Capital,BAIRD & PARTNERS,5059323,"-37,330.90 ", -   ,LIP000008323
Department of Health,NHS England,30/09/2014,GPMS/APMS and PCTMS,Capital,BAIRD & PARTNERS,5059324," 61,230.75 ", -   ,LIP000008324
Department of Health,NHS England,30/09/2014,GPMS/APMS and PCTMS,Capital,BAJEN J M & PARTNER,4927807," 56,009.51 ", -   ,EX000022223
Department of Health,NHS England,30/09/2014,GPMS/APMS and PCTMS,Capital,BAKERSFIELD MEDICAL CENTRE,4922542," 34,027.52 ", -   ,NN000012887
Department of Health,NHS England,30/09/2014,GPMS/APMS and PCTMS,Capital,BAKEWELL MEDICAL CENTRE,5055953," 41,981.02 ", -   ,DE000012186
Department of Health,NHS England,30/09/2014,GPMS/APMS and PCTMS,Capital,BAKHAT A,5111839," 57,427.18 ", -   ,MAN000005112
Department of Health,NHS England,30/09/2014,GPMS/APMS and PCTMS,Capital,BALAAM STREET PRACTICE,4921678," 53,179.83 ", -   ,LNA000008820
Department of Health,NHS England,30/09/2014,GPMS/APMS and PCTMS,Capital,BALBOROUGH MEDICAL PRACTICE,4922980," 35,410.00 ", -   ,DE000011935
Department of Health,NHS England,30/09/2014,GPMS/APMS and PCTMS,Capital,BALFOUR ROAD SURGERY,5057722," 26,024.80 ", -   ,LNB000005503
Department of Health,NHS England,30/09/2014,GPMS/APMS and PCTMS,Capital,BALHAM PARK SURGERY,4944912," 170,482.17 ", -   ,LNP000009809
Department of Health,NHS England,30/09/2014,GPMS/APMS and PCTMS,Capital,BALIGA KS,4926082," 30,243.44 ", -   ,DR000006644
Department of Health,NHS England,30/09/2014,GPMS/APMS and PCTMS,Capital,BALL TREE SURGERY,5058815," 49,072.70 ", -   ,TW000012269
Department of Health,NHS England,30/09/2014,GPMS/APMS and PCTMS,Capital,BALLATER,5001803," 52,988.98 ", -   ,LNT000004242
Department of Health,NHS England,30/09/2014,GPMS/APMS and PCTMS,Capital,BALMORAL GARDENS,5002209," 29,131.35 ", -   ,KC000022670
Department of Health,NHS England,30/09/2014,GPMS/APMS and PCTMS,Capital,BALMORAL SURGERY,5002612," 138,266.64 ", -   ,KC000023094
Department of Health,NHS England,30/09/2014,GPMS/APMS and PCTMS,Capital,BALMORE PARK SURGERY,4925059," 107,277.10 ", -   ,BE000008536
Department of Health,NHS England,30/09/2014,GPMS/APMS and PCTMS,Capital,BAMPTON MEDICAL PRACTICE,5110952," 49,608.53 ", -   ,OX000007475
Department of Health,NHS England,30/09/2014,GPMS/APMS and PCTMS,Capital,BANBURY ROAD MEDICAL CENTRE,5110954," 38,496.63 ", -   ,OX000007477
Department of Health,NHS England,30/09/2014,GPMS/APMS and PCTMS,Capital,BANGOR STREET HEALTH CENTRE,5112395," 34,672.25 ", -   ,LA000013255
Department of Health,NHS England,30/09/2014,GPMS/APMS and PCTMS,Capital,BANK HOUSE SURGERY HARTLEPOOL,5001915," 107,915.60 ", -   ,MID000006083
Department of Health,NHS England,30/09/2014,GPMS/APMS and PCTMS,Capital,BANKS SURGERY,5113638," 27,108.22 ", -   ,LD000011299
Department of Health,NHS England,30/09/2014,GPMS/APMS and PCTMS,Capital,BANNOCKBURN SURGERY,4928465," 37,722.80 ", -   ,LNW000004440
Department of Health,NHS England,30/09/2014,GPMS/APMS and PCTMS,Capital,BANSAL & READE,5059081," 29,431.64 ", -   ,STL000007009
Department of Health,NHS England,30/09/2014,GPMS/APMS and PCTMS,Capital,BANSAL A & PARTNER,5109608," 30,825.98 ", -   ,EX000022476
Department of Health,NHS England,30/09/2014,GPMS/APMS and PCTMS,Capital,BARING ROAD MEDICAL CENTRE,4944936," 46,634.83 ", -   ,LNS000011968
Department of Health,NHS England,30/09/2014,GPMS/APMS and PCTMS,Capital,BARKANTINE PRACTICE,4921680," 190,669.94 ", -   ,LNA000008822
Department of Health,NHS England,30/09/2014,GPMS/APMS and PCTMS,Capital,BARKANTINE PRACTICE,5151696," 62,510.00 ", -   ,WIC047
Department of Health,NHS England,30/09/2014,GPMS/APMS and PCTMS,Capital,BARKHAM J D T & PARTNER,5109610," 32,514.38 ", -   ,EX000022478
Department of Health,NHS England,30/09/2014,GPMS/APMS and PCTMS,Capital,BARKINGSIDE MEDICAL CENTRE,4925212," 35,995.31 ", -   ,LNB000005424
Department of Health,NHS England,30/09/2014,GPMS/APMS and PCTMS,Capital,BARMSTON MEDICAL CENTRE,4924401," 55,000.00 ", -   ,SUN000003384
Department of Health,NHS England,30/09/2014,GPMS/APMS and PCTMS,Capital,BARN SURGERY,4924500," 41,297.94 ", -   ,DO000008942
Department of Health,NHS England,30/09/2014,GPMS/APMS and PCTMS,Capital,BARN SURGERY,5058834," 27,075.73 ", -   ,TW000012275
Department of Health,NHS England,30/09/2014,GPMS/APMS and PCTMS,Capital,BARNARD CASTLE SURGERY,4926083,"-88,112.74 ", -   ,DR000006645
Department of Health,NHS England,30/09/2014,GPMS/APMS and PCTMS,Capital,BARNARD CASTLE SURGERY,4926084," 166,714.49 ", -   ,DR000006646
Department of Health,NHS England,30/09/2014,GPMS/APMS and PCTMS,Capital,BARNARD PRACTICE,4928467," 106,025.27 ", -   ,LNW000004442
Department of Health,NHS England,30/09/2014,GPMS/APMS and PCTMS,Capital,BARNETT & PARTNERS,4944094," 26,212.50 ", -   ,197294-09-SEP-2014
Department of Health,NHS England,30/09/2014,GPMS/APMS and PCTMS,Capital,BARNETT & PARTNERS,5059331,"-26,212.50 ", -   ,LIP000008331
Department of Health,NHS England,30/09/2014,GPMS/APMS and PCTMS,Capital,BARNETT & PARTNERS,5059332," 61,098.24 ", -   ,LIP000008332
Department of Health,NHS England,30/09/2014,GPMS/APMS and PCTMS,Capital,BARNOLDSWICK MEDICAL CENTRE,5112401," 66,530.01 ", -   ,LA000013261
Department of Health,NHS England,30/09/2014,GPMS/APMS and PCTMS,Capital,BARNT GREEN SURGERY,4928112," 46,898.70 ", -   ,WR000008100
Department of Health,NHS England,30/09/2014,GPMS/APMS and PCTMS,Capital,BARR LANE SURGERY,5060397," 37,461.48 ", -   ,WA000006726
Department of Health,NHS England,30/09/2014,GPMS/APMS and PCTMS,Capital,BARRACK LANE MEDICAL CENTRE,4878632," 103,705.33 ", -   ,SU000008303
Department of Health,NHS England,30/09/2014,GPMS/APMS and PCTMS,Capital,BARROWFORD SURGERY,5112403," 25,288.27 ", -   ,LA000013263
Department of Health,NHS England,30/09/2014,GPMS/APMS and PCTMS,Capital,BARTLEMAS SURGERY,5110956," 46,093.26 ", -   ,OX000007479
Department of Health,NHS England,30/09/2014,GPMS/APMS and PCTMS,Capital,BARTON HOUSE GROUP PRACTICE,5059665," 72,758.34 ", -   ,LNA000008978
Department of Health,NHS England,30/09/2014,GPMS/APMS and PCTMS,Capital,BARTON HOUSE SURGERY,5076385," 39,183.50 ", -   ,DO000009150
Department of Health,NHS England,30/09/2014,GPMS/APMS and PCTMS,Capital,BARTON WEBB PEPLOE PARTNERSHIP,5056253," 72,030.16 ", -   ,SO000019679
Department of Health,NHS England,30/09/2014,GPMS/APMS and PCTMS,Capital,BARUCH & PARTNERS,5075619," 32,156.65 ", -   ,LNN000005836
Department of Health,NHS England,30/09/2014,GPMS/APMS and PCTMS,Capital,BASLOW HEALTH CENTRE,5055955," 28,143.61 ", -   ,DE000012188
Department of Health,NHS England,30/09/2014,GPMS/APMS and PCTMS,Capital,BASLOW ROAD & SHOREHAM STREET SURGERIES,5108915," 77,461.46 ", -   ,SHE000005646
Department of Health,NHS England,30/09/2014,GPMS/APMS and PCTMS,Capital,BASSETT ROAD MEDICAL PRACTICE,5113905," 105,702.23 ", -   ,BD000007421
Department of Health,NHS England,30/09/2014,GPMS/APMS and PCTMS,Capital,BATES & PARTNERS RICHMOND,5075621," 49,118.69 ", -   ,LNN000005838
Department of Health,NHS England,30/09/2014,GPMS/APMS and PCTMS,Capital,BATES & PARTNERS WIRRAL,4888929," 31,251.54 ", -   ,BIK000003978
Department of Health,NHS England,30/09/2014,GPMS/APMS and PCTMS,Capital,BATES & PARTNERS WIRRAL,5058533,"-31,251.54 ", -   ,BIK000004090
Department of Health,NHS England,30/09/2014,GPMS/APMS and PCTMS,Capital,BATES & PARTNERS WIRRAL,5058534," 53,091.45 ", -   ,BIK000004091
Department of Health,NHS England,30/09/2014,GPMS/APMS and PCTMS,Capital,BATESON & PARTNERS,4889163," 30,993.19 ", -   ,LIP000008051
Department of Health,NHS England,30/09/2014,GPMS/APMS and PCTMS,Capital,BATESON & PARTNERS,5059333,"-30,993.19 ", -   ,LIP000008333
Department of Health,NHS England,30/09/2014,GPMS/APMS and PCTMS,Capital,BATESON & PARTNERS,5059334," 49,811.98 ", -   ,LIP000008334
Department of Health,NHS England,30/09/2014,GPMS/APMS and PCTMS,Capital,BATH LODGE PRACTICE,5056255," 73,109.66 ", -   ,SO000019681
Department of Health,NHS England,30/09/2014,GPMS/APMS and PCTMS,Capital,BATH ROAD SURGERY SLOUGH,5056736," 25,443.83 ", -   ,BE000008646
Department of Health,NHS England,30/09/2014,GPMS/APMS and PCTMS,Capital,BATHEASTON MEDICAL CENTRE,4924680," 36,299.47 ", -   ,BRS000010787
Department of Health,NHS England,30/09/2014,GPMS/APMS and PCTMS,Capital,BATTLEHILL HEALTH CENTRE,4924320," 111,810.44 ", -   ,NEW000004542
Department of Health,NHS England,30/09/2014,GPMS/APMS and PCTMS,Capital,BAYLIS T M & PARTNERS,5125784," 31,526.90 ", -   ,EX000022458
Department of Health,NHS England,30/09/2014,GPMS/APMS and PCTMS,Capital,BAYSWATER MEDICAL CENTRE,4930613," 61,394.62 ", -   ,LNJ000005594
Department of Health,NHS England,30/09/2014,GPMS/APMS and PCTMS,Capital,BEACON MEDICAL,4905663," 114,195.60 ", -   ,KHU000008302
Department of Health,NHS England,30/09/2014,GPMS/APMS and PCTMS,Capital,BEACON MEDICAL,5107384," 86,592.24 ", -   ,KHU000008582
Department of Health,NHS England,30/09/2014,GPMS/APMS and PCTMS,Capital,BEACON SURGERY,5001558," 63,578.14 ", -   ,TE000010061
Department of Health,NHS England,30/09/2014,GPMS/APMS and PCTMS,Capital,BEARSTED MEDICAL PRACTICE,5002199," 115,106.53 ", -   ,KC000022660
Department of Health,NHS England,30/09/2014,GPMS/APMS and PCTMS,Capital,BEARWOOD MEDICAL CENTRE,4944873," 83,897.82 ", -   ,DO000008930
Department of Health,NHS England,30/09/2014,GPMS/APMS and PCTMS,Capital,BEAUFORT ROAD SURGERY,5076380," 61,632.99 ", -   ,DO000009144
Department of Health,NHS England,30/09/2014,GPMS/APMS and PCTMS,Capital,BEAUMONT LEYS HEALTH CENTRE,4876612," 42,546.00 ", -   ,LD000011138
Department of Health,NHS England,30/09/2014,GPMS/APMS and PCTMS,Capital,BECCLES MEDICAL CENTRE,4907213," 115,902.53 ", -   ,NF000010752
Department of Health,NHS England,30/09/2014,GPMS/APMS and PCTMS,Capital,BECKETT HOUSE PRACTICE,4944932," 47,072.82 ", -   ,LNS000011950
Department of Health,NHS England,30/09/2014,GPMS/APMS and PCTMS,Capital,BECKINGTON FAMILY PRACTICE,5108394," 53,219.57 ", -   ,SM000005217
Department of Health,NHS England,30/09/2014,GPMS/APMS and PCTMS,Capital,BEDFORD HOUSE MEDICAL CENTRE,5055481," 47,303.95 ", -   ,GMK000004722
Department of Health,NHS England,30/09/2014,GPMS/APMS and PCTMS,Capital,BEDFORD STREET SURGERY,4925130," 71,616.33 ", -   ,BU000006558
Department of Health,NHS England,30/09/2014,GPMS/APMS and PCTMS,Capital,BEDFORDSHIRE AND HERTFORDSHIRE LMC LTD (STAT LEVY),5124839," 68,469.16 ", -   ,199169-23-SEP-2014
Department of Health,NHS England,30/09/2014,GPMS/APMS and PCTMS,Capital,BEDLINGTONSHIRE MEDICAL GROUP,4923734," 73,995.62 ", -   ,NR000004092
Department of Health,NHS England,30/09/2014,GPMS/APMS and PCTMS,Capital,BEDMINSTER FAMILY PRACTICE,4924668," 75,271.18 ", -   ,BRS000010775
Department of Health,NHS England,30/09/2014,GPMS/APMS and PCTMS,Capital,BEDWELL MEDICAL CENTRE,5112952," 71,070.01 ", -   ,HT000011535
Department of Health,NHS England,30/09/2014,GPMS/APMS and PCTMS,Capital,BEECH GROVE SURGERY,5056233,"-27,000.00 ", -   ,SO000019656
Department of Health,NHS England,30/09/2014,GPMS/APMS and PCTMS,Capital,BEECH GROVE SURGERY,5056234," 32,039.21 ", -   ,SO000019657
Department of Health,NHS England,30/09/2014,GPMS/APMS and PCTMS,Capital,BEECH HILL MEDICAL CENTRE,4905822," 81,342.71 ", -   ,WIG000007861
Department of Health,NHS England,30/09/2014,GPMS/APMS and PCTMS,Capital,BEECH HOUSE MEDICAL PRACTICE,4905785," 55,283.93 ", -   ,SPT000003026
Department of Health,NHS England,30/09/2014,GPMS/APMS and PCTMS,Capital,BEECH HOUSE SURGERY,5114157," 44,009.20 ", -   ,YN000008492
Department of Health,NHS England,30/09/2014,GPMS/APMS and PCTMS,Capital,BEECH TREE SURGERY,5114159," 95,014.91 ", -   ,YN000008494
Department of Health,NHS England,30/09/2014,GPMS/APMS and PCTMS,Capital,BEECHCROFT SURGERY,4919758," 37,511.00 ", -   ,NF000010754
Department of Health,NHS England,30/09/2014,GPMS/APMS and PCTMS,Capital,BEECHDALE SURGERY,4922538," 31,904.08 ", -   ,NN000012883
Department of Health,NHS England,30/09/2014,GPMS/APMS and PCTMS,Capital,BEECHES MEDICAL PRACTICE,5029989," 35,797.69 ", -   ,SA000007071
Department of Health,NHS England,30/09/2014,GPMS/APMS and PCTMS,Capital,BEECHWOOD GROUP PRACTICE,5013214," 41,397.46 ", -   ,CU000006469
Department of Health,NHS England,30/09/2014,GPMS/APMS and PCTMS,Capital,BEECHWOOD MEDICAL PRACTICE,5113244," 58,551.98 ", -   ,BRS000011151
Department of Health,NHS England,30/09/2014,GPMS/APMS and PCTMS,Capital,BEGGARWOOD SURGERY (THE),4906375,"-27,233.67 ", -   ,SO000019537
Department of Health,NHS England,30/09/2014,GPMS/APMS and PCTMS,Capital,BEGGARWOOD SURGERY (THE),4906376," 75,094.30 ", -   ,SO000019538
Department of Health,NHS England,30/09/2014,GPMS/APMS and PCTMS,Capital,BEHESHTI & PARTNERS,5062697," 29,200.91 ", -   ,LNC000006124
Department of Health,NHS England,30/09/2014,GPMS/APMS and PCTMS,Capital,BEHESHTI & PARTNERS,5089118," 25,305.00 ", -   ,LNC000006372
Department of Health,NHS England,30/09/2014,GPMS/APMS and PCTMS,Capital,BELFORD MEDICAL PRACTICE,4923736," 37,645.16 ", -   ,NR000004094
Department of Health,NHS England,30/09/2014,GPMS/APMS and PCTMS,Capital,BELGRAVE SURGERY,5114161," 29,087.87 ", -   ,YN000008496
Department of Health,NHS England,30/09/2014,GPMS/APMS and PCTMS,Capital,BELGRAVIA SURGERY,5015018," 41,100.17 ", -   ,LNJ000005770
Department of Health,NHS England,30/09/2014,GPMS/APMS and PCTMS,Capital,BELL HOUSE MEDICAL PRACTICE,5126034," 56,858.99 ", -   ,BD000007419
Department of Health,NHS England,30/09/2014,GPMS/APMS and PCTMS,Capital,BELL SURGERY,5110948," 80,408.95 ", -   ,OX000007471
Department of Health,NHS England,30/09/2014,GPMS/APMS and PCTMS,Capital,BELLEGROVE ROAD SURGERY,4928460," 63,213.69 ", -   ,LNW000004434
Department of Health,NHS England,30/09/2014,GPMS/APMS and PCTMS,Capital,BELLINGHAM GREEN SURGERY,4925696," 48,957.22 ", -   ,LNS000011952
Department of Health,NHS England,30/09/2014,GPMS/APMS and PCTMS,Capital,BELLINGHAM J M & PARTNERS,5109593," 55,090.82 ", -   ,EX000022460
Department of Health,NHS England,30/09/2014,GPMS/APMS and PCTMS,Capital,BELLINGHAM MEDICAL GROUP,4923738," 26,709.97 ", -   ,NR000004096
Department of Health,NHS England,30/09/2014,GPMS/APMS and PCTMS,Capital,BELMONT & SHERBURN MEDICAL GROUP,5089460," 50,677.83 ", -   ,DR000006901
Department of Health,NHS England,30/09/2014,GPMS/APMS and PCTMS,Capital,BELMONT HILL SURGERY,4925698," 45,385.39 ", -   ,LNS000011954
Department of Health,NHS England,30/09/2014,GPMS/APMS and PCTMS,Capital,BELMONT MEDICAL CENTRE,5044310," 44,162.67 ", -   ,LNK000002650
Department of Health,NHS England,30/09/2014,GPMS/APMS and PCTMS,Capital,BELSIZE PRIORY MEDICAL PRACTICE,5125884," 27,090.09 ", -   ,LND000006509
Department of Health,NHS England,30/09/2014,GPMS/APMS and PCTMS,Capital,BELVEDERE MEDICAL CENTRE,4928462," 47,539.95 ", -   ,LNW000004436
Department of Health,NHS England,30/09/2014,GPMS/APMS and PCTMS,Capital,BELVIDERE MEDICAL PRACTICE,5029991," 29,699.20 ", -   ,SA000007073
Department of Health,NHS England,30/09/2014,GPMS/APMS and PCTMS,Capital,BENFIELD PARK MEDICAL GROUP,5111514," 51,039.51 ", -   ,NEW000004695
Department of Health,NHS England,30/09/2014,GPMS/APMS and PCTMS,Capital,BENNETTS END SURGERY,4924368," 97,122.09 ", -   ,HT000011415
Department of Health,NHS England,30/09/2014,GPMS/APMS and PCTMS,Capital,BENNFIELD SURGERY,5060387," 74,679.68 ", -   ,WA000006716
Department of Health,NHS England,30/09/2014,GPMS/APMS and PCTMS,Capital,BENTHAM MEDICAL PRACTICE,5114163," 86,584.38 ", -   ,YN000008498
Department of Health,NHS England,30/09/2014,GPMS/APMS and PCTMS,Capital,BENTHAM ROAD HEALTH CENTRE,5125950," 79,863.61 ", -   ,LA000013237
Department of Health,NHS England,30/09/2014,GPMS/APMS and PCTMS,Capital,BENTLEY MEDICAL PRACTICE,5001908,"-44,674.83 ", -   ,MID000006076
Department of Health,NHS England,30/09/2014,GPMS/APMS and PCTMS,Capital,BENTLEY MEDICAL PRACTICE,5001909," 128,281.75 ", -   ,MID000006077
Department of Health,NHS England,30/09/2014,GPMS/APMS and PCTMS,Capital,BENTS GREEN SURGERY,4923509," 30,775.40 ", -   ,SHE000005466
Department of Health,NHS England,30/09/2014,GPMS/APMS and PCTMS,Capital,BERKSHIRE HEALTHCARE NHS FOUNDATION TRUST,4837727," 144,751.00 ", -   ,901735
Department of Health,NHS England,30/09/2014,GPMS/APMS and PCTMS,Capital,BERMONDSEY & LANSDOWNE MEDICAL MISSION,4925700," 116,938.89 ", -   ,LNS000011956
Department of Health,NHS England,30/09/2014,GPMS/APMS and PCTMS,Capital,BERMONDSEY SPA MEDICAL CENTRE,4925701," 63,296.97 ", -   ,LNS000011958
Department of Health,NHS England,30/09/2014,GPMS/APMS and PCTMS,Capital,BERNAYS & WHITEHOUSE LTD T/A KINGSHURST MEDICAL PRACTICE,5063087," 42,371.25 ", -   ,WMF000002219
Department of Health,NHS England,30/09/2014,GPMS/APMS and PCTMS,Capital,BERRY & PARTNERS,5108656," 75,737.28 ", -   ,DCR000003702
Department of Health,NHS England,30/09/2014,GPMS/APMS and PCTMS,Capital,BERRY LANE MEDICAL CENTRE,5112380," 60,999.94 ", -   ,LA000013239
Department of Health,NHS England,30/09/2014,GPMS/APMS and PCTMS,Capital,BERRYFIELDS MEDICAL CENTRE,4925133," 30,620.41 ", -   ,BU000006560
Department of Health,NHS England,30/09/2014,GPMS/APMS and PCTMS,Capital,BERSTED GREEN SURGERY,4844617," 61,575.00 ", -   ,TW000011827
Department of Health,NHS England,30/09/2014,GPMS/APMS and PCTMS,Capital,BERSTED GREEN SURGERY,5058808," 70,435.00 ", -   ,TW000012267
Department of Health,NHS England,30/09/2014,GPMS/APMS and PCTMS,Capital,BEST M & PARTNER,5109597," 33,669.73 ", -   ,EX000022464
Department of Health,NHS England,30/09/2014,GPMS/APMS and PCTMS,Capital,BETHESDA MEDICAL CENTRE,5127866," 97,712.93 ", -   ,KC000023777
Department of Health,NHS England,30/09/2014,GPMS/APMS and PCTMS,Capital,BETHNAL GREEN HEALTH CENTRE,5059653," 53,884.73 ", -   ,LNA000008966
Department of Health,NHS England,30/09/2014,GPMS/APMS and PCTMS,Capital,BEVAN,5059083," 28,040.65 ", -   ,STL000007011
Department of Health,NHS England,30/09/2014,GPMS/APMS and PCTMS,Capital,BEVAN HEALTHCARE CIC,4923228," 47,305.17 ", -   ,BRA000005798
Department of Health,NHS England,30/09/2014,GPMS/APMS and PCTMS,Capital,BEVERSBROOK MEDICAL CENTRE,4963904," 65,281.41 ", -   ,WL000008044
Department of Health,NHS England,30/09/2014,GPMS/APMS and PCTMS,Capital,BEWBUSH MEDICAL CENTRE,5058840," 35,361.38 ", -   ,TW000012277
Department of Health,NHS England,30/09/2014,GPMS/APMS and PCTMS,Capital,BEWDLEY MEDICAL CENTRE,4928114," 108,919.52 ", -   ,WR000008102
Department of Health,NHS England,30/09/2014,GPMS/APMS and PCTMS,Capital,BEWICK CRESCENT SURGERY,4926194,"-110,170.75 ", -   ,DR000006758
Department of Health,NHS England,30/09/2014,GPMS/APMS and PCTMS,Capital,BEWICK CRESCENT SURGERY,4926195," 208,342.83 ", -   ,DR000006759
Department of Health,NHS England,30/09/2014,GPMS/APMS and PCTMS,Capital,BEXLEY GROUP PRACTICE,4928471," 71,056.68 ", -   ,LNW000004446
Department of Health,NHS England,30/09/2014,GPMS/APMS and PCTMS,Capital,BEXLEY MEDICAL GROUP,4928473," 135,199.41 ", -   ,LNW000004448
Department of Health,NHS England,30/09/2014,GPMS/APMS and PCTMS,Capital,BHARANI MEDICAL CENTRE,4925064," 101,037.61 ", -   ,BE000008542
Department of Health,NHS England,30/09/2014,GPMS/APMS and PCTMS,Capital,BIDFORD ON AVON HEALTH CENTRE,4928016," 151,856.95 ", -   ,WA000006696
Department of Health,NHS England,30/09/2014,GPMS/APMS and PCTMS,Capital,BIDWELL & DAVIDSON,4926085,"-32,744.33 ", -   ,DR000006647
Department of Health,NHS England,30/09/2014,GPMS/APMS and PCTMS,Capital,BIDWELL & DAVIDSON,4926086," 92,632.50 ", -   ,DR000006648
Department of Health,NHS England,30/09/2014,GPMS/APMS and PCTMS,Capital,BIGGIN HILL SURGERY,5013185," 76,617.99 ", -   ,LNT000004248
Department of Health,NHS England,30/09/2014,GPMS/APMS and PCTMS,Capital,BILLINGSHURST SURGERY,5058843," 73,370.11 ", -   ,TW000012279
Department of Health,NHS England,30/09/2014,GPMS/APMS and PCTMS,Capital,BILSTON URBAN VILLAGE MEDICAL CENTRE,5062991,"-63,812.22 ", -   ,WOM000003547
Department of Health,NHS England,30/09/2014,GPMS/APMS and PCTMS,Capital,BILSTON URBAN VILLAGE MEDICAL CENTRE,5062992," 171,960.88 ", -   ,WOM000003548
Department of Health,NHS England,30/09/2014,GPMS/APMS and PCTMS,Capital,BINCOTE ROAD SURGERY,4927933," 41,999.74 ", -   ,LNE000007071
Department of Health,NHS England,30/09/2014,GPMS/APMS and PCTMS,Capital,BINFIELD ROAD SURGERY,4925714," 52,056.77 ", -   ,LNS000011974
Department of Health,NHS England,30/09/2014,GPMS/APMS and PCTMS,Capital,BINFIELD SURGERY,4925066," 72,497.24 ", -   ,BE000008544
Department of Health,NHS England,30/09/2014,GPMS/APMS and PCTMS,Capital,BIRBECK MEDICAL GROUP,5013218," 96,570.21 ", -   ,CU000006477
Department of Health,NHS England,30/09/2014,GPMS/APMS and PCTMS,Capital,BIRCHES MEDICAL CENTRE,4878634," 51,342.63 ", -   ,SU000008305
Department of Health,NHS England,30/09/2014,GPMS/APMS and PCTMS,Capital,BIRCHES MEDICAL PRACTICE,5107390," 45,536.62 ", -   ,KHU000008588
Department of Health,NHS England,30/09/2014,GPMS/APMS and PCTMS,Capital,BIRCHINGTON MEDICAL CENTRE,5002211," 99,622.22 ", -   ,KC000022672
Department of Health,NHS England,30/09/2014,GPMS/APMS and PCTMS,Capital,BIRCHTREE PRACTICE,5001918,"-44,167.00 ", -   ,MID000006086
Department of Health,NHS England,30/09/2014,GPMS/APMS and PCTMS,Capital,BIRCHTREE PRACTICE,5013198," 88,334.00 ", -   ,MID000006087
Department of Health,NHS England,30/09/2014,GPMS/APMS and PCTMS,Capital,BIRCHWOOD MEDICAL CENTRE POOLE,4924502," 54,489.25 ", -   ,DO000008944
Department of Health,NHS England,30/09/2014,GPMS/APMS and PCTMS,Capital,BIRCHWOOD MEDICAL CENTRE WARRINGTON,4857685," 47,200.00 ", -   ,CH000008861
Department of Health,NHS England,30/09/2014,GPMS/APMS and PCTMS,Capital,BIRCHWOOD MEDICAL CENTRE WARRINGTON,5029585,"-47,264.50 ", -   ,CH000009101
Department of Health,NHS England,30/09/2014,GPMS/APMS and PCTMS,Capital,BIRCHWOOD MEDICAL CENTRE WARRINGTON,5029586," 67,364.67 ", -   ,CH000009102
Department of Health,NHS England,30/09/2014,GPMS/APMS and PCTMS,Capital,BIRCHWOOD MEDICAL PRACTICE BRISTOL,5113252," 33,466.65 ", -   ,BRS000011159
Department of Health,NHS England,30/09/2014,GPMS/APMS and PCTMS,Capital,BIRCHWOOD MEDICAL PRACTICE HORLEY,5077292," 83,525.30 ", -   ,SY000010013
Department of Health,NHS England,30/09/2014,GPMS/APMS and PCTMS,Capital,BIRCHWOOD SURGERY,5112963," 79,812.98 ", -   ,HT000011547
Department of Health,NHS England,30/09/2014,GPMS/APMS and PCTMS,Capital,BIRD IN EYE SURGERY,5001562," 39,993.51 ", -   ,TE000010065
Department of Health,NHS England,30/09/2014,GPMS/APMS and PCTMS,Capital,BIRLEY HEALTH CENTRE,4923537,"-67,133.78 ", -   ,SHE000005473
Department of Health,NHS England,30/09/2014,GPMS/APMS and PCTMS,Capital,BIRLEY HEALTH CENTRE,4923539," 125,475.86 ", -   ,SHE000005474
Department of Health,NHS England,30/09/2014,GPMS/APMS and PCTMS,Capital,BISHOPGATE MEDICAL CENTRE,4926087,"-115,169.84 ", -   ,DR000006649
Department of Health,NHS England,30/09/2014,GPMS/APMS and PCTMS,Capital,BISHOPGATE MEDICAL CENTRE,4926088," 215,102.42 ", -   ,DR000006650
Department of Health,NHS England,30/09/2014,GPMS/APMS and PCTMS,Capital,BISHOPS CASTLE MEDICAL PRACTICE,5029993," 37,297.55 ", -   ,SA000007075
Department of Health,NHS England,30/09/2014,GPMS/APMS and PCTMS,Capital,BISHOPS WALTHAM SURGERY,4906383,"-70,347.42 ", -   ,SO000019545
Department of Health,NHS England,30/09/2014,GPMS/APMS and PCTMS,Capital,BISHOPS WALTHAM SURGERY,4906384," 155,548.54 ", -   ,SO000019546
Department of Health,NHS England,30/09/2014,GPMS/APMS and PCTMS,Capital,BISHOPSTON MEDICAL PRACTICE,4924895," 77,724.74 ", -   ,BRS000011008
Department of Health,NHS England,30/09/2014,GPMS/APMS and PCTMS,Capital,BITTERNE PARK SURGERY,5056257," 45,146.51 ", -   ,SO000019683
Department of Health,NHS England,30/09/2014,GPMS/APMS and PCTMS,Capital,BITTERNE SURGERY,5056259," 61,413.01 ", -   ,SO000019685
Department of Health,NHS England,30/09/2014,GPMS/APMS and PCTMS,Capital,BK JAISWAL,5056002," 26,869.23 ", -   ,LNC000006132
Department of Health,NHS England,30/09/2014,GPMS/APMS and PCTMS,Capital,BLACK LONG THOMAS DAS WRIGHT VELTMAN & PARTNERS,5055823," 126,452.31 ", -   ,DE000012056
Department of Health,NHS England,30/09/2014,GPMS/APMS and PCTMS,Capital,BLACKBROOK SURGERY LISIEUX WAY TAUNTON,5108397," 56,140.97 ", -   ,SM000005220
Department of Health,NHS England,30/09/2014,GPMS/APMS and PCTMS,Capital,BLACKDOWN COUNTRY PRACTICE HEMYOCK,5087127," 25,761.24 ", -   ,DN000015370
Department of Health,NHS England,30/09/2014,GPMS/APMS and PCTMS,Capital,BLACKDOWN COUNTRY PRACTICE HEMYOCK,5130572," 27,964.35 ", -   ,DN000015772
Department of Health,NHS England,30/09/2014,GPMS/APMS and PCTMS,Capital,BLACKETTS MEDICAL PRACTICE,4926089,"-80,360.09 ", -   ,DR000006651
Department of Health,NHS England,30/09/2014,GPMS/APMS and PCTMS,Capital,BLACKETTS MEDICAL PRACTICE,4926090," 146,082.67 ", -   ,DR000006652
Department of Health,NHS England,30/09/2014,GPMS/APMS and PCTMS,Capital,BLACKFIELD HEALTH CENTRE,5056261," 140,429.75 ", -   ,SO000019687
Department of Health,NHS England,30/09/2014,GPMS/APMS and PCTMS,Capital,BLACKFORD HOUSE MEDICAL CENTRE,5060653," 46,995.71 ", -   ,ROC000004337
Department of Health,NHS England,30/09/2014,GPMS/APMS and PCTMS,Capital,BLACKFRIARS MEDICAL PRACTICE,4925716," 49,581.60 ", -   ,LNS000011976
Department of Health,NHS England,30/09/2014,GPMS/APMS and PCTMS,Capital,BLACKTHORN HEALTH CENTRE,5056263," 68,756.48 ", -   ,SO000019689
Department of Health,NHS England,30/09/2014,GPMS/APMS and PCTMS,Capital,BLACKTHORN MEDICAL CENTRE,5002213," 41,414.88 ", -   ,KC000022674
Department of Health,NHS England,30/09/2014,GPMS/APMS and PCTMS,Capital,BLENHEIM MEDICAL CENTRE,4924111," 52,757.50 ", -   ,BD000007295
Department of Health,NHS England,30/09/2014,GPMS/APMS and PCTMS,Capital,BLETCHINGTON ROAD SURGERY,5110958," 35,471.92 ", -   ,OX000007481
Department of Health,NHS England,30/09/2014,GPMS/APMS and PCTMS,Capital,BLITHEHALE MEDICAL CENTRE,4921682," 76,657.61 ", -   ,LNA000008824
Department of Health,NHS England,30/09/2014,GPMS/APMS and PCTMS,Capital,BLOOMFIELD MEDICAL CENTRE,5112409," 84,881.92 ", -   ,LA000013271
Department of Health,NHS England,30/09/2014,GPMS/APMS and PCTMS,Capital,BLOOMSBURY HEALTH CENTRE,5060849,"-30,053.75 ", -   ,BIR000010571
Department of Health,NHS England,30/09/2014,GPMS/APMS and PCTMS,Capital,BLOOMSBURY HEALTH CENTRE,5063041," 63,800.87 ", -   ,BIR000010572
Department of Health,NHS England,30/09/2014,GPMS/APMS and PCTMS,Capital,BLOOMSBURY SURGERY,5125888," 26,419.05 ", -   ,LND000006525
Department of Health,NHS England,30/09/2014,GPMS/APMS and PCTMS,Capital,BOAT HOUSE SURGERY,4925063," 69,963.69 ", -   ,BE000008540
Department of Health,NHS England,30/09/2014,GPMS/APMS and PCTMS,Capital,BOCKHAMPTON ROAD SURGERY,5056742," 40,586.76 ", -   ,BE000008650
Department of Health,NHS England,30/09/2014,GPMS/APMS and PCTMS,Capital,BOGNOR MEDICAL PRACTICE,4929619," 70,187.17 ", -   ,TW000011956
Department of Health,NHS England,30/09/2014,GPMS/APMS and PCTMS,Capital,BOKAHRI AA,4908615," 67,807.33 ", -   ,MAN000004992
Department of Health,NHS England,30/09/2014,GPMS/APMS and PCTMS,Capital,BOLLINGTON MEDICAL CENTRE,4857684," 48,200.00 ", -   ,CH000008860
Department of Health,NHS England,30/09/2014,GPMS/APMS and PCTMS,Capital,BOLLINGTON MEDICAL CENTRE,5029583,"-48,434.30 ", -   ,CH000009099
Department of Health,NHS England,30/09/2014,GPMS/APMS and PCTMS,Capital,BOLLINGTON MEDICAL CENTRE,5029584," 68,881.43 ", -   ,CH000009100
Department of Health,NHS England,30/09/2014,GPMS/APMS and PCTMS,Capital,BOLTON COMMUNITY PRACTICE,4986533," 124,027.62 ", -   ,WIG000007985
Department of Health,NHS England,30/09/2014,GPMS/APMS and PCTMS,Capital,BOND MDI & PARTNER,5059577,"-33,294.07 ", -   ,SOP000004741
Department of Health,NHS England,30/09/2014,GPMS/APMS and PCTMS,Capital,BOND MDI & PARTNER,5059578," 60,932.47 ", -   ,SOP000004742
Department of Health,NHS England,30/09/2014,GPMS/APMS and PCTMS,Capital,BONDGATE SURGERY,4923740," 61,736.09 ", -   ,NR000004098
Department of Health,NHS England,30/09/2014,GPMS/APMS and PCTMS,Capital,BOOTH J T & PARTNERS,5109619," 35,125.97 ", -   ,EX000022490
Department of Health,NHS England,30/09/2014,GPMS/APMS and PCTMS,Capital,BORDER PRACTICE,4906387,"-46,646.59 ", -   ,SO000019549
Department of Health,NHS England,30/09/2014,GPMS/APMS and PCTMS,Capital,BORDER PRACTICE,4906388," 103,289.24 ", -   ,SO000019550
Department of Health,NHS England,30/09/2014,GPMS/APMS and PCTMS,Capital,BOROUGH GREEN MEDICAL PRACTICE,5002215," 77,559.19 ", -   ,KC000022676
Department of Health,NHS England,30/09/2014,GPMS/APMS and PCTMS,Capital,BOROUGH ROAD & NUNTHORPE MEDICAL GROUP,5001920," 109,423.26 ", -   ,MID000006089
Department of Health,NHS England,30/09/2014,GPMS/APMS and PCTMS,Capital,BOSMERE MEDICAL PRACTICE,4906389,"-105,422.00 ", -   ,SO000019551
Department of Health,NHS England,30/09/2014,GPMS/APMS and PCTMS,Capital,BOSMERE MEDICAL PRACTICE,4906390," 231,835.59 ", -   ,SO000019552
Department of Health,NHS England,30/09/2014,GPMS/APMS and PCTMS,Capital,BOTLEY MEDICAL CENTRE,5110960," 50,426.03 ", -   ,OX000007483
Department of Health,NHS England,30/09/2014,GPMS/APMS and PCTMS,Capital,BOTOLPH COMMUNITY HEALTH CENTRE,4919790," 37,173.64 ", -   ,CB000009800
Department of Health,NHS England,30/09/2014,GPMS/APMS and PCTMS,Capital,BOUGHTON MEDICAL GROUP,4857686," 46,700.00 ", -   ,CH000008862
Department of Health,NHS England,30/09/2014,GPMS/APMS and PCTMS,Capital,BOUGHTON MEDICAL GROUP,5029587,"-46,721.00 ", -   ,CH000009103
Department of Health,NHS England,30/09/2014,GPMS/APMS and PCTMS,Capital,BOUGHTON MEDICAL GROUP,5029588," 68,209.03 ", -   ,CH000009104
Department of Health,NHS England,30/09/2014,GPMS/APMS and PCTMS,Capital,BOUNCES ROAD SURGERY,5125902," 28,187.56 ", -   ,LNE000007211
Department of Health,NHS England,30/09/2014,GPMS/APMS and PCTMS,Capital,BOUNDARY HOUSE SURGERY BRACKNELL,5056747," 48,970.10 ", -   ,BE000008652
Department of Health,NHS England,30/09/2014,GPMS/APMS and PCTMS,Capital,BOUNDARY HOUSE SURGERY LONDON,4945071," 39,081.15 ", -   ,LNE000007073
Department of Health,NHS England,30/09/2014,GPMS/APMS and PCTMS,Capital,BOUNDS GREEN GROUP PRACTICE,4945072," 104,934.48 ", -   ,LNE000007075
Department of Health,NHS England,30/09/2014,GPMS/APMS and PCTMS,Capital,BOURKE M & PARTNERS,5077294," 49,412.39 ", -   ,SY000010015
Department of Health,NHS England,30/09/2014,GPMS/APMS and PCTMS,Capital,BOUTPORT MEDICAL CENTRE,5076564," 30,830.87 ", -   ,DN000015376
Department of Health,NHS England,30/09/2014,GPMS/APMS and PCTMS,Capital,BOWERS S & PARTNERS,4889167," 26,652.70 ", -   ,LIP000008055
Department of Health,NHS England,30/09/2014,GPMS/APMS and PCTMS,Capital,BOWERS S & PARTNERS,5059337,"-26,652.70 ", -   ,LIP000008337
Department of Health,NHS England,30/09/2014,GPMS/APMS and PCTMS,Capital,BOWERS S & PARTNERS,5059338," 43,178.90 ", -   ,LIP000008338
Department of Health,NHS England,30/09/2014,GPMS/APMS and PCTMS,Capital,BOWLAND MEDICAL PRACTICE,5111847," 51,070.94 ", -   ,MAN000005120
Department of Health,NHS England,30/09/2014,GPMS/APMS and PCTMS,Capital,BOWLEY C,5111849," 46,039.42 ", -   ,MAN000005122
Department of Health,NHS England,30/09/2014,GPMS/APMS and PCTMS,Capital,BOWLING GREEN ST SURGERY,4876616," 29,904.00 ", -   ,LD000011142
Department of Health,NHS England,30/09/2014,GPMS/APMS and PCTMS,Capital,BOWTON P A & PARTNER,5109623," 35,399.95 ", -   ,EX000022494
Department of Health,NHS England,30/09/2014,GPMS/APMS and PCTMS,Capital,BOX SURGERY,4963906," 39,713.33 ", -   ,WL000008046
Department of Health,NHS England,30/09/2014,GPMS/APMS and PCTMS,Capital,BOXWELL ROAD SURGERY,5112965," 30,767.97 ", -   ,HT000011549
Department of Health,NHS England,30/09/2014,GPMS/APMS and PCTMS,Capital,BOYATT WOOD SURGERY,5056269," 26,738.22 ", -   ,SO000019695
Department of Health,NHS England,30/09/2014,GPMS/APMS and PCTMS,Capital,BRACONDALE MEDICAL CENTRE,5056123," 28,226.12 ", -   ,SPT000003117
Department of Health,NHS England,30/09/2014,GPMS/APMS and PCTMS,Capital,BRADGATE SURGERY,4924684," 64,078.95 ", -   ,BRS000010791
Department of Health,NHS England,30/09/2014,GPMS/APMS and PCTMS,Capital,BRADLEY & PARTNERS,5075625," 69,606.46 ", -   ,LNN000005842
Department of Health,NHS England,30/09/2014,GPMS/APMS and PCTMS,Capital,BRADLEY STOKE SURGERY,4924682," 94,702.04 ", -   ,BRS000010789
Department of Health,NHS England,30/09/2014,GPMS/APMS and PCTMS,Capital,BRADY & PARTNERS,5075623," 67,432.63 ", -   ,LNN000005840
Department of Health,NHS England,30/09/2014,GPMS/APMS and PCTMS,Capital,BRAILSFORD & HULLAND MEDICAL PRACTICE,5055825," 36,950.11 ", -   ,DE000012058
Department of Health,NHS England,30/09/2014,GPMS/APMS and PCTMS,Capital,BRAITHWAITE SURGERY,4986535," 37,818.13 ", -   ,WIG000007987
Department of Health,NHS England,30/09/2014,GPMS/APMS and PCTMS,Capital,BRAMBLYS GRANGE MEDICAL PRACTICE,5056265," 67,772.33 ", -   ,SO000019691
Department of Health,NHS England,30/09/2014,GPMS/APMS and PCTMS,Capital,BRAMHALL HEALTH CENTRE,5056119," 70,083.52 ", -   ,SPT000003113
Department of Health,NHS England,30/09/2014,GPMS/APMS and PCTMS,Capital,BRAMHALL PARK MEDICAL CENTRE,4905793," 77,186.34 ", -   ,SPT000003034
Department of Health,NHS England,30/09/2014,GPMS/APMS and PCTMS,Capital,BRAMPTON MEDICAL PRACTICE,5013219," 97,874.26 ", -   ,CU000006479
Department of Health,NHS England,30/09/2014,GPMS/APMS and PCTMS,Capital,BRAMPTON MEDICAL PRACTICE,5061216," 42,165.40 ", -   ,CU000006745
Department of Health,NHS England,30/09/2014,GPMS/APMS and PCTMS,Capital,BRANCH END SURGERY,4923741," 33,140.96 ", -   ,NR000004100
Department of Health,NHS England,30/09/2014,GPMS/APMS and PCTMS,Capital,BRANDON MEDICAL PRACTICE,4878636," 50,420.76 ", -   ,SU000008307
Department of Health,NHS England,30/09/2014,GPMS/APMS and PCTMS,Capital,BRANKSOMEWOOD HEALTHCARE CENTRE,4906385,"-60,908.75 ", -   ,SO000019547
Department of Health,NHS England,30/09/2014,GPMS/APMS and PCTMS,Capital,BRANKSOMEWOOD HEALTHCARE CENTRE,4906386," 138,412.32 ", -   ,SO000019548
Department of Health,NHS England,30/09/2014,GPMS/APMS and PCTMS,Capital,BRANN & PARTNERS,4927445," 98,837.34 ", -   ,EX000022077
Department of Health,NHS England,30/09/2014,GPMS/APMS and PCTMS,Capital,BRANT ROAD SURGERY LINCOLN,4906899," 45,337.40 ", -   ,LL000009909
Department of Health,NHS England,30/09/2014,GPMS/APMS and PCTMS,Capital,BREACH & PARTNERS,4888991," 37,300.00 ", -   ,STL000006779
Department of Health,NHS England,30/09/2014,GPMS/APMS and PCTMS,Capital,BREACH & PARTNERS,5059084,"-37,300.00 ", -   ,STL000007012
Department of Health,NHS England,30/09/2014,GPMS/APMS and PCTMS,Capital,BREACH & PARTNERS,5059085," 52,115.22 ", -   ,STL000007013
Department of Health,NHS England,30/09/2014,GPMS/APMS and PCTMS,Capital,BREDBURY MEDICAL PRACTICE,4905795," 31,936.07 ", -   ,SPT000003036
Department of Health,NHS England,30/09/2014,GPMS/APMS and PCTMS,Capital,BREDON HILL SURGERY,4928187," 40,856.76 ", -   ,WR000008186
Department of Health,NHS England,30/09/2014,GPMS/APMS and PCTMS,Capital,BREMNER & PARTNERS,4889165," 28,339.58 ", -   ,LIP000008053
Department of Health,NHS England,30/09/2014,GPMS/APMS and PCTMS,Capital,BREMNER & PARTNERS,5059335,"-71,190.30 ", -   ,LIP000008335
Department of Health,NHS England,30/09/2014,GPMS/APMS and PCTMS,Capital,BREMNER & PARTNERS,5059336," 88,720.99 ", -   ,LIP000008336
Department of Health,NHS England,30/09/2014,GPMS/APMS and PCTMS,Capital,BRENNAN & PARTNERS,4888930," 42,639.00 ", -   ,BIK000003979
Department of Health,NHS England,30/09/2014,GPMS/APMS and PCTMS,Capital,BRENNAN & PARTNERS,5058535,"-110,034.72 ", -   ,BIK000004092
Department of Health,NHS England,30/09/2014,GPMS/APMS and PCTMS,Capital,BRENNAN & PARTNERS,5058536," 132,491.82 ", -   ,BIK000004093
Department of Health,NHS England,30/09/2014,GPMS/APMS and PCTMS,Capital,BRETTON MEDICAL PRACTICE,5105708," 66,507.54 ", -   ,CB000010159
Department of Health,NHS England,30/09/2014,GPMS/APMS and PCTMS,Capital,BRIARWOOD MEDICAL CENTRE,5112417," 41,706.71 ", -   ,LA000013281
Department of Health,NHS England,30/09/2014,GPMS/APMS and PCTMS,Capital,BRIDGE COTTAGE SURGERY,5112973," 93,151.43 ", -   ,HT000011557
Department of Health,NHS England,30/09/2014,GPMS/APMS and PCTMS,Capital,BRIDGE HOUSE MEDICAL CENTRE,5060403," 57,405.86 ", -   ,WA000006732
Department of Health,NHS England,30/09/2014,GPMS/APMS and PCTMS,Capital,BRIDGE HOUSE SURGERY,4927937," 69,427.24 ", -   ,LNE000007077
Department of Health,NHS England,30/09/2014,GPMS/APMS and PCTMS,Capital,BRIDGE LANE GROUP PRACTICE,4944914," 104,844.42 ", -   ,LNP000009821
Department of Health,NHS England,30/09/2014,GPMS/APMS and PCTMS,Capital,BRIDGE MEDICAL CENTRE,5058847," 57,789.89 ", -   ,TW000012281
Department of Health,NHS England,30/09/2014,GPMS/APMS and PCTMS,Capital,BRIDGE STREET SURGERY,5107395," 44,350.46 ", -   ,KHU000008593
Department of Health,NHS England,30/09/2014,GPMS/APMS and PCTMS,Capital,BRIDGEGATE MEDICAL CENTRE,5013222," 58,074.76 ", -   ,CU000006485
Department of Health,NHS England,30/09/2014,GPMS/APMS and PCTMS,Capital,BRIDGEGATE SURGERY,5029390," 71,503.27 ", -   ,NN000013174
Department of Health,NHS England,30/09/2014,GPMS/APMS and PCTMS,Capital,BRIDGEMARY MEDICAL CENTRE,4906393,"-47,125.18 ", -   ,SO000019555
Department of Health,NHS England,30/09/2014,GPMS/APMS and PCTMS,Capital,BRIDGEMARY MEDICAL CENTRE,4906394," 106,444.81 ", -   ,SO000019556
Department of Health,NHS England,30/09/2014,GPMS/APMS and PCTMS,Capital,BRIDGES MEDICAL CENTRE,4924510," 122,491.15 ", -   ,DO000008952
Department of Health,NHS England,30/09/2014,GPMS/APMS and PCTMS,Capital,BRIDGES MEDICAL PRACTICE,4924606,"-33,168.42 ", -   ,GAT000004126
Department of Health,NHS England,30/09/2014,GPMS/APMS and PCTMS,Capital,BRIDGES MEDICAL PRACTICE,4924607," 62,087.42 ", -   ,GAT000004127
Department of Health,NHS England,30/09/2014,GPMS/APMS and PCTMS,Capital,BRIDGEWATER COMMUNITY HEALTHCARE NHS TRUST,5024936,"-28,600.00 ", -   ,26283848
Department of Health,NHS England,30/09/2014,GPMS/APMS and PCTMS,Capital,BRIDGEWATER COMMUNITY HEALTHCARE NHS TRUST,5041903," 28,600.00 ", -   ,26283557
Department of Health,NHS England,30/09/2014,GPMS/APMS and PCTMS,Capital,BRIDGEWATER COMMUNITY HEALTHCARE NHS TRUST,5086549," 31,774.00 ", -   ,198988-22-SEP-2014
Department of Health,NHS England,30/09/2014,GPMS/APMS and PCTMS,Capital,BRIDGEWATER FAMILY MEDICAL PRACTICE,5029995," 29,598.42 ", -   ,SA000007077
Department of Health,NHS England,30/09/2014,GPMS/APMS and PCTMS,Capital,BRIDGNORTH MEDICAL PRACTICE,5029997," 117,408.52 ", -   ,SA000007079
Department of Health,NHS England,30/09/2014,GPMS/APMS and PCTMS,Capital,BRIDPORT MEDICAL CENTRE,4924512," 148,122.76 ", -   ,DO000008954
Department of Health,NHS England,30/09/2014,GPMS/APMS and PCTMS,Capital,BRIERCLIFFE SURGERY,5112765," 46,527.65 ", -   ,LA000013679
Department of Health,NHS England,30/09/2014,GPMS/APMS and PCTMS,Capital,BRIMINGTON SURGERY,4922974," 45,781.67 ", -   ,DE000011929
Department of Health,NHS England,30/09/2014,GPMS/APMS and PCTMS,Capital,BRINNINGTON HEALTH CENTRE BRINNINGTON,4905799," 32,581.05 ", -   ,SPT000003040
Department of Health,NHS England,30/09/2014,GPMS/APMS and PCTMS,Capital,BRINNINGTON HEALTH CENTRE STOCKPORT,4905801," 29,886.06 ", -   ,SPT000003042
Department of Health,NHS England,30/09/2014,GPMS/APMS and PCTMS,Capital,BRIXTON HILL GROUP PRACTICE,4925719," 75,805.94 ", -   ,LNS000011980
Department of Health,NHS England,30/09/2014,GPMS/APMS and PCTMS,Capital,BROAD LANE SURGERY,4945099," 36,666.67 ", -   ,COV000004322
Department of Health,NHS England,30/09/2014,GPMS/APMS and PCTMS,Capital,BROADMEAD MEDICAL CENTRE,4924686," 95,063.36 ", -   ,BRS000010793
Department of Health,NHS England,30/09/2014,GPMS/APMS and PCTMS,Capital,BROADMEAD SURGERY,4949614," 36,004.94 ", -   ,LNM000008662
Department of Health,NHS England,30/09/2014,GPMS/APMS and PCTMS,Capital,BROADSHIRES HEALTH CENTRE,5110964," 74,805.53 ", -   ,OX000007487
Department of Health,NHS England,30/09/2014,GPMS/APMS and PCTMS,Capital,BROADWATER MEDICAL CENTRE,5058850," 64,759.07 ", -   ,TW000012283
Department of Health,NHS England,30/09/2014,GPMS/APMS and PCTMS,Capital,BROADWAY MEDICAL CENTRE,5112419," 107,576.20 ", -   ,LA000013283
Department of Health,NHS England,30/09/2014,GPMS/APMS and PCTMS,Capital,BROADWAY PRACTICE,5127787,"-45,000.00 ", -   ,KC000023694
Department of Health,NHS England,30/09/2014,GPMS/APMS and PCTMS,Capital,BROADWAY PRACTICE,5127788," 90,000.00 ", -   ,KC000023695
Department of Health,NHS England,30/09/2014,GPMS/APMS and PCTMS,Capital,BROADWAY SURGERY,5057724," 29,879.26 ", -   ,LNB000005505
Department of Health,NHS England,30/09/2014,GPMS/APMS and PCTMS,Capital,BROCKHURST MEDICAL CENTRE,5056280," 26,104.61 ", -   ,SO000019707
Department of Health,NHS England,30/09/2014,GPMS/APMS and PCTMS,Capital,BROCKLEY SURGERY,4925720," 31,545.45 ", -   ,LNS000011981
Department of Health,NHS England,30/09/2014,GPMS/APMS and PCTMS,Capital,BROCKWELL MEDICAL GROUP,4944853," 148,921.18 ", -   ,NR000004104
Department of Health,NHS England,30/09/2014,GPMS/APMS and PCTMS,Capital,BROCKWELL PARK,4925722," 46,736.06 ", -   ,LNS000011983
Department of Health,NHS England,30/09/2014,GPMS/APMS and PCTMS,Capital,BROCKWOOD MEDICAL PRACTICE,4928595," 80,597.90 ", -   ,SY000009895
Department of Health,NHS England,30/09/2014,GPMS/APMS and PCTMS,Capital,BRODBIN & PARTNERS,5058542," 33,039.14 ", -   ,BIK000004099
Department of Health,NHS England,30/09/2014,GPMS/APMS and PCTMS,Capital,BROKEN CROSS SURGERY,5032018," 33,235.17 ", -   ,CH000009108
Department of Health,NHS England,30/09/2014,GPMS/APMS and PCTMS,Capital,BROMLEY COMMON PRACTICE,5013186," 48,675.89 ", -   ,LNT000004250
Department of Health,NHS England,30/09/2014,GPMS/APMS and PCTMS,Capital,BRONDESBURY MEDICAL CENTRE,4945055," 113,705.33 ", -   ,LND000006331
Department of Health,NHS England,30/09/2014,GPMS/APMS and PCTMS,Capital,BROOK GREEN MEDICAL CENTRE,5057840," 69,363.32 ", -   ,LNM000008876
Department of Health,NHS England,30/09/2014,GPMS/APMS and PCTMS,Capital,BROOK HEALTH CENTRE,4922816," 56,918.25 ", -   ,NO000007293
Department of Health,NHS England,30/09/2014,GPMS/APMS and PCTMS,Capital,BROOK LANE SURGERY,5056284," 61,757.69 ", -   ,SO000019711
Department of Health,NHS England,30/09/2014,GPMS/APMS and PCTMS,Capital,BROOK MEDICAL CENTRE,5125736," 36,754.68 ", -   ,NO000007440
Department of Health,NHS England,30/09/2014,GPMS/APMS and PCTMS,Capital,BROOKE SURGERY,4919701," 66,388.40 ", -   ,GMK000004599
Department of Health,NHS England,30/09/2014,GPMS/APMS and PCTMS,Capital,BROOKES & LEE,4889173," 25,518.92 ", -   ,LIP000008061
Department of Health,NHS England,30/09/2014,GPMS/APMS and PCTMS,Capital,BROOKES & LEE,5059343,"-66,359.91 ", -   ,LIP000008343
Department of Health,NHS England,30/09/2014,GPMS/APMS and PCTMS,Capital,BROOKES & LEE,5059344," 82,158.91 ", -   ,LIP000008344
Department of Health,NHS England,30/09/2014,GPMS/APMS and PCTMS,Capital,BROOKFIELD SURGERY,4857689," 33,100.00 ", -   ,CH000008865
Department of Health,NHS England,30/09/2014,GPMS/APMS and PCTMS,Capital,BROOKFIELD SURGERY,5029592,"-33,118.00 ", -   ,CH000009109
Department of Health,NHS England,30/09/2014,GPMS/APMS and PCTMS,Capital,BROOKFIELD SURGERY,5029593," 48,697.18 ", -   ,CH000009110
Department of Health,NHS England,30/09/2014,GPMS/APMS and PCTMS,Capital,BROOKHOUSE MEDICAL CENTRE,5112421," 32,424.09 ", -   ,LA000013285
Department of Health,NHS England,30/09/2014,GPMS/APMS and PCTMS,Capital,BROOKSIDE GROUP PRACTICE,5056764," 150,993.99 ", -   ,BE000008658
Department of Health,NHS England,30/09/2014,GPMS/APMS and PCTMS,Capital,BROOKSIDE HEALTH CENTRE,5056286," 77,503.63 ", -   ,SO000019713
Department of Health,NHS England,30/09/2014,GPMS/APMS and PCTMS,Capital,BROOM LEYS SURGERY,4876618," 53,065.42 ", -   ,LD000011144
Department of Health,NHS England,30/09/2014,GPMS/APMS and PCTMS,Capital,BROOMHILL SURGERY,5108929," 49,561.60 ", -   ,SHE000005654
Department of Health,NHS England,30/09/2014,GPMS/APMS and PCTMS,Capital,BROOMWOOD ROAD SURGERY,5001811," 64,360.10 ", -   ,LNT000004252
Department of Health,NHS England,30/09/2014,GPMS/APMS and PCTMS,Capital,BROSELEY MEDICAL PRACTICE,5029999," 30,591.89 ", -   ,SA000007081
Department of Health,NHS England,30/09/2014,GPMS/APMS and PCTMS,Capital,BROW MEDICAL CENTRE,5058854," 33,121.32 ", -   ,TW000012285
Department of Health,NHS England,30/09/2014,GPMS/APMS and PCTMS,Capital,BROWN B J & PARTNERS,5109627," 38,053.73 ", -   ,EX000022498
Department of Health,NHS England,30/09/2014,GPMS/APMS and PCTMS,Capital,BROWNHILL SURGERY,5056288," 37,584.99 ", -   ,SO000019715
Department of Health,NHS England,30/09/2014,GPMS/APMS and PCTMS,Capital,BRUNE MEDICAL CENTRE,5056290," 77,884.46 ", -   ,SO000019717
Department of Health,NHS England,30/09/2014,GPMS/APMS and PCTMS,Capital,BRUNSWICK HOUSE MEDICAL GROUP,5013223," 90,336.80 ", -   ,CU000006487
Department of Health,NHS England,30/09/2014,GPMS/APMS and PCTMS,Capital,BRUNSWICK SURGERY,5055260," 41,487.36 ", -   ,TE000010508
Department of Health,NHS England,30/09/2014,GPMS/APMS and PCTMS,Capital,BRYANT STREET,5002224," 37,364.76 ", -   ,KC000022686
Department of Health,NHS England,30/09/2014,GPMS/APMS and PCTMS,Capital,BUCHANAN ROAD SURGERY,5108922," 31,318.44 ", -   ,SHE000005650
Department of Health,NHS England,30/09/2014,GPMS/APMS and PCTMS,Capital,BUCKFASTLEIGH MEDICAL CENTRE,5076567," 29,639.95 ", -   ,DN000015380
Department of Health,NHS England,30/09/2014,GPMS/APMS and PCTMS,Capital,BUCKLAND MEDICAL CENTRE,5002640," 26,250.91 ", -   ,KC000023124
Department of Health,NHS England,30/09/2014,GPMS/APMS and PCTMS,Capital,BUGBROOKE MEDICAL PRACTICE,4922812," 67,386.42 ", -   ,NO000007288
Department of Health,NHS England,30/09/2014,GPMS/APMS and PCTMS,Capital,BUNBURY MEDICAL PRACTICE,4857687," 37,100.00 ", -   ,CH000008863
Department of Health,NHS England,30/09/2014,GPMS/APMS and PCTMS,Capital,BUNBURY MEDICAL PRACTICE,5029589,"-38,873.66 ", -   ,CH000009105
Department of Health,NHS England,30/09/2014,GPMS/APMS and PCTMS,Capital,BUNBURY MEDICAL PRACTICE,5029590," 52,934.41 ", -   ,CH000009106
Department of Health,NHS England,30/09/2014,GPMS/APMS and PCTMS,Capital,BUNTINGFORD MEDICAL CENTRE,5112967," 35,064.88 ", -   ,HT000011551
Department of Health,NHS England,30/09/2014,GPMS/APMS and PCTMS,Capital,BURDWOOD SURGERY,4925068," 63,418.21 ", -   ,BE000008546
Department of Health,NHS England,30/09/2014,GPMS/APMS and PCTMS,Capital,BURGESS H,4919773," 63,056.50 ", -   ,MAN000004994
Department of Health,NHS England,30/09/2014,GPMS/APMS and PCTMS,Capital,BURGESS ROAD SURGERY,4906391,"-64,259.42 ", -   ,SO000019553
Department of Health,NHS England,30/09/2014,GPMS/APMS and PCTMS,Capital,BURGESS ROAD SURGERY,4906392," 133,695.29 ", -   ,SO000019554
Department of Health,NHS England,30/09/2014,GPMS/APMS and PCTMS,Capital,BURN BRAE MEDICAL GROUP,4923743," 58,959.21 ", -   ,NR000004102
Department of Health,NHS England,30/09/2014,GPMS/APMS and PCTMS,Capital,BURN BRAE MEDICAL GROUP,5112072," 103,947.00 ", -   ,NR000004268
Department of Health,NHS England,30/09/2014,GPMS/APMS and PCTMS,Capital,BURNCROSS SURGERY,4923543," 99,730.88 ", -   ,SHE000005476
Department of Health,NHS England,30/09/2014,GPMS/APMS and PCTMS,Capital,BURNGREAVE SURGERY,4923547," 44,643.53 ", -   ,SHE000005478
Department of Health,NHS England,30/09/2014,GPMS/APMS and PCTMS,Capital,BURNHAM HEALTH CENTRE,5013585," 153,181.89 ",143053938,BU000006649
Department of Health,NHS England,30/09/2014,GPMS/APMS and PCTMS,Capital,BURNHAM MEDICAL CENTRE,5108405," 107,636.76 ", -   ,SM000005228
Department of Health,NHS England,30/09/2014,GPMS/APMS and PCTMS,Capital,BURNLEY MEDICAL PRACTICE,5045145," 29,782.82 ", -   ,LNL000007434
Department of Health,NHS England,30/09/2014,GPMS/APMS and PCTMS,Capital,BURNLEY WOOD MEDICAL CENTRE,5112413," 37,430.68 ", -   ,LA000013275
Department of Health,NHS England,30/09/2014,GPMS/APMS and PCTMS,Capital,BURNS A & PARTNERS,5077296," 43,481.37 ", -   ,SY000010017
Department of Health,NHS England,30/09/2014,GPMS/APMS and PCTMS,Capital,BURNTWOOD HEALTH & WELLBEING CENTRE,4927629," 61,583.33 ", -   ,ST000016508
Department of Health,NHS England,30/09/2014,GPMS/APMS and PCTMS,Capital,BURRELL & PARTNERS,4926091,"-95,104.33 ", -   ,DR000006653
Department of Health,NHS England,30/09/2014,GPMS/APMS and PCTMS,Capital,BURRELL & PARTNERS,4926092," 180,047.00 ", -   ,DR000006654
Department of Health,NHS England,30/09/2014,GPMS/APMS and PCTMS,Capital,BURSTED WOOD SURGERY,4928477," 31,071.47 ", -   ,LNW000004452
Department of Health,NHS England,30/09/2014,GPMS/APMS and PCTMS,Capital,BURTON & BRANSGORE MEDICAL CENTRES,4924506," 58,142.00 ", -   ,DO000008948
Department of Health,NHS England,30/09/2014,GPMS/APMS and PCTMS,Capital,BURTON LATIMER HEALTH CENTRE,4944800," 114,515.67 ", -   ,NO000007290
Department of Health,NHS England,30/09/2014,GPMS/APMS and PCTMS,Capital,BURVILL HOUSE SURGERY,4924372," 53,919.84 ", -   ,HT000011419
Department of Health,NHS England,30/09/2014,GPMS/APMS and PCTMS,Capital,BURWELL SURGERY,5092286," 44,288.33 ", -   ,CB000010124
Department of Health,NHS England,30/09/2014,GPMS/APMS and PCTMS,Capital,BURY KNOWLE HEALTH CENTRE,4925135," 93,073.42 ", -   ,OX000007437
Department of Health,NHS England,30/09/2014,GPMS/APMS and PCTMS,Capital,BUSH & PARTNERS,4888931," 49,322.77 ", -   ,BIK000003980
Department of Health,NHS England,30/09/2014,GPMS/APMS and PCTMS,Capital,BUSH & PARTNERS,5058537,"-178,716.54 ", -   ,BIK000004094
Department of Health,NHS England,30/09/2014,GPMS/APMS and PCTMS,Capital,BUSH & PARTNERS,5058538," 209,468.42 ", -   ,BIK000004095
Department of Health,NHS England,30/09/2014,GPMS/APMS and PCTMS,Capital,BUSHFIELD HEALTH CENTRE,5092288," 29,541.86 ", -   ,CB000010126
Department of Health,NHS England,30/09/2014,GPMS/APMS and PCTMS,Capital,BUTCHERY SURGERY,5002220," 28,019.20 ", -   ,KC000022681
Department of Health,NHS England,30/09/2014,GPMS/APMS and PCTMS,Capital,BUTE HOUSE MEDICAL PRACTICE,5113907," 46,340.91 ", -   ,BD000007423
Department of Health,NHS England,30/09/2014,GPMS/APMS and PCTMS,Capital,BUTE HOUSE SURGERY,4924508," 39,680.18 ", -   ,DO000008950
Department of Health,NHS England,30/09/2014,GPMS/APMS and PCTMS,Capital,BUTLER S & PARTNERS,5109625," 57,575.97 ", -   ,EX000022496
Department of Health,NHS England,30/09/2014,GPMS/APMS and PCTMS,Capital,BUXTED SURGERY,5043727," 100,231.62 ", -   ,TE000010326
Department of Health,NHS England,30/09/2014,GPMS/APMS and PCTMS,Capital,BUXTED SURGERY,5077645," 29,834.80 ", -   ,TE000010558
Department of Health,NHS England,30/09/2014,GPMS/APMS and PCTMS,Capital,BUXTON MEDICAL PRACTICE,5055957," 71,288.18 ", -   ,DE000012190
Department of Health,NHS England,30/09/2014,GPMS/APMS and PCTMS,Capital,BYFIELD MEDICAL CENTRE,5108166," 47,764.14 ", -   ,NO000007438
Department of Health,NHS England,30/09/2014,GPMS/APMS and PCTMS,Capital,C J D PEACH,4925490," 77,885.39 ", -   ,LNP000009811
Department of Health,NHS England,30/09/2014,GPMS/APMS and PCTMS,Capital,C J ELLIOTT,4925492," 88,056.61 ", -   ,LNP000009813
Department of Health,NHS England,30/09/2014,GPMS/APMS and PCTMS,Capital,C M KROLL,4925494," 84,515.32 ", -   ,LNP000009815
Department of Health,NHS England,30/09/2014,GPMS/APMS and PCTMS,Capital,C PERERA,4944913," 35,413.85 ", -   ,LNP000009817
Department of Health,NHS England,30/09/2014,GPMS/APMS and PCTMS,Capital,C RIBEIRO,4925497," 114,627.35 ", -   ,LNP000009819
Department of Health,NHS England,30/09/2014,GPMS/APMS and PCTMS,Capital,C TRAN,4921621," 29,408.48 ", -   ,LNC000006056
Department of Health,NHS England,30/09/2014,GPMS/APMS and PCTMS,Capital,CA STEDALL,5062786," 32,271.67 ", -   ,WAL000003850
Department of Health,NHS England,30/09/2014,GPMS/APMS and PCTMS,Capital,CABIN SURGERY,5125955," 26,241.01 ", -   ,LA000013279
Department of Health,NHS England,30/09/2014,GPMS/APMS and PCTMS,Capital,CADDINGTON MEDICAL PRACTICE,5113909," 31,489.54 ", -   ,BD000007425
Department of Health,NHS England,30/09/2014,GPMS/APMS and PCTMS,Capital,CAERLEON SURGERY,5063009," 25,721.31 ", -   ,WOM000003636
Department of Health,NHS England,30/09/2014,GPMS/APMS and PCTMS,Capital,CALCOT MEDICAL CENTRE,5013587," 48,833.28 ", -   ,BU000006651
Department of Health,NHS England,30/09/2014,GPMS/APMS and PCTMS,Capital,CALDBECK SURGERY,5013221," 28,700.89 ", -   ,CU000006483
Department of Health,NHS England,30/09/2014,GPMS/APMS and PCTMS,Capital,CALLAGHAN JM & PARTNERS,4889171," 31,345.43 ", -   ,LIP000008059
Department of Health,NHS England,30/09/2014,GPMS/APMS and PCTMS,Capital,CALLAGHAN JM & PARTNERS,5059341,"-31,345.43 ", -   ,LIP000008341
Department of Health,NHS England,30/09/2014,GPMS/APMS and PCTMS,Capital,CALLAGHAN JM & PARTNERS,5059342," 49,698.44 ", -   ,LIP000008342
Department of Health,NHS England,30/09/2014,GPMS/APMS and PCTMS,Capital,CALLOWLAND SURGERY,5112971," 58,726.99 ", -   ,HT000011555
Department of Health,NHS England,30/09/2014,GPMS/APMS and PCTMS,Capital,CALOW AND BRIMINGTON PRACTICE,4922982," 37,143.25 ", -   ,DE000011937
Department of Health,NHS England,30/09/2014,GPMS/APMS and PCTMS,Capital,CAMBERWELL GREEN SURGERY,4925718," 89,083.21 ", -   ,LNS000011978
Department of Health,NHS England,30/09/2014,GPMS/APMS and PCTMS,Capital,CAMBRIAN MEDICAL CENTRE,5030086," 74,112.58 ", -   ,SA000007179
Department of Health,NHS England,30/09/2014,GPMS/APMS and PCTMS,Capital,CAMBRIDGE ACCESS SURGERY,4909380," 34,369.83 ", -   ,CB000009967
Department of Health,NHS England,30/09/2014,GPMS/APMS and PCTMS,Capital,CAMBRIDGE ACCESS SURGERY,5105694," 240,588.83 ", -   ,CB000010276
Department of Health,NHS England,30/09/2014,GPMS/APMS and PCTMS,Capital,CAMBRIDGE AVENUE MEDICAL CENTRE,5107393," 90,156.04 ", -   ,KHU000008591
Department of Health,NHS England,30/09/2014,GPMS/APMS and PCTMS,Capital,CAMBRIDGE MEDICAL GROUP,5001922," 47,674.12 ", -   ,MID000006091
Department of Health,NHS England,30/09/2014,GPMS/APMS and PCTMS,Capital,CAMPHOR IA,5058540," 27,908.47 ", -   ,BIK000004097
Department of Health,NHS England,30/09/2014,GPMS/APMS and PCTMS,Capital,CAMROSE MEDICAL PARTNERSHIP,5056278," 63,312.52 ", -   ,SO000019705
Department of Health,NHS England,30/09/2014,GPMS/APMS and PCTMS,Capital,CANBERRA CENTRE FOR HEALTH,4949652," 39,389.73 ", -   ,LNM000008660
Department of Health,NHS England,30/09/2014,GPMS/APMS and PCTMS,Capital,CANBURY MEDICAL CENTRE,5075627," 51,589.19 ", -   ,LNN000005844
Department of Health,NHS England,30/09/2014,GPMS/APMS and PCTMS,Capital,CANFORD HEATH GROUP PRACTICE,4924504," 77,975.60 ", -   ,DO000008946
Department of Health,NHS England,30/09/2014,GPMS/APMS and PCTMS,Capital,CANNINGTON HEALTH CENTRE,5108403," 33,236.40 ", -   ,SM000005226
Department of Health,NHS England,30/09/2014,GPMS/APMS and PCTMS,Capital,CANTERBURY MEDICAL PRACTICE,5002635," 78,074.48 ", -   ,KC000023118
Department of Health,NHS England,30/09/2014,GPMS/APMS and PCTMS,Capital,CANUTE SURGERY,5056271," 25,277.64 ", -   ,SO000019697
Department of Health,NHS England,30/09/2014,GPMS/APMS and PCTMS,Capital,CAPE ROAD SURGERY,5060401," 27,038.61 ", -   ,WA000006730
Department of Health,NHS England,30/09/2014,GPMS/APMS and PCTMS,Capital,CAPELFIELD SURGERY,4928593," 42,184.34 ", -   ,SY000009893
Department of Health,NHS England,30/09/2014,GPMS/APMS and PCTMS,Capital,CAPLAN M,5111854," 39,857.26 ", -   ,MAN000005127
Department of Health,NHS England,30/09/2014,GPMS/APMS and PCTMS,Capital,CAPTAIN FRENCH LANE SURGERY,5013220," 117,229.41 ", -   ,CU000006481
Department of Health,NHS England,30/09/2014,GPMS/APMS and PCTMS,Capital,CARE HOME MEDICAL PRACTICE,4857613," 87,445.58 ", -   ,SLF000005318
Department of Health,NHS England,30/09/2014,GPMS/APMS and PCTMS,Capital,CARE UK CLINICAL SERVICES LTD,4919081," 86,474.74 ",594959072,120040831
Department of Health,NHS England,30/09/2014,GPMS/APMS and PCTMS,Capital,CARE UK CLINICAL SERVICES LTD BIRMINGHAM,5060851," 91,666.67 ", -   ,BIR000010574
Department of Health,NHS England,30/09/2014,GPMS/APMS and PCTMS,Capital,CARE UK CLINICAL SERVICES LTD SOUTHEND ON SEA,4927447," 91,000.00 ", -   ,EX000022079
Department of Health,NHS England,30/09/2014,GPMS/APMS and PCTMS,Capital,CARE UK LTD,4921669," 49,915.76 ", -   ,LNC000006106
Department of Health,NHS England,30/09/2014,GPMS/APMS and PCTMS,Capital,CAREPOINT PRACTICE,5044317," 30,964.13 ", -   ,LNK000002657
Department of Health,NHS England,30/09/2014,GPMS/APMS and PCTMS,Capital,CARFAX HEALTH ENTERPRISE,4974750," 199,237.20 ", -   ,WL000008048
Department of Health,NHS England,30/09/2014,GPMS/APMS and PCTMS,Capital,CARISBROOKE HEALTH CENTRE,5056273," 58,154.96 ", -   ,SO000019699
Department of Health,NHS England,30/09/2014,GPMS/APMS and PCTMS,Capital,CARISBROOKE SURGERY,5043725," 86,103.90 ", -   ,TE000010324
Department of Health,NHS England,30/09/2014,GPMS/APMS and PCTMS,Capital,CARITAS GENERAL PRACTICE PARTNERSHIP,4905797," 82,543.92 ", -   ,SPT000003038
Department of Health,NHS England,30/09/2014,GPMS/APMS and PCTMS,Capital,CARITAS GROUP PRACTICE,4986028,"-79,948.88 ", -   ,YW000007718
Department of Health,NHS England,30/09/2014,GPMS/APMS and PCTMS,Capital,CARITAS GROUP PRACTICE,4986029," 154,544.79 ", -   ,YW000007719
Department of Health,NHS England,30/09/2014,GPMS/APMS and PCTMS,Capital,CARLISLE HOUSE SURGERY,5076389," 35,225.36 ", -   ,DO000009154
Department of Health,NHS England,30/09/2014,GPMS/APMS and PCTMS,Capital,CARLTON HOUSE SURGERY,5125904," 67,635.05 ", -   ,LNE000007216
Department of Health,NHS England,30/09/2014,GPMS/APMS and PCTMS,Capital,CARODOC SURGERY,5089473," 36,422.94 ", -   ,DR000006914
Department of Health,NHS England,30/09/2014,GPMS/APMS and PCTMS,Capital,CARRINGTON HOUSE SURGERY,5013595," 48,239.17 ", -   ,BU000006660
Department of Health,NHS England,30/09/2014,GPMS/APMS and PCTMS,Capital,CARSHALTON FIELDS SURGERY,4925622," 26,352.68 ", -   ,LNP000009959
Department of Health,NHS England,30/09/2014,GPMS/APMS and PCTMS,Capital,CARTERKNOWLE & DORE MEDICAL PRACTICE,5108936," 67,009.46 ", -   ,SHE000005658
Department of Health,NHS England,30/09/2014,GPMS/APMS and PCTMS,Capital,CASSIDY MEDICAL CENTRE,4949654," 63,769.59 ", -   ,LNM000008664
Department of Health,NHS England,30/09/2014,GPMS/APMS and PCTMS,Capital,CASTLE GARDENS MEDICAL CENTRE,5109639," 46,400.66 ", -   ,EX000022512
Department of Health,NHS England,30/09/2014,GPMS/APMS and PCTMS,Capital,CASTLE GARDENS SURGERY,5076587," 42,223.74 ", -   ,DN000015400
Department of Health,NHS England,30/09/2014,GPMS/APMS and PCTMS,Capital,CASTLE HEALTH CENTRE,4926761," 39,997.34 ", -   ,YN000008178
Department of Health,NHS England,30/09/2014,GPMS/APMS and PCTMS,Capital,CASTLE MEADOWS SURGERY,5057398," 30,152.15 ", -   ,DUD000002604
Department of Health,NHS England,30/09/2014,GPMS/APMS and PCTMS,Capital,CASTLE MEDICAL CENTRE,5060409," 67,825.74 ", -   ,WA000006738
Department of Health,NHS England,30/09/2014,GPMS/APMS and PCTMS,Capital,CASTLE MEDICAL GROUP,5112423," 82,327.84 ", -   ,LA000013287
Department of Health,NHS England,30/09/2014,GPMS/APMS and PCTMS,Capital,CASTLE PRACTICE,4876741," 41,968.23 ", -   ,CR000005805
Department of Health,NHS England,30/09/2014,GPMS/APMS and PCTMS,Capital,CASTLE ST,5113913," 59,002.74 ", -   ,BD000007429
Department of Health,NHS England,30/09/2014,GPMS/APMS and PCTMS,Capital,CASTLEFORD MEDICAL PRACTICE,4923347,"-49,431.33 ", -   ,WAK000003547
Department of Health,NHS England,30/09/2014,GPMS/APMS and PCTMS,Capital,CASTLEFORD MEDICAL PRACTICE,4923348," 103,113.86 ", -   ,WAK000003548
Department of Health,NHS England,30/09/2014,GPMS/APMS and PCTMS,Capital,CASTLEGATE SURGERY COCKERMOUTH,5013225," 61,039.31 ", -   ,CU000006491
Department of Health,NHS England,30/09/2014,GPMS/APMS and PCTMS,Capital,CASTLEGATE SURGERY HERTFORD,5112982," 35,998.50 ", -   ,HT000011567
Department of Health,NHS England,30/09/2014,GPMS/APMS and PCTMS,Capital,CASTLEHEAD MEDICAL CENTRE,5013227," 43,183.56 ", -   ,CU000006493
Department of Health,NHS England,30/09/2014,GPMS/APMS and PCTMS,Capital,CASTLETON HEALTH CENTRE,5060655," 64,546.52 ", -   ,ROC000004339
Department of Health,NHS England,30/09/2014,GPMS/APMS and PCTMS,Capital,CATER STREET SURGERY,4924120," 33,921.25 ", -   ,BD000007299
Department of Health,NHS England,30/09/2014,GPMS/APMS and PCTMS,Capital,CATHEDRAL MEDICAL CENTRE,4919792," 61,756.49 ", -   ,CB000009805
Department of Health,NHS England,30/09/2014,GPMS/APMS and PCTMS,Capital,CATHEDRAL MEDICAL CENTRE,5092290," 33,350.78 ", -   ,CB000010128
Department of Health,NHS England,30/09/2014,GPMS/APMS and PCTMS,Capital,CATHEDRAL MEDICAL GROUP,4929621," 77,911.78 ", -   ,TW000011958
Department of Health,NHS England,30/09/2014,GPMS/APMS and PCTMS,Capital,CATOR MEDICAL CENTRE,5013187," 25,407.00 ", -   ,LNT000004260
Department of Health,NHS England,30/09/2014,GPMS/APMS and PCTMS,Capital,CATTERICK VILLAGE SURGERY,4926763," 45,900.23 ", -   ,YN000008180
Department of Health,NHS England,30/09/2014,GPMS/APMS and PCTMS,Capital,CAUSEWAY MEDICAL CENTRE,4857693," 29,200.00 ", -   ,CH000008869
Department of Health,NHS England,30/09/2014,GPMS/APMS and PCTMS,Capital,CAUSEWAY MEDICAL CENTRE,5029600,"-29,222.20 ", -   ,CH000009117
Department of Health,NHS England,30/09/2014,GPMS/APMS and PCTMS,Capital,CAUSEWAY MEDICAL CENTRE,5029601," 41,669.66 ", -   ,CH000009118
Department of Health,NHS England,30/09/2014,GPMS/APMS and PCTMS,Capital,CAVENDISH HEALTH CENTRE,4930621," 43,672.36 ", -   ,LNJ000005602
Department of Health,NHS England,30/09/2014,GPMS/APMS and PCTMS,Capital,CAVERSHAM GROUP PRACTICE,5125891," 93,623.97 ", -   ,LND000006531
Department of Health,NHS England,30/09/2014,GPMS/APMS and PCTMS,Capital,CAXTON SURGERY,5029076," 84,071.78 ", -   ,SA000007003
Department of Health,NHS England,30/09/2014,GPMS/APMS and PCTMS,Capital,CECIL LOBO,4921686," 95,452.97 ", -   ,LNA000008828
Department of Health,NHS England,30/09/2014,GPMS/APMS and PCTMS,Capital,CEDAR BROOK PRACTICE,4908639,"-65,809.87 ", -   ,LNK000002577
Department of Health,NHS England,30/09/2014,GPMS/APMS and PCTMS,Capital,CEDAR BROOK PRACTICE,4908640," 132,088.08 ", -   ,LNK000002578
Department of Health,NHS England,30/09/2014,GPMS/APMS and PCTMS,Capital,CEDAR MEDICAL PRACTICE,5125718," 35,700.60 ", -   ,KHU000008600
Department of Health,NHS England,30/09/2014,GPMS/APMS and PCTMS,Capital,CEDAR PRACTICE,5059685," 39,790.52 ", -   ,LNA000008998
Department of Health,NHS England,30/09/2014,GPMS/APMS and PCTMS,Capital,CEDARS MEDICAL CENTRE,4857694," 42,800.00 ", -   ,CH000008870
Department of Health,NHS England,30/09/2014,GPMS/APMS and PCTMS,Capital,CEDARS MEDICAL CENTRE,4965961," 49,644.00 ", -   ,614
Department of Health,NHS England,30/09/2014,GPMS/APMS and PCTMS,Capital,CEDARS MEDICAL CENTRE,5029602,"-42,815.00 ", -   ,CH000009119
Department of Health,NHS England,30/09/2014,GPMS/APMS and PCTMS,Capital,CEDARS MEDICAL CENTRE,5029603," 57,375.01 ", -   ,CH000009120
Department of Health,NHS England,30/09/2014,GPMS/APMS and PCTMS,Capital,CEDARS MEDICAL CENTRE,5055268," 25,234.71 ", -   ,LNK000002663
Department of Health,NHS England,30/09/2014,GPMS/APMS and PCTMS,Capital,CEDARS MEDICAL GROUP,4926096,"-55,336.66 ", -   ,DR000006658
Department of Health,NHS England,30/09/2014,GPMS/APMS and PCTMS,Capital,CEDARS MEDICAL GROUP,4926097," 98,859.16 ", -   ,DR000006659
Department of Health,NHS England,30/09/2014,GPMS/APMS and PCTMS,Capital,CEDARS SURGERY,5002614," 111,382.05 ", -   ,KC000023096
Department of Health,NHS England,30/09/2014,GPMS/APMS and PCTMS,Capital,CEDARS SURGERY MAIDENHEAD,5056778," 57,890.54 ", -   ,BE000008664
Department of Health,NHS England,30/09/2014,GPMS/APMS and PCTMS,Capital,CEDARS SURGERY WESTON MARE,4924697," 42,613.38 ", -   ,BRS000010805
Department of Health,NHS England,30/09/2014,GPMS/APMS and PCTMS,Capital,CENTRAL CLINIC,5062781," 26,216.98 ", -   ,DUD000002528
Department of Health,NHS England,30/09/2014,GPMS/APMS and PCTMS,Capital,CENTRAL MEDICAL CENTRE,4925505," 59,222.39 ", -   ,LNP000009829
Department of Health,NHS England,30/09/2014,GPMS/APMS and PCTMS,Capital,CENTRAL SURGERY BARTON HUMBER,5107403," 104,772.63 ", -   ,KHU000008602
Department of Health,NHS England,30/09/2014,GPMS/APMS and PCTMS,Capital,CENTRAL SURGERY RUGBY,5060411," 129,568.59 ", -   ,WA000006740
Department of Health,NHS England,30/09/2014,GPMS/APMS and PCTMS,Capital,CENTRE PRACTICE (THE),5056302," 89,844.24 ", -   ,SO000019729
Department of Health,NHS England,30/09/2014,GPMS/APMS and PCTMS,Capital,CERNE ABBAS SURGERY,4924514," 46,205.46 ", -   ,DO000008956
Department of Health,NHS England,30/09/2014,GPMS/APMS and PCTMS,Capital,CESTRIA HEALTH CENTRE,4926098,"-111,177.83 ", -   ,DR000006660
Department of Health,NHS England,30/09/2014,GPMS/APMS and PCTMS,Capital,CESTRIA HEALTH CENTRE,4926099," 206,120.83 ", -   ,DR000006661
Department of Health,NHS England,30/09/2014,GPMS/APMS and PCTMS,Capital,CH MEDICAL,4905620," 51,586.62 ", -   ,GMK000004601
Department of Health,NHS England,30/09/2014,GPMS/APMS and PCTMS,Capital,CHADSFIELD MEDICAL PRACTICE,5056136," 43,082.67 ", -   ,SPT000003130
Department of Health,NHS England,30/09/2014,GPMS/APMS and PCTMS,Capital,CHADWELL HEATH HEALTH CENTRE,5062701," 39,161.57 ", -   ,LNC000006140
Department of Health,NHS England,30/09/2014,GPMS/APMS and PCTMS,Capital,CHADWELL HEATH SURGERY,4925216," 49,387.46 ", -   ,LNB000005428
Department of Health,NHS England,30/09/2014,GPMS/APMS and PCTMS,Capital,CHAGGAR,5060498," 41,992.04 ", -   ,WBH000003220
Department of Health,NHS England,30/09/2014,GPMS/APMS and PCTMS,Capital,CHAJED G C & PARTNERS,5109641," 53,812.60 ", -   ,EX000022514
Department of Health,NHS England,30/09/2014,GPMS/APMS and PCTMS,Capital,CHALABI & KHAN,4921688," 68,307.81 ", -   ,LNA000008830
Department of Health,NHS England,30/09/2014,GPMS/APMS and PCTMS,Capital,CHALKHILL FAMILY PRACTICE,5045322," 26,706.99 ", -   ,LNL000007630
Department of Health,NHS England,30/09/2014,GPMS/APMS and PCTMS,Capital,CHANA & PARTNERS,5059088,"-43,757.26 ", -   ,STL000007016
Department of Health,NHS England,30/09/2014,GPMS/APMS and PCTMS,Capital,CHANA & PARTNERS,5059090," 52,753.74 ", -   ,STL000007017
Department of Health,NHS England,30/09/2014,GPMS/APMS and PCTMS,Capital,CHANCERY LANE PRACTICE,5060413," 31,831.44 ", -   ,WA000006742
Department of Health,NHS England,30/09/2014,GPMS/APMS and PCTMS,Capital,CHANDRASHEKHAR & PARTNER,5059349,"-42,003.90 ", -   ,LIP000008349
Department of Health,NHS England,30/09/2014,GPMS/APMS and PCTMS,Capital,CHANDRASHEKHAR & PARTNER,5059350," 52,050.80 ", -   ,LIP000008350
Department of Health,NHS England,30/09/2014,GPMS/APMS and PCTMS,Capital,CHANDY J,4926100,"-54,802.17 ", -   ,DR000006662
Department of Health,NHS England,30/09/2014,GPMS/APMS and PCTMS,Capital,CHANDY J,4926101," 103,086.17 ", -   ,DR000006663
Department of Health,NHS England,30/09/2014,GPMS/APMS and PCTMS,Capital,CHANG & PARTNERS,5075632," 37,639.48 ", -   ,LNN000005850
Department of Health,NHS England,30/09/2014,GPMS/APMS and PCTMS,Capital,CHAPEL ROW SURGERY,5056784," 43,376.64 ",878670366,BE000008666
Department of Health,NHS England,30/09/2014,GPMS/APMS and PCTMS,Capital,CHAPEL STREET MEDICAL PRACTICE ASHTON LYNE,5055489," 35,788.98 ", -   ,GMK000004730
Department of Health,NHS England,30/09/2014,GPMS/APMS and PCTMS,Capital,CHAPEL STREET MEDICAL PRACTICE DERBY,5055829," 73,994.71 ", -   ,DE000012062
Department of Health,NHS England,30/09/2014,GPMS/APMS and PCTMS,Capital,CHAPEL STREET SURGERY NEWHAVEN,5043731," 37,377.19 ", -   ,TE000010330
Department of Health,NHS England,30/09/2014,GPMS/APMS and PCTMS,Capital,CHARING SURGERY,5002226," 52,334.90 ", -   ,KC000022688
Department of Health,NHS England,30/09/2014,GPMS/APMS and PCTMS,Capital,CHARLBURY MEDCIAL CENTRE,5110966," 30,554.84 ", -   ,OX000007489
Department of Health,NHS England,30/09/2014,GPMS/APMS and PCTMS,Capital,CHARLESTOWN MEDICAL PRACTICE,5125928," 34,870.28 ", -   ,MAN000005129
Department of Health,NHS England,30/09/2014,GPMS/APMS and PCTMS,Capital,CHARLTON & PARTNERS,4926093,"-68,076.33 ", -   ,DR000006655
Department of Health,NHS England,30/09/2014,GPMS/APMS and PCTMS,Capital,CHARLTON & PARTNERS,4926094," 129,440.00 ", -   ,DR000006656
Department of Health,NHS England,30/09/2014,GPMS/APMS and PCTMS,Capital,CHARLTON HILL SURGERY,5056292," 61,209.39 ", -   ,SO000019719
Department of Health,NHS England,30/09/2014,GPMS/APMS and PCTMS,Capital,CHARLTON HOUSE MEDICAL CENTRE,5111169," 41,980.06 ", -   ,LNE000007222
Department of Health,NHS England,30/09/2014,GPMS/APMS and PCTMS,Capital,CHARLTON MEDICAL CENTRE,5030003," 66,287.75 ", -   ,SA000007085
Department of Health,NHS England,30/09/2014,GPMS/APMS and PCTMS,Capital,CHARNOCK HEALTH PRIMARY CARE CENTRE,5108933," 31,866.63 ", -   ,SHE000005656
Department of Health,NHS England,30/09/2014,GPMS/APMS and PCTMS,Capital,CHARTERHOUSE SURGERY,5001813," 54,055.45 ", -   ,LNT000004254
Department of Health,NHS England,30/09/2014,GPMS/APMS and PCTMS,Capital,CHASTLETON MEDICAL GROUP,5089477," 70,044.56 ", -   ,DR000006918
Department of Health,NHS England,30/09/2014,GPMS/APMS and PCTMS,Capital,CHATHAM STREET SURGERY,4944890," 51,868.55 ", -   ,BE000008548
Department of Health,NHS England,30/09/2014,GPMS/APMS and PCTMS,Capital,CHATSWORTH ROAD MEDICAL CENTRE,4922992," 48,543.42 ", -   ,DE000011947
Department of Health,NHS England,30/09/2014,GPMS/APMS and PCTMS,Capital,CHATTERJEE PC,5111858," 50,388.58 ", -   ,MAN000005132
Department of Health,NHS England,30/09/2014,GPMS/APMS and PCTMS,Capital,CHAUCERS PRACTICE,4928018," 25,111.97 ", -   ,WA000006698
Department of Health,NHS England,30/09/2014,GPMS/APMS and PCTMS,Capital,CHAWLA & PARTNER,5060489," 28,187.25 ", -   ,WBH000003214
Department of Health,NHS England,30/09/2014,GPMS/APMS and PCTMS,Capital,CHAWTON HOUSE SURGERY,5056294," 43,131.76 ", -   ,SO000019721
Department of Health,NHS England,30/09/2014,GPMS/APMS and PCTMS,Capital,CHAWTON PARK SURGERY,5056296," 50,531.39 ", -   ,SO000019723
Department of Health,NHS England,30/09/2014,GPMS/APMS and PCTMS,Capital,CHEADLE HULME HEALTH CENTRE - DR SEABROOK,4905803," 69,922.45 ", -   ,SPT000003044
Department of Health,NHS England,30/09/2014,GPMS/APMS and PCTMS,Capital,CHEADLE HULME HEALTH CENTRE - DR SHIPSTON,4905805," 61,930.19 ", -   ,SPT000003046
Department of Health,NHS England,30/09/2014,GPMS/APMS and PCTMS,Capital,CHEADLE MEDICAL PRACTICE,5056132," 63,074.20 ", -   ,SPT000003126
Department of Health,NHS England,30/09/2014,GPMS/APMS and PCTMS,Capital,CHEAM FAMILY PRACTICE,4925500," 88,076.31 ", -   ,LNP000009823
Department of Health,NHS England,30/09/2014,GPMS/APMS and PCTMS,Capital,CHEDDAR MEDICAL CENTRE ROYNON WAY CHEDDAR,5108407," 47,116.11 ", -   ,SM000005230
Department of Health,NHS England,30/09/2014,GPMS/APMS and PCTMS,Capital,CHELFORD SURGERY,4857690," 27,300.00 ", -   ,CH000008866
Department of Health,NHS England,30/09/2014,GPMS/APMS and PCTMS,Capital,CHELFORD SURGERY,5029594,"-29,003.99 ", -   ,CH000009111
Department of Health,NHS England,30/09/2014,GPMS/APMS and PCTMS,Capital,CHELFORD SURGERY,5029595," 38,990.10 ", -   ,CH000009112
Department of Health,NHS England,30/09/2014,GPMS/APMS and PCTMS,Capital,CHELLS WAY SURGERY,5126006," 74,792.15 ", -   ,HT000011559
Department of Health,NHS England,30/09/2014,GPMS/APMS and PCTMS,Capital,CHELSEA PRACTICE,4930619," 31,847.87 ", -   ,LNJ000005600
Department of Health,NHS England,30/09/2014,GPMS/APMS and PCTMS,Capital,CHELSFIELD SURGERY,5001815," 53,187.30 ", -   ,LNT000004256
Department of Health,NHS England,30/09/2014,GPMS/APMS and PCTMS,Capital,CHELSTON HALL SURGERY,5076577," 39,404.83 ", -   ,DN000015390
Department of Health,NHS England,30/09/2014,GPMS/APMS and PCTMS,Capital,CHERRYMEAD SURGERY,5013591," 57,062.76 ", -   ,BU000006656
Department of Health,NHS England,30/09/2014,GPMS/APMS and PCTMS,Capital,CHESSEL PRACTICE,5056299,"-74,000.00 ", -   ,SO000019726
Department of Health,NHS England,30/09/2014,GPMS/APMS and PCTMS,Capital,CHESSEL PRACTICE,5056300," 76,592.84 ", -   ,SO000019727
Department of Health,NHS England,30/09/2014,GPMS/APMS and PCTMS,Capital,CHESTERFIELD MEDICAL PARTNERSHIP,4922972," 125,635.09 ", -   ,DE000011927
Department of Health,NHS England,30/09/2014,GPMS/APMS and PCTMS,Capital,CHESTNUT PRACTICE,5057841," 49,383.36 ", -   ,LNM000008878
Department of Health,NHS England,30/09/2014,GPMS/APMS and PCTMS,Capital,CHESTNUTS SURGERY,5002230," 56,152.51 ", -   ,KC000022692
Department of Health,NHS England,30/09/2014,GPMS/APMS and PCTMS,Capital,CHET VALLEY MEDICAL PRACTICE,5091525," 49,735.71 ", -   ,NF000011115
Department of Health,NHS England,30/09/2014,GPMS/APMS and PCTMS,Capital,CHEW MEDICAL PRACTICE,4924689," 53,586.69 ", -   ,BRS000010797
Department of Health,NHS England,30/09/2014,GPMS/APMS and PCTMS,Capital,CHEW MEDICAL PRACTICE,5113259," 36,318.68 ", -   ,BRS000011166
Department of Health,NHS England,30/09/2014,GPMS/APMS and PCTMS,Capital,CHICHESTER PRACTICE,4924608," 39,863.83 ", -   ,GAT000004129
Department of Health,NHS England,30/09/2014,GPMS/APMS and PCTMS,Capital,CHILD S W & PARTNER,4927452," 27,919.52 ", -   ,EX000022084
Department of Health,NHS England,30/09/2014,GPMS/APMS and PCTMS,Capital,CHILTERN HOUSE MEDICAL CENTRE,5013593," 83,045.86 ", -   ,BU000006658
Department of Health,NHS England,30/09/2014,GPMS/APMS and PCTMS,Capital,CHILTERN SURGERY,5110968," 47,156.82 ", -   ,OX000007491
Department of Health,NHS England,30/09/2014,GPMS/APMS and PCTMS,Capital,CHILVERS & MCCREA LTD,4924691," 74,369.36 ", -   ,BRS000010799
Department of Health,NHS England,30/09/2014,GPMS/APMS and PCTMS,Capital,CHINBROOK SURGERY,4925727," 83,957.61 ", -   ,LNS000011989
Department of Health,NHS England,30/09/2014,GPMS/APMS and PCTMS,Capital,CHINEHAM MEDICAL PRACTICE,4906395,"-63,736.67 ", -   ,SO000019557
Department of Health,NHS England,30/09/2014,GPMS/APMS and PCTMS,Capital,CHINEHAM MEDICAL PRACTICE,4906396," 157,315.54 ", -   ,SO000019558
Department of Health,NHS England,30/09/2014,GPMS/APMS and PCTMS,Capital,CHINGFORD MEDICAL PRACTICE,5057732," 47,465.02 ", -   ,LNB000005513
Department of Health,NHS England,30/09/2014,GPMS/APMS and PCTMS,Capital,CHISLEHURST MEDICAL PRACTICE,5001817," 103,429.45 ", -   ,LNT000004258
Department of Health,NHS England,30/09/2014,GPMS/APMS and PCTMS,Capital,CHISNELL P & PARTNERS,5125790," 113,831.93 ", -   ,EX000022508
Department of Health,NHS England,30/09/2014,GPMS/APMS and PCTMS,Capital,CHIU C,5111862," 41,174.17 ", -   ,MAN000005136
Department of Health,NHS England,30/09/2014,GPMS/APMS and PCTMS,Capital,CHOBHAM & WEST END MEDICAL PRACTICE,5077298," 63,901.82 ", -   ,SY000010019
Department of Health,NHS England,30/09/2014,GPMS/APMS and PCTMS,Capital,CHOLMLEY GARDENS MEDICAL CENTRE,4945056," 30,740.21 ", -   ,LND000006333
Department of Health,NHS England,30/09/2014,GPMS/APMS and PCTMS,Capital,CHOPRA R,5059086,"-32,042.28 ", -   ,STL000007014
Department of Health,NHS England,30/09/2014,GPMS/APMS and PCTMS,Capital,CHOPRA R,5059087," 52,296.00 ", -   ,STL000007015
Department of Health,NHS England,30/09/2014,GPMS/APMS and PCTMS,Capital,CHORLEYWOOD HEALTH CENTRE,5112976," 35,305.73 ", -   ,HT000011561
Department of Health,NHS England,30/09/2014,GPMS/APMS and PCTMS,Capital,CHRISP STREET HEALTH CENTRE,5059681," 86,733.09 ", -   ,LNA000008994
Department of Health,NHS England,30/09/2014,GPMS/APMS and PCTMS,Capital,CHRISTCHURCH FAMILY MEDICAL CENTRE,4924693," 74,481.35 ", -   ,BRS000010801
Department of Health,NHS England,30/09/2014,GPMS/APMS and PCTMS,Capital,CHRISTIE CL & PARTNERS,4944915," 39,748.59 ", -   ,LNP000009825
Department of Health,NHS England,30/09/2014,GPMS/APMS and PCTMS,Capital,CHRISTMAS MALTINGS & CLEMENTS PRACTICE,4878638," 118,517.23 ", -   ,SU000008309
Department of Health,NHS England,30/09/2014,GPMS/APMS and PCTMS,Capital,CHRISTMAS MALTINGS SURGERY DR MOHAN,4878640," 66,346.97 ", -   ,SU000008311
Department of Health,NHS England,30/09/2014,GPMS/APMS and PCTMS,Capital,CHUKWU A C & PARTNERS,5109637," 55,350.12 ", -   ,EX000022510
Department of Health,NHS England,30/09/2014,GPMS/APMS and PCTMS,Capital,CHUNG & PARTNERS,4889177," 33,287.24 ", -   ,LIP000008065
Department of Health,NHS England,30/09/2014,GPMS/APMS and PCTMS,Capital,CHUNG & PARTNERS,5059347,"-83,638.53 ", -   ,LIP000008347
Department of Health,NHS England,30/09/2014,GPMS/APMS and PCTMS,Capital,CHUNG & PARTNERS,5059348," 104,305.99 ", -   ,LIP000008348
Department of Health,NHS England,30/09/2014,GPMS/APMS and PCTMS,Capital,CHURCH CLOSE SURGERY,5030007," 31,308.60 ", -   ,SA000007089
Department of Health,NHS England,30/09/2014,GPMS/APMS and PCTMS,Capital,CHURCH FARM SURGERY,5077719," 30,400.19 ", -   ,SU000008452
Department of Health,NHS England,30/09/2014,GPMS/APMS and PCTMS,Capital,CHURCH LANE MEDICAL CENTRE,5107398," 54,210.05 ", -   ,KHU000008596
Department of Health,NHS England,30/09/2014,GPMS/APMS and PCTMS,Capital,CHURCH LANE PRACTICE,4925503," 110,857.05 ", -   ,LNP000009827
Department of Health,NHS England,30/09/2014,GPMS/APMS and PCTMS,Capital,CHURCH LANE SURGERY BRIGHOUSE,5110507," 67,670.51 ", -   ,YW000007837
Department of Health,NHS England,30/09/2014,GPMS/APMS and PCTMS,Capital,CHURCH LANE SURGERY NEW ROMNEY,5002232," 66,608.48 ", -   ,KC000022694
Department of Health,NHS England,30/09/2014,GPMS/APMS and PCTMS,Capital,CHURCH LANE SURGERY YORK,5114167," 61,372.92 ", -   ,YN000008502
Department of Health,NHS England,30/09/2014,GPMS/APMS and PCTMS,Capital,CHURCH STREET PARTNERSHIP,5060853," 27,395.51 ", -   ,BIR000010576
Department of Health,NHS England,30/09/2014,GPMS/APMS and PCTMS,Capital,CHURCH STREET PRACTICE,4925140," 80,648.92 ", -   ,OX000007439
Department of Health,NHS England,30/09/2014,GPMS/APMS and PCTMS,Capital,CHURCH STREET PRACTICE,4945127," 105,239.65 ", -   ,SY000009897
Department of Health,NHS England,30/09/2014,GPMS/APMS and PCTMS,Capital,CHURCH STREET SURGERY BISHOPS STORT,5112978," 82,759.03 ", -   ,HT000011563
Department of Health,NHS England,30/09/2014,GPMS/APMS and PCTMS,Capital,CHURCH STREET SURGERY CHURCH STREET MARTOCK,4923179," 69,205.84 ", -   ,SM000005078
Department of Health,NHS England,30/09/2014,GPMS/APMS and PCTMS,Capital,CHURCH STREET SURGERY WARE,5112980," 47,886.68 ", -   ,HT000011565
Department of Health,NHS England,30/09/2014,GPMS/APMS and PCTMS,Capital,CHURCH STRETTON MEDICAL PRACTICE,5030009," 50,807.28 ", -   ,SA000007091
Department of Health,NHS England,30/09/2014,GPMS/APMS and PCTMS,Capital,CHURCH VIEW MEDICAL CENTRE,4924402,"-57,809.33 ", -   ,SUN000003385
Department of Health,NHS England,30/09/2014,GPMS/APMS and PCTMS,Capital,CHURCH VIEW MEDICAL CENTRE,4924403," 98,093.58 ", -   ,SUN000003386
Department of Health,NHS England,30/09/2014,GPMS/APMS and PCTMS,Capital,CHURCH VIEW PRACTICE,5013296," 32,150.71 ", -   ,KC000022696
Department of Health,NHS England,30/09/2014,GPMS/APMS and PCTMS,Capital,CHURCH VIEW PRACTICE,5157711," 46,984.25 ", -   ,KC000023801
Department of Health,NHS England,30/09/2014,GPMS/APMS and PCTMS,Capital,CHURCH VIEW SURGERY HEDON,5107400," 73,932.27 ", -   ,KHU000008598
Department of Health,NHS England,30/09/2014,GPMS/APMS and PCTMS,Capital,CHURCHFIELD MEDICAL PRACTICE,5029392," 62,481.53 ", -   ,NN000013176
Department of Health,NHS England,30/09/2014,GPMS/APMS and PCTMS,Capital,CHURCHGATE SURGERY,5055486," 49,456.21 ", -   ,GMK000004727
Department of Health,NHS England,30/09/2014,GPMS/APMS and PCTMS,Capital,CHURCHILL HEALTHCARE LTD,4925214," 116,673.61 ", -   ,LNB000005426
Department of Health,NHS England,30/09/2014,GPMS/APMS and PCTMS,Capital,CHURCHILL MEDICAL CENTRE,4926520," 121,003.69 ", -   ,LNN000005664
Department of Health,NHS England,30/09/2014,GPMS/APMS and PCTMS,Capital,CHURCHWOOD MEDICAL PRACTICE,5043729," 33,163.81 ", -   ,TE000010328
Department of Health,NHS England,30/09/2014,GPMS/APMS and PCTMS,Capital,CINDERHILL LANE SURGERY,5029597," 28,887.49 ", -   ,CH000009114
Department of Health,NHS England,30/09/2014,GPMS/APMS and PCTMS,Capital,CIRCUIT LANE SURGERY,4944891," 72,034.96 ", -   ,BE000008550
Department of Health,NHS England,30/09/2014,GPMS/APMS and PCTMS,Capital,CITY CENTRE HEALTH CENTRE,5111863,"-48,180.85 ", -   ,MAN000005137
Department of Health,NHS England,30/09/2014,GPMS/APMS and PCTMS,Capital,CITY CENTRE HEALTH CENTRE,5111864," 189,561.01 ", -   ,MAN000005138
Department of Health,NHS England,30/09/2014,GPMS/APMS and PCTMS,Capital,CITY HEALTH CARE PARTNERSHIP CIC,5139564," 50,120.04 ", -   ,7410003309
Department of Health,NHS England,30/09/2014,GPMS/APMS and PCTMS,Capital,CITY ROAD MEDICAL CENTRE,5125890," 42,356.75 ", -   ,LND000006529
Department of Health,NHS England,30/09/2014,GPMS/APMS and PCTMS,Capital,CITY VIEW MEDICAL PRACTICE,4923786,"-71,155.11 ", -   ,LDS000009489
Department of Health,NHS England,30/09/2014,GPMS/APMS and PCTMS,Capital,CITY VIEW MEDICAL PRACTICE,4923788," 144,243.83 ", -   ,LDS000009490
Department of Health,NHS England,30/09/2014,GPMS/APMS and PCTMS,Capital,CITY WALLS MEDICAL CENTRE,4857692," 77,700.00 ", -   ,CH000008868
Department of Health,NHS England,30/09/2014,GPMS/APMS and PCTMS,Capital,CITY WALLS MEDICAL CENTRE,5029598,"-77,739.00 ", -   ,CH000009115
Department of Health,NHS England,30/09/2014,GPMS/APMS and PCTMS,Capital,CITY WALLS MEDICAL CENTRE,5029599," 108,939.17 ", -   ,CH000009116
Department of Health,NHS England,30/09/2014,GPMS/APMS and PCTMS,Capital,CITY WAY MEDICAL PRACTICE,5002237," 57,509.83 ", -   ,KC000022700
Department of Health,NHS England,30/09/2014,GPMS/APMS and PCTMS,Capital,CITY WELLBEING PRACTICE,5059683," 37,480.55 ", -   ,LNA000008996
Department of Health,NHS England,30/09/2014,GPMS/APMS and PCTMS,Capital,CLAASSEN & PARTNER,4945040," 41,767.87 ", -   ,LNH000004889
Department of Health,NHS England,30/09/2014,GPMS/APMS and PCTMS,Capital,CLANFIELD PRACTICE,5056298," 39,369.32 ", -   ,SO000019725
Department of Health,NHS England,30/09/2014,GPMS/APMS and PCTMS,Capital,CLANRICARDE MEDICAL CENTRE,5002228," 52,683.93 ", -   ,KC000022690
Department of Health,NHS England,30/09/2014,GPMS/APMS and PCTMS,Capital,CLAPHAM FAMILY PRACTICE,4944938," 156,586.37 ", -   ,LNS000011985
Department of Health,NHS England,30/09/2014,GPMS/APMS and PCTMS,Capital,CLAPHAM PARK GROUP PRACTICE,4925725," 97,078.73 ", -   ,LNS000011987
Department of Health,NHS England,30/09/2014,GPMS/APMS and PCTMS,Capital,CLAPTON SURGERY,5059677," 38,604.15 ", -   ,LNA000008990
Department of Health,NHS England,30/09/2014,GPMS/APMS and PCTMS,Capital,CLAREMONT BANK SURGERY,5030005," 42,665.59 ", -   ,SA000007087
Department of Health,NHS England,30/09/2014,GPMS/APMS and PCTMS,Capital,CLAREMONT CLINIC,4921684," 69,909.99 ", -   ,LNA000008826
Department of Health,NHS England,30/09/2014,GPMS/APMS and PCTMS,Capital,CLAREMONT MEDICAL CENTRE SURBITON,5087119," 49,890.48 ", -   ,LNN000005846
Department of Health,NHS England,30/09/2014,GPMS/APMS and PCTMS,Capital,CLAREMONT SURGERY MAIDENHEAD,5056771," 99,761.39 ", -   ,BE000008660
Department of Health,NHS England,30/09/2014,GPMS/APMS and PCTMS,Capital,CLARENCE AVENUE SURGERY,5108169," 26,260.62 ", -   ,NO000007442
Department of Health,NHS England,30/09/2014,GPMS/APMS and PCTMS,Capital,CLARENCE MEDICAL CENTRE,5062761," 73,862.79 ", -   ,BE000008662
Department of Health,NHS England,30/09/2014,GPMS/APMS and PCTMS,Capital,CLARENCE PARK SURGERY,4944878," 34,372.58 ", -   ,BRS000010795
Department of Health,NHS England,30/09/2014,GPMS/APMS and PCTMS,Capital,CLARENDON LODGE,5060407," 72,418.33 ", -   ,WA000006736
Department of Health,NHS England,30/09/2014,GPMS/APMS and PCTMS,Capital,CLARENDON MEDICAL PRACTICE,4919706," 50,047.06 ", -   ,GMK000004642
Department of Health,NHS England,30/09/2014,GPMS/APMS and PCTMS,Capital,CLARIDGE P M & PARTNERS,5109633," 41,018.82 ", -   ,EX000022504
Department of Health,NHS England,30/09/2014,GPMS/APMS and PCTMS,Capital,CLAY CROSS MEDICAL CENTRE,5055827," 65,792.58 ", -   ,DE000012060
Department of Health,NHS England,30/09/2014,GPMS/APMS and PCTMS,Capital,CLAYHALL CLINIC,5057730," 31,938.14 ", -   ,LNB000005511
Department of Health,NHS England,30/09/2014,GPMS/APMS and PCTMS,Capital,CLAYPATH & UNIVERSITY MEDICAL GROUP,5089479," 116,772.46 ", -   ,DR000006920
Department of Health,NHS England,30/09/2014,GPMS/APMS and PCTMS,Capital,CLEMENTS & PARTNERS,5001926," 38,360.93 ", -   ,MID000006095
Department of Health,NHS England,30/09/2014,GPMS/APMS and PCTMS,Capital,CLEOBURY MORTIMER MEDICAL CENTRE,5029078," 46,630.33 ", -   ,SA000007005
Department of Health,NHS England,30/09/2014,GPMS/APMS and PCTMS,Capital,CLERKENWELL MEDICAL PRACTICE,5111314," 53,290.35 ", -   ,LND000006533
Department of Health,NHS England,30/09/2014,GPMS/APMS and PCTMS,Capital,CLEVEDON RIVERSIDE GROUP,4924708," 64,928.29 ", -   ,BRS000010816
Department of Health,NHS England,30/09/2014,GPMS/APMS and PCTMS,Capital,CLEVELEYS GROUP PRACTICE,5112433," 78,646.50 ", -   ,LA000013297
Department of Health,NHS England,30/09/2014,GPMS/APMS and PCTMS,Capital,CLIFT SURGERY,5062740," 33,980.37 ", -   ,SO000019737
Department of Health,NHS England,30/09/2014,GPMS/APMS and PCTMS,Capital,CLIFTON COURT PRACTICE,4926104,"-103,473.34 ", -   ,DR000006666
Department of Health,NHS England,30/09/2014,GPMS/APMS and PCTMS,Capital,CLIFTON COURT PRACTICE,4926105," 232,908.14 ", -   ,DR000006667
Department of Health,NHS England,30/09/2014,GPMS/APMS and PCTMS,Capital,CLIFTON MEDICAL PRACTICE NOTTINGHAM,4922544," 53,611.05 ", -   ,NN000012889
Department of Health,NHS England,30/09/2014,GPMS/APMS and PCTMS,Capital,CLIFTON MEDICAL PRACTICE ST ANNES,5112435," 38,246.22 ", -   ,LA000013299
Department of Health,NHS England,30/09/2014,GPMS/APMS and PCTMS,Capital,CLIFTON MEDICAL PRACTICE YORK,5114173," 26,969.28 ", -   ,YN000008508
Department of Health,NHS England,30/09/2014,GPMS/APMS and PCTMS,Capital,CLIFTON RISE PRACTICE,4925735," 34,116.53 ", -   ,LNS000011997
Department of Health,NHS England,30/09/2014,GPMS/APMS and PCTMS,Capital,CLIFTON ROAD PRACTICE,5060417," 71,417.08 ", -   ,WA000006746
Department of Health,NHS England,30/09/2014,GPMS/APMS and PCTMS,Capital,CLIFTON ROAD SURGERY,5060419," 76,176.69 ", -   ,WA000006748
Department of Health,NHS England,30/09/2014,GPMS/APMS and PCTMS,Capital,CLIFTON SURGERY,5114175," 38,220.75 ", -   ,YN000008510
Department of Health,NHS England,30/09/2014,GPMS/APMS and PCTMS,Capital,CLIVE SURGERY,5030013," 28,795.15 ", -   ,SA000007095
Department of Health,NHS England,30/09/2014,GPMS/APMS and PCTMS,Capital,CLOSE FARM SURGERY,4924712," 51,854.98 ", -   ,BRS000010820
Department of Health,NHS England,30/09/2014,GPMS/APMS and PCTMS,Capital,CLOVER HEALTH CENTRE,4928481," 51,823.91 ", -   ,LNW000004456
Department of Health,NHS England,30/09/2014,GPMS/APMS and PCTMS,Capital,CMK MEDICAL CENTRE,4925173," 154,670.81 ", -   ,BU000006586
Department of Health,NHS England,30/09/2014,GPMS/APMS and PCTMS,Capital,COACH HOUSE SURGERY,5112986," 98,954.79 ", -   ,HT000011571
Department of Health,NHS England,30/09/2014,GPMS/APMS and PCTMS,Capital,COACHMANS MEDICAL PRACTICE,4929623," 68,930.29 ", -   ,TW000011960
Department of Health,NHS England,30/09/2014,GPMS/APMS and PCTMS,Capital,COALPOOL SURGERY,5057414," 38,297.00 ", -   ,WAL000003854
Department of Health,NHS England,30/09/2014,GPMS/APMS and PCTMS,Capital,COASTAL HEALTH CARE LTD,5112771," 138,826.00 ", -   ,LA000013685
Department of Health,NHS England,30/09/2014,GPMS/APMS and PCTMS,Capital,COASTAL HEALTH CARE LTD,5125956," 32,625.00 ", -   ,LA000013301
Department of Health,NHS England,30/09/2014,GPMS/APMS and PCTMS,Capital,COASTAL MEDICAL GROUP,5112438," 274,279.23 ", -   ,LA000013303
Department of Health,NHS England,30/09/2014,GPMS/APMS and PCTMS,Capital,COATHAM SURGERY,5001927,"-77,539.99 ", -   ,MID000006096
Department of Health,NHS England,30/09/2014,GPMS/APMS and PCTMS,Capital,COATHAM SURGERY,5001928," 136,369.74 ", -   ,MID000006097
Department of Health,NHS England,30/09/2014,GPMS/APMS and PCTMS,Capital,COBBS GARDEN SURGERY,5013597," 47,067.68 ", -   ,BU000006662
Department of Health,NHS England,30/09/2014,GPMS/APMS and PCTMS,Capital,COCKCROFT J H & PARTNERS,5109655," 64,092.85 ", -   ,EX000022528
Department of Health,NHS England,30/09/2014,GPMS/APMS and PCTMS,Capital,COCKFOSTERS MEDICAL CENTRE,5125907," 34,651.02 ", -   ,LNE000007230
Department of Health,NHS England,30/09/2014,GPMS/APMS and PCTMS,Capital,COGGES SURGERY,5110972," 33,065.83 ", -   ,OX000007495
Department of Health,NHS England,30/09/2014,GPMS/APMS and PCTMS,Capital,COKER CLOSE HEALTH CENTRE,4925146," 95,585.97 ", -   ,OX000007441
Department of Health,NHS England,30/09/2014,GPMS/APMS and PCTMS,Capital,COLBURN M & PARTNERS,5109657," 45,044.13 ", -   ,EX000022530
Department of Health,NHS England,30/09/2014,GPMS/APMS and PCTMS,Capital,COLBY MEDICAL CENTRE LTD,5059099,"-31,592.08 ", -   ,STL000007022
Department of Health,NHS England,30/09/2014,GPMS/APMS and PCTMS,Capital,COLBY MEDICAL CENTRE LTD,5059101," 40,905.81 ", -   ,STL000007023
Department of Health,NHS England,30/09/2014,GPMS/APMS and PCTMS,Capital,COLDHARBOURHILL PMS,4928483," 34,086.25 ", -   ,LNW000004458
Department of Health,NHS England,30/09/2014,GPMS/APMS and PCTMS,Capital,COLEMAN & PARTNERS,5108658," 61,542.19 ", -   ,DCR000003704
Department of Health,NHS England,30/09/2014,GPMS/APMS and PCTMS,Capital,COLLEGE HEALTH LTD,5127862," 25,620.20 ", -   ,KC000023773
Department of Health,NHS England,30/09/2014,GPMS/APMS and PCTMS,Capital,COLLEGE HEALTH-BOOTS,5127790," 46,347.70 ", -   ,KC000023697
Department of Health,NHS England,30/09/2014,GPMS/APMS and PCTMS,Capital,COLLEGE PRACTICE,5002242," 87,040.24 ", -   ,KC000022707
Department of Health,NHS England,30/09/2014,GPMS/APMS and PCTMS,Capital,COLLEGE WAY SURGERY,5108418," 71,403.00 ", -   ,SM000005241
Department of Health,NHS England,30/09/2014,GPMS/APMS and PCTMS,Capital,COLLINGWOOD FAMILY PRACTICE,5057416," 96,751.67 ", -   ,WAL000003856
Department of Health,NHS England,30/09/2014,GPMS/APMS and PCTMS,Capital,COLLINGWOOD PRACTICE,4923752," 31,792.12 ", -   ,NR000004112
Department of Health,NHS England,30/09/2014,GPMS/APMS and PCTMS,Capital,COLNE CORNER SURGERY,5112440," 25,184.34 ", -   ,LA000013305
Department of Health,NHS England,30/09/2014,GPMS/APMS and PCTMS,Capital,COLNE HOUSE,5112988," 57,491.90 ", -   ,HT000011573
Department of Health,NHS England,30/09/2014,GPMS/APMS and PCTMS,Capital,COLNE MEDICAL PRACTICE,5109659," 60,590.66 ", -   ,EX000022532
Department of Health,NHS England,30/09/2014,GPMS/APMS and PCTMS,Capital,COLNE ROAD SURGERY,5125958," 29,264.12 ", -   ,LA000013309
Department of Health,NHS England,30/09/2014,GPMS/APMS and PCTMS,Capital,COLNE VALLEY FAMILY DOCTORS,5110514," 36,843.82 ", -   ,YW000007839
Department of Health,NHS England,30/09/2014,GPMS/APMS and PCTMS,Capital,COLVILLE HEALTH CENTRE,5026075," 39,332.42 ", -   ,LNJ000005780
Department of Health,NHS England,30/09/2014,GPMS/APMS and PCTMS,Capital,COMBE DOWN SURGERY,4924714," 51,008.11 ", -   ,BRS000010822
Department of Health,NHS England,30/09/2014,GPMS/APMS and PCTMS,Capital,COMBS FORD SURGERY,4878645," 64,290.27 ", -   ,SU000008316
Department of Health,NHS England,30/09/2014,GPMS/APMS and PCTMS,Capital,COMELY BANK CLINIC,4925220," 98,364.92 ", -   ,LNB000005432
Department of Health,NHS England,30/09/2014,GPMS/APMS and PCTMS,Capital,COMPASS HEALTH,4924698," 41,320.83 ", -   ,BRS000010806
Department of Health,NHS England,30/09/2014,GPMS/APMS and PCTMS,Capital,CONCORD MEDICAL CENTRE,4924700," 83,878.48 ", -   ,BRS000010808
Department of Health,NHS England,30/09/2014,GPMS/APMS and PCTMS,Capital,CONCORDIA HEALTH LTD BARKING,4921623," 96,399.97 ", -   ,LNC000006058
Department of Health,NHS England,30/09/2014,GPMS/APMS and PCTMS,Capital,CONCORDIA HEALTH LTD DAGENHAM,4921625," 76,128.88 ", -   ,LNC000006060
Department of Health,NHS England,30/09/2014,GPMS/APMS and PCTMS,Capital,CONCORDIA MELBOURNE GROVE,4925729," 68,313.03 ", -   ,LNS000011991
Department of Health,NHS England,30/09/2014,GPMS/APMS and PCTMS,Capital,CONCORDIA PARKSIDE,4925731," 49,199.29 ", -   ,LNS000011993
Department of Health,NHS England,30/09/2014,GPMS/APMS and PCTMS,Capital,CONISTON MEDICAL PRACTICE BRISTOL,4924704," 58,619.34 ", -   ,BRS000010812
Department of Health,NHS England,30/09/2014,GPMS/APMS and PCTMS,Capital,CONNAUGHT SQUARE PRACTICE,4930623," 42,150.60 ", -   ,LNJ000005604
Department of Health,NHS England,30/09/2014,GPMS/APMS and PCTMS,Capital,CONNER S & PARTNERS,5109647," 41,356.39 ", -   ,EX000022520
Department of Health,NHS England,30/09/2014,GPMS/APMS and PCTMS,Capital,CONOD & PARTNERS,5057412," 45,103.15 ", -   ,WAL000003852
Department of Health,NHS England,30/09/2014,GPMS/APMS and PCTMS,Capital,CONSETT MEDICAL CENTRE,4926102,"-164,468.93 ", -   ,DR000006664
Department of Health,NHS England,30/09/2014,GPMS/APMS and PCTMS,Capital,CONSETT MEDICAL CENTRE,4926103," 309,278.35 ", -   ,DR000006665
Department of Health,NHS England,30/09/2014,GPMS/APMS and PCTMS,Capital,CONSIGLIO & PARTNER,5059093," 28,770.11 ", -   ,STL000007019
Department of Health,NHS England,30/09/2014,GPMS/APMS and PCTMS,Capital,CONSTABLE COUNTRY MEDICAL PRACTICE,4878643," 82,389.87 ", -   ,SU000008314
Department of Health,NHS England,30/09/2014,GPMS/APMS and PCTMS,Capital,CONWAY MED CTRE,5113915," 37,439.99 ", -   ,BD000007431
Department of Health,NHS England,30/09/2014,GPMS/APMS and PCTMS,Capital,COOKE MJ,5111866," 25,202.26 ", -   ,MAN000005140
Department of Health,NHS England,30/09/2014,GPMS/APMS and PCTMS,Capital,COOKE POLL HEWITT BRETT KING CHANEY & PARTNERS,5055833," 76,620.26 ", -   ,DE000012066
Department of Health,NHS England,30/09/2014,GPMS/APMS and PCTMS,Capital,COOKHAM MEDICAL CENTRE,4925072," 54,926.02 ", -   ,BE000008552
Department of Health,NHS England,30/09/2014,GPMS/APMS and PCTMS,Capital,COOKSON N M P & PARTNERS,5058544," 37,253.84 ", -   ,BIK000004101
Department of Health,NHS England,30/09/2014,GPMS/APMS and PCTMS,Capital,COOPER N I & PARTNERS,5109649," 65,218.89 ", -   ,EX000022522
Department of Health,NHS England,30/09/2014,GPMS/APMS and PCTMS,Capital,COPE A I & PARTNERS,5109651," 43,418.73 ", -   ,EX000022524
Department of Health,NHS England,30/09/2014,GPMS/APMS and PCTMS,Capital,COPPICE SURGERY,4844632," 32,700.00 ", -   ,TW000011843
Department of Health,NHS England,30/09/2014,GPMS/APMS and PCTMS,Capital,COPPICE SURGERY,5058865," 55,892.52 ", -   ,TW000012291
Department of Health,NHS England,30/09/2014,GPMS/APMS and PCTMS,Capital,COPPOCK & PARTNERS,4888935," 25,463.37 ", -   ,BIK000003984
Department of Health,NHS England,30/09/2014,GPMS/APMS and PCTMS,Capital,COPPOCK & PARTNERS,5025505," 30,600.00 ", -   ,198084-12-SEP-2014
Department of Health,NHS England,30/09/2014,GPMS/APMS and PCTMS,Capital,COPPOCK & PARTNERS,5058545,"-56,063.37 ", -   ,BIK000004102
Department of Health,NHS England,30/09/2014,GPMS/APMS and PCTMS,Capital,COPPOCK & PARTNERS,5058546," 75,695.64 ", -   ,BIK000004103
Department of Health,NHS England,30/09/2014,GPMS/APMS and PCTMS,Capital,COQUET MEDICAL GROUP,4923748," 82,109.79 ", -   ,NR000004108
Department of Health,NHS England,30/09/2014,GPMS/APMS and PCTMS,Capital,CORBIN AVENUE SURGERY,4924520," 33,887.96 ", -   ,DO000008962
Department of Health,NHS England,30/09/2014,GPMS/APMS and PCTMS,Capital,CORBRIDGE HEALTH CENTRE,4923750," 49,215.22 ", -   ,NR000004110
Department of Health,NHS England,30/09/2014,GPMS/APMS and PCTMS,Capital,CORFTON ROAD SURGERY,5062821," 28,219.85 ", -   ,LNM000008882
Department of Health,NHS England,30/09/2014,GPMS/APMS and PCTMS,Capital,CORKLAND RD MEDICAL PRACTICE,5111868," 37,055.77 ", -   ,MAN000005142
Department of Health,NHS England,30/09/2014,GPMS/APMS and PCTMS,Capital,CORNBROOK MEDICAL PRACTICE,5111870," 60,812.59 ", -   ,MAN000005144
Department of Health,NHS England,30/09/2014,GPMS/APMS and PCTMS,Capital,CORNER SURGERY,4925733," 43,768.33 ", -   ,LNS000011995
Department of Health,NHS England,30/09/2014,GPMS/APMS and PCTMS,Capital,CORNERSTONE PRACTICE,5112429," 120,701.31 ", -   ,LA000013293
Department of Health,NHS England,30/09/2014,GPMS/APMS and PCTMS,Capital,CORNERWAYS MEDICAL CENTRE,5056306," 114,409.02 ", -   ,SO000019733
Department of Health,NHS England,30/09/2014,GPMS/APMS and PCTMS,Capital,CORNERWAYS SURGERY BECKENHAM,5013189," 51,397.45 ", -   ,LNT000004264
Department of Health,NHS England,30/09/2014,GPMS/APMS and PCTMS,Capital,CORNWALL HOUSE SURGERY,5125861," 34,821.08 ", -   ,LNH000005001
Department of Health,NHS England,30/09/2014,GPMS/APMS and PCTMS,Capital,CORNWALL ROAD MEDICAL PRACTICE,4924522," 43,833.19 ", -   ,DO000008964
Department of Health,NHS England,30/09/2014,GPMS/APMS and PCTMS,Capital,CORRADO & PARTNERS,4888999," 38,977.84 ", -   ,STL000006787
Department of Health,NHS England,30/09/2014,GPMS/APMS and PCTMS,Capital,CORRADO & PARTNERS,5059095,"-98,087.07 ", -   ,STL000007020
Department of Health,NHS England,30/09/2014,GPMS/APMS and PCTMS,Capital,CORRADO & PARTNERS,5059097," 125,205.86 ", -   ,STL000007021
Department of Health,NHS England,30/09/2014,GPMS/APMS and PCTMS,Capital,COSELEY MEDICAL CENTRE,5057323," 41,742.80 ", -   ,DUD000002533
Department of Health,NHS England,30/09/2014,GPMS/APMS and PCTMS,Capital,COSSINGTON HOUSE SURGERY,5002239," 39,350.08 ", -   ,KC000022702
Department of Health,NHS England,30/09/2014,GPMS/APMS and PCTMS,Capital,COTTINGHAM MEDICAL CENTRE,4905780," 60,986.73 ", -   ,KHU000008423
Department of Health,NHS England,30/09/2014,GPMS/APMS and PCTMS,Capital,COTTONS MEDICAL CENTRE,4922822," 57,949.33 ", -   ,NO000007299
Department of Health,NHS England,30/09/2014,GPMS/APMS and PCTMS,Capital,COULBY MEDICAL PRACTICE,5001924," 74,864.38 ", -   ,MID000006093
Department of Health,NHS England,30/09/2014,GPMS/APMS and PCTMS,Capital,COURTENAY HOUSE SURGERY,5112984," 37,351.90 ", -   ,HT000011569
Department of Health,NHS England,30/09/2014,GPMS/APMS and PCTMS,Capital,COURTSIDE SURGERY,4924706," 83,690.28 ", -   ,BRS000010814
Department of Health,NHS England,30/09/2014,GPMS/APMS and PCTMS,Capital,COURTYARD SURGERY,5058872," 43,603.81 ", -   ,TW000012295
Department of Health,NHS England,30/09/2014,GPMS/APMS and PCTMS,Capital,COVENTRY CITY COUNCIL,5104326," 111,707.28 ", -   ,1482333
Department of Health,NHS England,30/09/2014,GPMS/APMS and PCTMS,Capital,COWEN MANLEY & GUEST,5062993," 41,659.15 ", -   ,WOM000003552
Department of Health,NHS England,30/09/2014,GPMS/APMS and PCTMS,Capital,COWES MEDICAL CENTRE,5056308," 133,187.07 ", -   ,SO000019735
Department of Health,NHS England,30/09/2014,GPMS/APMS and PCTMS,Capital,COWFOLD SURGERY,5058858," 26,097.86 ", -   ,TW000012287
Department of Health,NHS England,30/09/2014,GPMS/APMS and PCTMS,Capital,COWPLAIN FAMILY PRACTICE,5056304," 87,606.09 ", -   ,SO000019731
Department of Health,NHS England,30/09/2014,GPMS/APMS and PCTMS,Capital,CRAMLINGTON MEDICAL GROUP DR LEITH,4923746," 36,246.18 ", -   ,NR000004106
Department of Health,NHS England,30/09/2014,GPMS/APMS and PCTMS,Capital,CRAMPTON & PARTNERS,5060503," 69,070.06 ", -   ,WBH000003222
Department of Health,NHS England,30/09/2014,GPMS/APMS and PCTMS,Capital,CRANBORNE SURGERY,4924516," 69,466.11 ", -   ,DO000008958
Department of Health,NHS England,30/09/2014,GPMS/APMS and PCTMS,Capital,CRANLEIGH GARDENS MC CRANLEIGH GARDENS BRIDGWATE,5108412," 53,635.05 ", -   ,SM000005235
Department of Health,NHS England,30/09/2014,GPMS/APMS and PCTMS,Capital,CRANLEIGH MEDIAL PRACTICE,4928598," 188,571.34 ", -   ,SY000009899
Department of Health,NHS England,30/09/2014,GPMS/APMS and PCTMS,Capital,CRAVEN ARMS MEDICAL PRACTICE,5030011," 27,641.14 ", -   ,SA000007093
Department of Health,NHS England,30/09/2014,GPMS/APMS and PCTMS,Capital,CRAYFORD TOWN SURGERY,5058459," 38,249.72 ", -   ,LNW000004612
Department of Health,NHS England,30/09/2014,GPMS/APMS and PCTMS,Capital,CRESCENT SURGERY THORNTON CLEVE,5112427," 63,372.83 ", -   ,LA000013291
Department of Health,NHS England,30/09/2014,GPMS/APMS and PCTMS,Capital,CREST FAMILY PRACTICE,4924702," 43,044.96 ", -   ,BRS000010810
Department of Health,NHS England,30/09/2014,GPMS/APMS and PCTMS,Capital,CREWKERNE HEALTH CENTRE MIDDLE PATH CREWKERNE,5108414," 68,905.15 ", -   ,SM000005237
Department of Health,NHS England,30/09/2014,GPMS/APMS and PCTMS,Capital,CRICH MEDICAL PRACTICE,5055831," 83,109.76 ", -   ,DE000012064
Department of Health,NHS England,30/09/2014,GPMS/APMS and PCTMS,Capital,CRICK SURGERY,5108173," 27,814.53 ", -   ,NO000007446
Department of Health,NHS England,30/09/2014,GPMS/APMS and PCTMS,Capital,CRICKET GREEN MEDICAL PRACTICE,4925507," 352,256.36 ", -   ,LNP000009831
Department of Health,NHS England,30/09/2014,GPMS/APMS and PCTMS,Capital,CROFT HALL MEDICAL PRACTICE TORQUAY,5076598," 46,508.86 ", -   ,DN000015411
Department of Health,NHS England,30/09/2014,GPMS/APMS and PCTMS,Capital,CROFT MEDICAL CENTRE,5060415," 58,655.25 ", -   ,WA000006744
Department of Health,NHS England,30/09/2014,GPMS/APMS and PCTMS,Capital,CROFT SURGERY EASTERGATE,5058861," 68,263.09 ", -   ,TW000012289
Department of Health,NHS England,30/09/2014,GPMS/APMS and PCTMS,Capital,CROFT SURGERY GATESHEAD,5110737," 55,966.58 ", -   ,GAT000004276
Department of Health,NHS England,30/09/2014,GPMS/APMS and PCTMS,Capital,CROKER N M & PARTNERS,5109681," 47,322.89 ", -   ,EX000022556
Department of Health,NHS England,30/09/2014,GPMS/APMS and PCTMS,Capital,CROMWELL MEDICAL CENTRE,5112992," 38,756.41 ", -   ,HT000011577
Department of Health,NHS England,30/09/2014,GPMS/APMS and PCTMS,Capital,CROOK LOG SURGERY,4928485," 57,527.88 ", -   ,LNW000004460
Department of Health,NHS England,30/09/2014,GPMS/APMS and PCTMS,Capital,CROOKES PRACTICE,5108939," 39,220.98 ", -   ,SHE000005661
Department of Health,NHS England,30/09/2014,GPMS/APMS and PCTMS,Capital,CROSBY HOUSE SURGERY,4925074," 80,728.69 ", -   ,BE000008554
Department of Health,NHS England,30/09/2014,GPMS/APMS and PCTMS,Capital,CROSLAND MOOR SURGERY,4986108,"-30,114.77 ", -   ,YW000007804
Department of Health,NHS England,30/09/2014,GPMS/APMS and PCTMS,Capital,CROSLAND MOOR SURGERY,4986109," 65,249.18 ", -   ,YW000007805
Department of Health,NHS England,30/09/2014,GPMS/APMS and PCTMS,Capital,CROSS KEYS SURGERY,5013602," 88,208.96 ", -   ,BU000006668
Department of Health,NHS England,30/09/2014,GPMS/APMS and PCTMS,Capital,CROSS ROAD SURGERY,5076395," 26,829.46 ", -   ,DO000009160
Department of Health,NHS England,30/09/2014,GPMS/APMS and PCTMS,Capital,CROSS STREET HEALTH CENTRE,5057331," 28,451.97 ", -   ,DUD000002537
Department of Health,NHS England,30/09/2014,GPMS/APMS and PCTMS,Capital,CROSSFELL HEALTH CENTRE,5001929,"-91,514.51 ", -   ,MID000006098
Department of Health,NHS England,30/09/2014,GPMS/APMS and PCTMS,Capital,CROSSFELL HEALTH CENTRE,5001930," 170,684.99 ", -   ,MID000006099
Department of Health,NHS England,30/09/2014,GPMS/APMS and PCTMS,Capital,CROSSHILLS GROUP PRACTICE,5114182," 70,600.20 ", -   ,YN000008517
Department of Health,NHS England,30/09/2014,GPMS/APMS and PCTMS,Capital,CROUCH HALL SURGERY,4945074," 50,314.81 ", -   ,LNE000007083
Department of Health,NHS England,30/09/2014,GPMS/APMS and PCTMS,Capital,CROUCH OAK FAMILY PRACTICE,4928600," 98,656.74 ", -   ,SY000009901
Department of Health,NHS England,30/09/2014,GPMS/APMS and PCTMS,Capital,CROWDER MCKENZIE CROWLEY WILTON & PARTNERS,5055835," 47,179.31 ", -   ,DE000012068
Department of Health,NHS England,30/09/2014,GPMS/APMS and PCTMS,Capital,CROWLEY & PARTNERS,5075634," 39,000.03 ", -   ,LNN000005852
Department of Health,NHS England,30/09/2014,GPMS/APMS and PCTMS,Capital,CROWN DALE MEDICAL CENTRE,4925739," 85,571.73 ", -   ,LNS000012003
Department of Health,NHS England,30/09/2014,GPMS/APMS and PCTMS,Capital,CROWN HEIGHTS MEDICAL CENTRE,4906401,"-132,699.91 ", -   ,SO000019563
Department of Health,NHS England,30/09/2014,GPMS/APMS and PCTMS,Capital,CROWN HEIGHTS MEDICAL CENTRE,4906402," 298,251.66 ", -   ,SO000019564
Department of Health,NHS England,30/09/2014,GPMS/APMS and PCTMS,Capital,CROWN HOUSE SURGERY,4922550," 124,491.32 ", -   ,NN000012895
Department of Health,NHS England,30/09/2014,GPMS/APMS and PCTMS,Capital,CROWN STREET SURGERY,5057843," 52,736.57 ", -   ,LNM000008884
Department of Health,NHS England,30/09/2014,GPMS/APMS and PCTMS,Capital,CUBBINGTON ROAD SURGERY,5060420," 41,330.98 ", -   ,WA000006750
Department of Health,NHS England,30/09/2014,GPMS/APMS and PCTMS,Capital,CUCKFIELD MEDICAL CENTRE,4929625," 52,020.69 ", -   ,TW000011962
Department of Health,NHS England,30/09/2014,GPMS/APMS and PCTMS,Capital,CUCKOO LANE HEALTH CARE LTD,4949650," 27,953.78 ", -   ,LNM000008730
Department of Health,NHS England,30/09/2014,GPMS/APMS and PCTMS,Capital,CUFFLEY & GOFFS OAK MEDICAL PRACTICE,5112994," 67,696.08 ", -   ,HT000011579
Department of Health,NHS England,30/09/2014,GPMS/APMS and PCTMS,Capital,CULCHETH MEDICAL CENTRE,4857698," 29,400.00 ", -   ,CH000008874
Department of Health,NHS England,30/09/2014,GPMS/APMS and PCTMS,Capital,CULCHETH MEDICAL CENTRE,5029610,"-29,409.00 ", -   ,CH000009127
Department of Health,NHS England,30/09/2014,GPMS/APMS and PCTMS,Capital,CULCHETH MEDICAL CENTRE,5029611," 42,017.88 ", -   ,CH000009128
Department of Health,NHS England,30/09/2014,GPMS/APMS and PCTMS,Capital,CULVERHAY SURGERY,5125939," 38,180.89 ", -   ,GG000007426
Department of Health,NHS England,30/09/2014,GPMS/APMS and PCTMS,Capital,CULVERWELL CARTWRIGHT LUFF MANNING & GOOCH,5055837," 51,098.36 ", -   ,DE000012070
Department of Health,NHS England,30/09/2014,GPMS/APMS and PCTMS,Capital,CUMBERLAND HOUSE SURGERY,4857699," 67,000.00 ", -   ,CH000008875
Department of Health,NHS England,30/09/2014,GPMS/APMS and PCTMS,Capital,CUMBERLAND HOUSE SURGERY,5029612,"-67,247.20 ", -   ,CH000009129
Department of Health,NHS England,30/09/2014,GPMS/APMS and PCTMS,Capital,CUMBERLAND HOUSE SURGERY,5029613," 95,831.75 ", -   ,CH000009130
Department of Health,NHS England,30/09/2014,GPMS/APMS and PCTMS,Capital,CUNNINGHAM MB,5111872," 49,511.22 ", -   ,MAN000005146
Department of Health,NHS England,30/09/2014,GPMS/APMS and PCTMS,Capital,CURZON AVENUE SURGERY,5111186," 32,025.08 ", -   ,LNE000007232
Department of Health,NHS England,30/09/2014,GPMS/APMS and PCTMS,Capital,CUSTOM HOUSE SURGERY,4921690," 105,967.02 ", -   ,LNA000008832
Department of Health,NHS England,30/09/2014,GPMS/APMS and PCTMS,Capital,CYRUS C S & PARTNERS,5109683," 81,478.04 ", -   ,EX000022558
Department of Health,NHS England,30/09/2014,GPMS/APMS and PCTMS,Capital,D H GORDON,4925509," 82,067.66 ", -   ,LNP000009833
Department of Health,NHS England,30/09/2014,GPMS/APMS and PCTMS,Capital,DADGE DALBY MCCOLE & PARTNERS,5113643," 72,192.58 ", -   ,LD000011304
Department of Health,NHS England,30/09/2014,GPMS/APMS and PCTMS,Capital,DAHANAYAKE & PARTNERS,5125751," 53,810.11 ", -   ,DCR000003706
Department of Health,NHS England,30/09/2014,GPMS/APMS and PCTMS,Capital,DALE SURGERY,4922546," 29,718.89 ", -   ,NN000012891
Department of Health,NHS England,30/09/2014,GPMS/APMS and PCTMS,Capital,DALEFIELD SURGERY,4919715," 37,894.33 ", -   ,WIG000007863
Department of Health,NHS England,30/09/2014,GPMS/APMS and PCTMS,Capital,DALSTON MEDICAL GROUP,5013231," 31,616.99 ", -   ,CU000006503
Department of Health,NHS England,30/09/2014,GPMS/APMS and PCTMS,Capital,DALSTON PRACTICE,5059687," 40,268.21 ", -   ,LNA000009000
Department of Health,NHS England,30/09/2014,GPMS/APMS and PCTMS,Capital,DALTON TERRACE SURGERY,5114177," 43,654.47 ", -   ,YN000008512
Department of Health,NHS England,30/09/2014,GPMS/APMS and PCTMS,Capital,DALZELL & PARTNERS,4944997," 51,805.88 ", -   ,LNN000005666
Department of Health,NHS England,30/09/2014,GPMS/APMS and PCTMS,Capital,DANEBRIDGE MEDICAL PRACTICE,4857794," 96,300.00 ", -   ,CH000008970
Department of Health,NHS England,30/09/2014,GPMS/APMS and PCTMS,Capital,DANEBRIDGE MEDICAL PRACTICE,5029797,"-96,342.00 ", -   ,CH000009315
Department of Health,NHS England,30/09/2014,GPMS/APMS and PCTMS,Capital,DANEBRIDGE MEDICAL PRACTICE,5029798," 137,809.46 ", -   ,CH000009316
Department of Health,NHS England,30/09/2014,GPMS/APMS and PCTMS,Capital,DANES CAMP SURGERY,5108176," 38,174.26 ", -   ,NO000007450
Department of Health,NHS England,30/09/2014,GPMS/APMS and PCTMS,Capital,DANETRE MEDICAL PRACTICE,4922825," 81,321.25 ", -   ,NO000007304
Department of Health,NHS England,30/09/2014,GPMS/APMS and PCTMS,Capital,DANN C F & PARTNERS,5109663," 60,449.43 ", -   ,EX000022536
Department of Health,NHS England,30/09/2014,GPMS/APMS and PCTMS,Capital,DANSON FAMILY PRACTICE,5055493," 30,126.95 ", -   ,GMK000004734
Department of Health,NHS England,30/09/2014,GPMS/APMS and PCTMS,Capital,DAPDUNE HOUSE SURGERY,5077300," 62,230.26 ", -   ,SY000010021
Department of Health,NHS England,30/09/2014,GPMS/APMS and PCTMS,Capital,DARCY & PARTNERS,4889003," 35,808.58 ", -   ,STL000006791
Department of Health,NHS England,30/09/2014,GPMS/APMS and PCTMS,Capital,DARCY & PARTNERS,5059102,"-94,611.74 ", -   ,STL000007024
